Workbook

Sheet formato (hidden)
A1: MATRIZ DE FORMULACIÓN Y SEGUIMIENTO DEL POAIV
A2: Tema | G2: ¿Se ejecutará en 2022? | I2: Si respondió NO, ¿Por qué no se ejecutará? | K2: Número de EE (meta) | M2: Número de EE (logro) | N2: % DE LOGRO DE LA META (LOGRO / META) | O2: Medidas o acciones de mejora implementadas (Decisiones de carácter general tomadas. Actos administrativos: resoluciones, directivas, circulares, etc. Traslados por competencia ordenados a otras entidades u organismos)
N3: =IFERROR(M3/K3,"") ->  | Q3: =VLOOKUP(A3,Hoja1!Q2:R56,2,0) -> 
A4: VISITAS, ACTUACIONES O INTERVENCIONES PROGRAMADAS | M4: RESULTADOS DE LAS ACTUACIONES REALIZADAS -Informes de Ejecución-
A5: NÚMERO DE ORDEN | B5: DEPARTAMENTO | C5: MUNICIPIO | D5: NOMBRE DEL ESTABLECIMIENTO | E5: SEDE ATENDIDA | F5: TIPO DE ESTABLECIMIENTO | G5: SI SELECCIONÓ NO OFICIAL | H5: FECHA PROGRAMADA | I5: ACTIVIDAD A DESARROLLAR | J5: ¿CUÁL OTRA? | K5: FUNCIONARIO RESPONSABLE | L5: ÁREA | M5: FECHA REAL DE LA ACTUACIÓN | N5: SITUACIÓN ENCONTRADA O ACTUACIÓN REALIZADA | O5: CONCLUSIONES Y/O COMPROMISOS ADQUIRIDOS | P5: ACTIVIDADES DE SEGUIMIENTO Y VERIFICACIÓN
A8: Enumere los EE que serán atendidos en el período. | B8: Incluya el nombre del departamento a la que pertenece el EE objeto de la actuación. | C8: Incluya el nombre del municipio al que pertenece el EE objeto de la actuación. | D8: Identifique el EE priorizado para visitar o para ejecutar otro tipo de actuación según los criterios aplicados para elaborar el POAIV. | E8: Indique el nombre de la sede del EE en donde se ejecutará la visita y/o actuación | F8: Oficial/No oficial | G8: Lista desplegable: Colegio privado EDTH Educación inicial Educación de adultos | H8: Agregue la fecha prevista para la realización de la actuación. | I8: Seleccione la actividad a desarrollar de acuerdo con el tema diligenciado | J8: Si seleccionó la opción OTRA, indique cuál | K8: Incluya los nombres y apellidos de los funcionarios encargados de realizar la actuación. | L8: Incluya el nombre del área de los funcionarios encargados de realizar la actuación. | M8: Indique la fecha real en que se llevó a cabo la visita o actuación. | N8: Haga un resumen sucinto de la situación encontrada o de la actuación realizada en el EE | O8: Relacione las acciones de mejora acordadas o los compromisos adquiridos por el EE y por la SE en aras de resolver la situación tratada. | P8: Informe qué acciones de seguimiento o de verificación ha adelantado la SE para verificar el cumplimiento de los compromisos adquiridos
A9: 1
A10: =A9+1 -> 2
A11: =A10+1 -> 3
A12: 4
A13: 5
A14: 6
A15: 7
A16: 8
A17: 9
A18: 10
A19: 11
A20: 12
A21: 13
A22: 14
A23: 15
A24: 16
A25: 17
A26: 18
A27: 19
A28: 20
A29: 21
A30: 22
A31: 23
A32: 24
A33: 25
A34: 26
A35: 27
A36: 28
A37: 29
A38: 30
A39: 31
A40: 32
A41: 33
A42: 34
A43: 35
A44: 36
A45: 37
A46: 38
A47: 39
A48: 40
A49: 41
A50: 42
A51: 43
A52: 44
A53: 45
A54: 46
A55: 47
A56: 48
A57: 49
A58: 50
A59: 51
A60: 52
A61: 53
A62: 54
A63: 55
A64: 56
A65: 57
A66: 58
A67: 59
A68: 60
A69: 61
A70: 62
A71: 63
A72: 64
A73: 65
A74: 66
A75: 67
A76: 68
A77: 69
A78: 70
A79: 71
A80: 72
A81: 73
A82: 74
A83: 75
A84: 76
A85: 77
A86: 78
A87: 79
A88: 80
A89: 81
A90: 82
A91: 83
A92: 84
A93: 85
A94: 86
A95: 87
A96: 88
A97: 89
A98: 90
A99: 91
A100: 92
A101: 93
A102: 94
A103: 95
A104: 96
A105: 97
A106: 98
A107: 99
A108: 100
A109: 101
A110: 102
A111: 103
A112: 104
A113: 105
A114: 106
A115: 107
A116: 108
A117: 109
A118: 110
A119: 111
A120: 112
A121: 113
A122: 114
A123: 115
A124: 116
A125: 117
A126: 118
A127: 119
A128: 120
A129: 121
A130: 122
A131: 123
A132: 124
A133: 125
A134: 126
A135: 127
A136: 128
A137: 129
A138: 130
A139: 131
A140: 132
A141: 133
A142: 134
A143: 135
A144: 136
A145: 137
A146: 138
A147: 139
A148: 140
A149: 141
A150: 142
A151: 143
A152: 144
A153: 145
A154: 146
A155: 147
A156: 148
A157: 149
A158: 150
A159: 151
A160: 152
A161: 153
A162: 154
A163: 155
A164: 156
A165: 157
A166: 158
A167: 159
A168: 160
A169: 161
A170: 162
A171: 163
A172: 164
A173: 165
A174: 166
A175: =A174+1 -> 167
A176: 168
A177: 169
A178: 170
A179: 171
A180: 172
A181: 173
A182: 174
A183: 175
A184: 176
A185: 177
A186: 178
A187: 179
A188: 180
A189: 181
A190: 182
A191: 183
A192: 184
A193: 185
A194: 186
A195: 187
A196: 188
A197: 189
A198: 190
A199: 191
A200: 192
A201: 193
A202: 194
... 4806 more rows

Sheet Hoja1 (hidden)
A1: DPTO | B1: MPIO
A2: Antioquia | B2: Medellín | D2: Antioquia | F2: CONTROL NORMATIVO | G2: CONTROL NORMATIVO | H2: CONTROL NORMATIVO | I2: CONTROL NORMATIVO | J2: RUPEI | K2: EDUCACIÓN INICIAL | L2: ASOCIACIONES DE PADRES DE FAMILIA | M2: Sí | N2: Oficial | O2: Preescolar, básica y media | Q2: RETORNO A LA PRESENCIALIDAD PLENA | R2: tema1 | S2: Verificar el avance de los planes de acción de las sedes educativas que no han dado cumplimiento las condiciones mínimas de seguridad. | T2: =LEN(Q2) -> 33
A3: Antioquia | B3: Abejorral | D3: Atlántico | F3: TRAYECTORIAS COMPLETAS | G3: COSTOS EDUCATIVOS | H3: SIET | I3: CALIDAD DEL SERVICIO | J3: APOYO TÉCNICO A PRESTADORES | K3: APOYO A LA EDUCACIÓN RURAL | L3: ASOCIACIONES DE PADRES DE FAMILIA | M3: No | N3: No_oficial | O3: ETDH | Q3: RETORNO A LA PRESENCIALIDAD PLENA | R3: tema1 | S3: Hacer seguimiento a la ejecución de los recursos FOME. | T3: =LEN(Q3) -> 33
A4: Antioquia | B4: Abriaquí | D4: Bogotá | F4: JORNADA LABORAL | G4: DUE | H4: CALIDAD DE LOS PROGRAMAS | I4: BACHILLERATO EXPRESS | J4: PQRS | K4: EDUCACIÓN MEDIA | L4: ASOCIACIONES DE PADRES DE FAMILIA | O4: Educación inicial | Q4: RETORNO A LA PRESENCIALIDAD PLENA | R4: tema1 | S4: Verficar el número de estudiantes que asisten presencialmente a los establecimientos educativos. | T4: =LEN(Q4) -> 33
A5: Antioquia | B5: Alejandría | D5: Bolívar | F5: PLANTA DE PERSONAL DOCENTE | G5: EVI | H5: AUTO-EVALUACIÓN | I5: HABILITACIÓN DE PRESTADORES | J5: OTRA | K5: CONVIVENCIA ESCOLAR | L5: OTRA | O5: Educación de adultos | Q5: RETORNO A LA PRESENCIALIDAD PLENA | R5: tema1 | S5: Verificar, en lo de su competencia, el cumplimiento de los protocolos de bioseguridad establecidos por el Gobierno Nacional. | T5: 33
A6: Antioquia | B6: Amagá | D6: Boyacá | F6: MODELOS EDUCATIVOS FLEXIBLES | G6: RÉGIMEN SANCIONATORIO | H6: HABILITACIÓN DE PRESTADORES | I6: DUE | K6: PERTINENCIA Y MEJORAMIENTO DE LA CALIDAD | O6: Asopadres | Q6: RETORNO A LA PRESENCIALIDAD PLENA | R6: tema1 | S6: Verificar los planes de fortalecimiento académico, flexibilidad curricular y valoración formativa, que reconozcan el estado de desarrollo de los estudiantes en donde se prioricen aprendizajes esenciales que acojan estrategias de interacción y retroalimentación que respondan a las necesidades de niñas, niños, adolescentes y jóvenes. | T6: 33
A7: Antioquia | B7: Amalfi | D7: Caldas | F7: CONDICIONES DE PRESTACIÓN DEL SERVICIO | G7: RÉGIMEN CONTROLADO | H7: CONDICIONES DE PRESTACIÓN DEL SERVICIO | I7: PQRS | K7: ASOCIACIONES DE PADRES DE FAMILIA | Q7: RETORNO A LA PRESENCIALIDAD PLENA | R7: tema1 | S7: Otra | T7: 33
A8: Antioquia | B8: Andes | D8: Caquetá | F8: COBERTURA ESCOLAR | G8: HABILITACIÓN DE PRESTADORES | H8: VISITAS PRIORITARIAS | I8: OTRA | K8: OTRA | Q8: CONTROL NORMATIVO Y VERIFICACIÓN DE CONDICIONES | R8: tema2 | S8: Ejercer control normativo y verificar los actos administrativos de creación o de reconocimiento oficial del EE, legalización de novedades, autorización de jornadas, sedes, ciclos y programas y la aprobación o resignificación del PEI. | T8: =LEN(Q8) -> 47
A9: Antioquia | B9: Angelópolis | D9: Cauca | F9: GRATUIDAD EDUCATIVA | G9: CONVIVENCIA ESCOLAR | H9: PQRS | Q9: CONTROL NORMATIVO Y VERIFICACIÓN DE CONDICIONES | R9: tema2 | S9: Verificar la disponibilidad de infraestructura, mobiliario, laboratorios y demás elementos apropiados para el desarrollo de los programas académicos ofertados por los prestadores en los distintos niveles de formación, incluyendo los apoyos específicos destinados para la atención de los estudiantes con discapacidad. | T9: 47
A10: Antioquia | B10: Angostura | D10: Cesar | F10: PIAR | G10: CONDICIONES DE PRESTACIÓN DEL SERVICIO | H10: OTRA | Q10: CONTROL NORMATIVO Y VERIFICACIÓN DE CONDICIONES | R10: tema2 | S10: Otra | T10: 47
A11: Antioquia | B11: Anorí | D11: Córdoba | F11: EDUCACIÓN INICIAL | G11: COBERTURA ESCOLAR | Q11: PLANTA DE PERSONAL, JORNADA LABORAL Y PERFILES DE DESEMPEÑO | R11: tema3 | S11: Verificar la asignación de la planta de personal docente y directivo-docente destinado a los EE Oficiales, teniendo en cuenta el PEI, las relaciones técnicas vigentes y sus perfiles o áreas de desempeño, incluyendo a los profesionales de apoyo. | T11: 59
A12: Antioquia | B12: Santa Fé de Antioquia | D12: Cundinamarca | F12: TRAYECTORIAS COMPLETAS | G12: PIAR | Q12: PLANTA DE PERSONAL, JORNADA LABORAL Y PERFILES DE DESEMPEÑO | R12: tema3 | S12: Controlar el cumplimiento de la jornada y adopatar mecanismos de control sobre el ausentismo laboral. | T12: =LEN(Q12) -> 59
A13: Antioquia | B13: Anzá | D13: Chocó | F13: CONVIVENCIA ESCOLAR | G13: ALTERNANCIA EDUCATIVA | Q13: PLANTA DE PERSONAL, JORNADA LABORAL Y PERFILES DE DESEMPEÑO | R13: tema3 | S13: Verificar los perfiles del personal docente vinculado a los establecimientos educativos No Oficiales y garatizar su idoneidad. | T13: 59
A14: Antioquia | B14: Apartadó | D14: Huila | F14: CONVIVENCIA ESCOLAR | G14: PLANES DE MEJORAMIENTO | Q14: PLANTA DE PERSONAL, JORNADA LABORAL Y PERFILES DE DESEMPEÑO | R14: tema3 | S14: Otra | T14: =LEN(Q14) -> 59
A15: Antioquia | B15: Arboletes | D15: La_Guajira | F15: CONVIVENCIA ESCOLAR | G15: PQRS | Q15: COBERTURA Y PERMANENCIA ESCOLAR | R15: tema4 | S15: Ejercer control sobre la cobertura escolar y garantizar el registro adecuado y oportuno de la matrícula en el SIMAT. | T15: 31
A16: Antioquia | B16: Argelia | D16: Magdalena | F16: JORNADA ÚNICA | G16: ASISTENCIA TECNICA A LOS EE | Q16: COBERTURA Y PERMANENCIA ESCOLAR | R16: tema4 | S16: Hacer seguimiento a los programas de acceso y permanencia e implementar estrategias dirigidas a disminuir la deserción y la reprobación escolar. | T16: 31
A17: Antioquia | B17: Armenia | D17: Meta | F17: GOBIERNO ESCOLAR | G17: COSTOS EDUCATIVOS | Q17: COBERTURA Y PERMANENCIA ESCOLAR | R17: tema4 | S17: Garantizar el cumplimiento del principio de gratuidad de la prestación del servicio en los niveles educativos cobijados por este beneficio. | T17: 31
A18: Antioquia | B18: Barbosa | D18: Nariño | F18: GESTIÓN ACADÉMICA | G18: OTRA | Q18: COBERTURA Y PERMANENCIA ESCOLAR | R18: tema4 | S18: Otra | T18: =LEN(Q18) -> 31
A19: Antioquia | B19: Belmira | D19: Norte_de_Santander | F19: RENDICIÓN DE CUENTAS | Q19: MODELO DE GESTIÓN DE LA EDUCACIÓN INICIAL | R19: tema5 | S19: Apoyar el proceso de implementación en la ETC del Modelo de Gestión de la Educación Inicial en todos sus componentes, profundizando en la conformación del Registro Único de Prestadores de Educación Inicial – RUPEI – y en las labores de seguimiento y de acompañamiento técnico a las unidades de servicio existentes en su jurisdicción. | T19: 41
A20: Antioquia | B20: Bello | D20: Quindío | F20: ALTERNANCIA EDUCATIVA | Q20: MODELO DE GESTIÓN DE LA EDUCACIÓN INICIAL | R20: tema5 | S20: Otra | T20: 41
A21: Antioquia | B21: Betania | D21: Risaralda | F21: ALTERNANCIA EDUCATIVA | Q21: CONVIVENCIA ESCOLAR | R21: tema6 | S21: Verificar el funcionamiento del comité escolar de convivencia y el cumplimiento de sus funciones y revisar anualmente las condiciones de convivencia escolar de los EE identificando los factores de riesgo y los factores protectores que incidan en la convivencia escolar y en la protección de los derechos humanos, sexuales y reproductivos. | T21: =LEN(Q21) -> 19
A22: Antioquia | B22: Betulia | D22: Santander | F22: ALTERNANCIA EDUCATIVA | Q22: CONVIVENCIA ESCOLAR | R22: tema6 | S22: Verificar los mecanismos de activación de la Ruta de Atención Integral para la Convivencia Escolar y el reportes de las situaciones tipo II y tipo III y verificar los reportes en el SIUCE. | T22: 19
A23: Antioquia | B23: Ciudad Bolívar | D23: Sucre | F23: PLANES DE MEJORAMIENTO | Q23: CONVIVENCIA ESCOLAR | R23: tema6 | S23: Fortalecer los sistemas de gobierno y de convivencia escolar bajo la perspectiva de hacer de los establecimientos educativos entornos protectores para la población escolar en ellos atendida. | T23: 19
A24: Antioquia | B24: Briceño | D24: Tolima | F24: DUE | Q24: CONVIVENCIA ESCOLAR | R24: tema6 | S24: Verificar la aprobación y divulgación del manual de convivencia escolar. | T24: =LEN(Q24) -> 19
A25: Antioquia | B25: Buriticá | D25: Valle_del_Cauca | F25: PQRS | Q25: CONVIVENCIA ESCOLAR | R25: tema6 | S25: Otra | T25: 19
A26: Antioquia | B26: Cáceres | D26: Arauca | F26: POBLACION CON DISCAPACIDAD EN SIMAT | Q26: GESTIÓN DIRECTIVA Y GOBIERNO ESCOLAR | R26: tema7 | S26: Evaluar la gestión directiva y el direccionamiento estratégico de los establecimientos educativos, propiciar la participación de las comunidades educativas en las instancias de gobierno escolar y verificar su adecuada conformación y funcionamiento. | T26: =LEN(Q26) -> 36
A27: Antioquia | B27: Caicedo | D27: Casanare | F27: CAPACIDADES O TALENTOS EXCEPCIONALES | Q27: GESTIÓN DIRECTIVA Y GOBIERNO ESCOLAR | R27: tema7 | S27: Acompañar los procesos de rendición de cuentas que deben efectuar periódicamente los establecimientos oficiales y evaluar la gestión administrativa, financiera y contable de los Fondos de Servicios Educativos. | T27: 36
A28: Antioquia | B28: Caldas | D28: Putumayo | F28: OTRA | Q28: GESTIÓN DIRECTIVA Y GOBIERNO ESCOLAR | R28: tema7 | S28: Otra | T28: 36
A29: Antioquia | B29: Campamento | D29: Archipiélago_de_San_Andrés_Providencia_y_Santa_Catalina | Q29: SISTEMAS DE INFORMACIÓN DEL SECTOR | R29: tema8 | S29: Verificar el funcionamiento de los establecimientos educativos a partir de los reportes arrojados por los sistemas de información y garantizarel registro, la depuración y la actualización permanente de los datos reportados en las plataformas del sector -DUE, EVI, SIET, SIMAT, etc.- | T29: 34
A30: Antioquia | B30: Cañasgordas | D30: Amazonas | Q30: SISTEMAS DE INFORMACIÓN DEL SECTOR | R30: tema8 | S30: Otra | T30: 34
A31: Antioquia | B31: Caracolí | D31: Guainía | Q31: EDUCACIÓN PRIVADA | R31: tema9 | S31: Verificar el procedimiento aplicado en los EE No Oficiales para la aprobación de los costos educativos, el reporte de la autoevaluación institucional y los procesos seguidos para la fijación de listas de útiles, textos y materiales escolares. | T31: 17
A32: Antioquia | B32: Caramanta | D32: Guaviare | Q32: EDUCACIÓN PRIVADA | R32: tema9 | S32: Realizar visitas de evaluación externa que complementen la evaluación institucional y garantizar la idoneidad de la información registrada por los Colegios Privados en la aplicación EVI. | T32: =LEN(Q32) -> 17
A33: Antioquia | B33: Carepa | D33: Vaupés | Q33: EDUCACIÓN PRIVADA | R33: tema9 | S33: Apoyar los procesos sancionatorios que deban adelantarse cuando se reciban quejas y se demuestre que los EE han incurrido en conductas irregulares, en el marco del debido proceso. | T33: 17
A34: Antioquia | B34: El Carmen de Viboral | D34: Vichada | Q34: EDUCACIÓN PRIVADA | R34: tema9 | S34: Hacer seguimiento a los EE clasificados en régimen controlado con el propósito de asegurar que superen las causas que motivaron esta clasificación. | T34: 17
A35: Antioquia | B35: Carolina | Q35: EDUCACIÓN PRIVADA | R35: tema9 | S35: Prestar asistencia tecnica a los EE privados en temas legalización de la oferta de servicios educativos, expedición de licencias de funcionamiento, aprobación de programas, registro de novedades, calendario escolar e intensidades horarias mínimas, jornada única, entre otros. | T35: 17
A36: Antioquia | B36: Caucasia | Q36: EDUCACIÓN PRIVADA | R36: tema9 | S36: Otra | T36: 17
A37: Antioquia | B37: Chigorodó | Q37: CALIDAD Y PERTINENCIA DE LA EDUCACION | R37: tema10 | S37: Brindar apoyo a las instituciones educativas urbanas y rurales en el diseño de estrategias que favorezcan la trayectoria escolar completa garantizando a cada estudiante la culminación de su ciclo de formación. | T37: 37
A38: Antioquia | B38: Cisneros | Q38: CALIDAD Y PERTINENCIA DE LA EDUCACION | R38: tema10 | S38: Apoyar la implantación del programa de Jornada Única como factor determinante para el mejoramiento de la calidad, en los EE oficiales priorizados para este fin. | T38: 37
A39: Antioquia | B39: Cocorná | Q39: CALIDAD Y PERTINENCIA DE LA EDUCACION | R39: tema10 | S39: Apoyar la implementación de los programas de articulación y de mejoramiento de la educación media, en especial los dirigidos a garantizar las trayectorias educativas hacia las modalidades de formación técnica profesional, con el fin de garantizar la doble titulación. | T39: 37
A40: Antioquia | B40: Concepción | Q40: CALIDAD Y PERTINENCIA DE LA EDUCACION | R40: tema10 | S40: Hacer seguimiento y evaluar el cumplimiento de los Planes de Mejoramiento acordados en las visitas de control realizadas a los EE, acompañarlos en la elaboración de los PMI y tenerlos como insumos para la formulación del PAM. | T40: =LEN(Q40) -> 37
A41: Antioquia | B41: Concordia | Q41: CALIDAD Y PERTINENCIA DE LA EDUCACION | R41: tema10 | S41: Verificar las edades de ingreso a los programas de Educación para Adultos, el tiempo de duración, la aplicación de las pruebas externas de evaluación, el cumplimiento del servicio social estudiantil, entre otros aspectos; que favorecen la calidad de la formación. | T41: 37
A42: Antioquia | B42: Copacabana | Q42: CALIDAD Y PERTINENCIA DE LA EDUCACION | R42: tema10 | S42: Impulsar estrategias de mejoramiento de la calidad de la educación desde el punto de vista de la pertinencia y de su relacionamiento con la vocación productiva regional y hacer seguimiento a los resultados obtenidos por los EE en las pruebas de estado promoviendo la adopción de los planes de mejoramiento respectivos. | T42: =LEN(Q42) -> 37
A43: Antioquia | B43: Dabeiba | Q43: CALIDAD Y PERTINENCIA DE LA EDUCACION | R43: tema10 | S43: Efectuar la revisión periódica de los contenidos básicos de formación y demás componentes de los programas de Educación para el Trabajo y el Desarrollo Humano, garantizando su pertinencia, mejora y actualización constante. | T43: 37
A44: Antioquia | B44: Donmatías | Q44: CALIDAD Y PERTINENCIA DE LA EDUCACION | R44: tema10 | S44: Verificar la aprobación y divulgación del sistema de evaluación estudiantil. | T44: 37
A45: Antioquia | B45: Ebéjico | Q45: CALIDAD Y PERTINENCIA DE LA EDUCACION | R45: tema10 | S45: Verificar plataformas de notas y procesos evaluativos de los estudiantes. | T45: =LEN(Q45) -> 37
A46: Antioquia | B46: El Bagre | Q46: CALIDAD Y PERTINENCIA DE LA EDUCACION | R46: tema10 | S46: Otra | T46: 37
A47: Antioquia | B47: Entrerríos | Q47: GARANTÍA DEL DERECHO A LA EDUCACIÓN- ATENCIÓN A QUEJAS Y SOLICITUDES | R47: tema11 | S47: Atención y trámite de quejas, denuncias y demás requerimientos formulados por los integrantes de la comunidad educativa siempre que guarden relación con la garantía del derecho fundamental a la educación y la debida prestación del servicio. | T47: 68
A48: Antioquia | B48: Envigado | Q48: GARANTÍA DEL DERECHO A LA EDUCACIÓN- ATENCIÓN A QUEJAS Y SOLICITUDES | R48: tema11 | S48: Otra | T48: 68
A49: Antioquia | B49: Fredonia | Q49: ATENCIÓN A GRUPOS POBLACIONALES DE ESPECIAL PROTECCIÓN | R49: tema12 | S49: Realizar seguimiento a la atención educativa brindada a la población con capacidades o talentos excepcionales donde se garantice el acceso, la permanencia, la calidad, los apoyos y los ajustes razonables requeridos; asÍ como a la inversión de los recursos adicionales que se asignan a las ETC por este concepto. | T49: 54
A50: Antioquia | B50: Frontino | Q50: ATENCIÓN A GRUPOS POBLACIONALES DE ESPECIAL PROTECCIÓN | R50: tema12 | S50: Fortalecer los modelos de atención dirigidos a los grupos de población que gozan de protección especial en virtud de la Constitución Política y apoyar a las comunidades étnicas en la implementación de la educación propia. | T50: 54
A51: Antioquia | B51: Giraldo | Q51: ATENCIÓN A GRUPOS POBLACIONALES DE ESPECIAL PROTECCIÓN | R51: tema12 | S51: Otra | T51: 54
A52: Antioquia | B52: Girardota | Q52: ACTIVIDADES PRIORIZADAS | R52: tema13 | S52: Consolidar el proceso de implementación en la ETC del Modelo de Gestión de la Educación Inicial de acuerdo con su capacidad instalada, profundizando en la identificación de la oferta de educación inicial, a través del Registro Único de Prestadores de Educación Inicial – RUPEI – y en las acciones de asistencia técnica y seguimiento a las unidades de servicio existentes en su jurisdicción. | T52: 23
A53: Antioquia | B53: Gómez Plata | Q53: ACTIVIDADES PRIORIZADAS | R53: tema13 | S53: Fortalecer los programas de apoyo a la educación rural encaminados a reducir las brechas existentes con la educación urbana. | T53: 23
A54: Antioquia | B54: Granada | Q54: ACTIVIDADES PRIORIZADAS | R54: tema13 | S54: Apoyar la implementación de los programas de articulación y de mejoramiento de la educación media, en especial los dirigidos a garantizar las trayectorias educativas hacia las modalidades de formación técnica profesional, con el fin de garantizar la doble titulación. | T54: 23
A55: Antioquia | B55: Guadalupe | Q55: ACTIVIDADES PRIORIZADAS | R55: tema13 | S55: Fortalecer los sistemas de gobierno escolar y de convivencia bajo la perspectiva de hacer de los establecimientos educativos entornos protectores para la población escolar en ellos atendida y atender oportunamente las inquietudes de la comunidad al respecto. | T55: 23
A56: Antioquia | B56: Guarne | Q56: ACTIVIDADES PRIORIZADAS | R56: tema13 | S56: Impulsar estrategias de mejoramiento de la calidad de la educación desde el punto de vista de la pertinencia y de su relacionamiento con la vocación productiva regional, hacer seguimiento a los resultados obtenidos por los EE en las pruebas de estado y promover alianzas estratégicas que garanticen la ejecución de los planes de mejoramiento respectivos. | T56: 23
A57: Antioquia | B57: Guatapé
A58: Antioquia | B58: Heliconia
A59: Antioquia | B59: Hispania
A60: Antioquia | B60: Itagüí
A61: Antioquia | B61: Ituango
A62: Antioquia | B62: Jardín
A63: Antioquia | B63: Jericó
A64: Antioquia | B64: La Ceja
A65: Antioquia | B65: La Estrella
A66: Antioquia | B66: La Pintada
A67: Antioquia | B67: La Unión
A68: Antioquia | B68: Liborina
A69: Antioquia | B69: Maceo
A70: Antioquia | B70: Marinilla
A71: Antioquia | B71: Montebello
A72: Antioquia | B72: Murindó
A73: Antioquia | B73: Mutatá
A74: Antioquia | B74: Nariño
A75: Antioquia | B75: Necoclí
A76: Antioquia | B76: Nechí
A77: Antioquia | B77: Olaya
A78: Antioquia | B78: Peñol
A79: Antioquia | B79: Peque
A80: Antioquia | B80: Pueblorrico
A81: Antioquia | B81: Puerto Berrío
A82: Antioquia | B82: Puerto Nare
A83: Antioquia | B83: Puerto Triunfo
A84: Antioquia | B84: Remedios
A85: Antioquia | B85: Retiro
A86: Antioquia | B86: Rionegro
A87: Antioquia | B87: Sabanalarga
A88: Antioquia | B88: Sabaneta
A89: Antioquia | B89: Salgar
A90: Antioquia | B90: San Andrés de Cuerquía
A91: Antioquia | B91: San Carlos
A92: Antioquia | B92: San Francisco
A93: Antioquia | B93: San Jerónimo
A94: Antioquia | B94: San José la Montaña
A95: Antioquia | B95: San Juan de Urabá
A96: Antioquia | B96: San Luis
A97: Antioquia | B97: San Pedro los Milagros
A98: Antioquia | B98: San Pedro de Urabá
A99: Antioquia | B99: San Rafael
A100: Antioquia | B100: San Roque
A101: Antioquia | B101: San Vicente Ferrer
A102: Antioquia | B102: Santa Bárbara
A103: Antioquia | B103: Santa Rosa de Osos
A104: Antioquia | B104: Santo Domingo
A105: Antioquia | B105: El Santuario
A106: Antioquia | B106: Segovia
A107: Antioquia | B107: Sonsón
A108: Antioquia | B108: Sopetrán
A109: Antioquia | B109: Támesis
A110: Antioquia | B110: Tarazá
A111: Antioquia | B111: Tarso
A112: Antioquia | B112: Titiribí
A113: Antioquia | B113: Toledo
A114: Antioquia | B114: Turbo
A115: Antioquia | B115: Uramita
A116: Antioquia | B116: Urrao
A117: Antioquia | B117: Valdivia
A118: Antioquia | B118: Valparaíso
A119: Antioquia | B119: Vegachí
A120: Antioquia | B120: Venecia
A121: Antioquia | B121: Vigía del Fuerte
A122: Antioquia | B122: Yalí
A123: Antioquia | B123: Yarumal
A124: Antioquia | B124: Yolombó
A125: Antioquia | B125: Yondó
A126: Antioquia | B126: Zaragoza
A127: Atlántico | B127: Barranquilla
A128: Atlántico | B128: Baranoa
A129: Atlántico | B129: Campo de la Cruz
A130: Atlántico | B130: Candelaria
A131: Atlántico | B131: Galapa
A132: Atlántico | B132: Juan de Acosta
A133: Atlántico | B133: Luruaco
A134: Atlántico | B134: Malambo
A135: Atlántico | B135: Manatí
A136: Atlántico | B136: Palmar de Varela
A137: Atlántico | B137: Piojó
A138: Atlántico | B138: Polonuevo
A139: Atlántico | B139: Ponedera
A140: Atlántico | B140: Puerto Colombia
A141: Atlántico | B141: Repelón
A142: Atlántico | B142: Sabanagrande
A143: Atlántico | B143: Sabanalarga
A144: Atlántico | B144: Santa Lucía
A145: Atlántico | B145: Santo Tomás
A146: Atlántico | B146: Soledad
A147: Atlántico | B147: Suan
A148: Atlántico | B148: Tubará
A149: Atlántico | B149: Usiacurí
A150: Bogotá | B150: Bogotá
A151: Bolívar | B151: Cartagena de Indias
A152: Bolívar | B152: Achí
A153: Bolívar | B153: Altos del Rosario
A154: Bolívar | B154: Arenal
A155: Bolívar | B155: Arjona
A156: Bolívar | B156: Arroyohondo
A157: Bolívar | B157: Barranco de Loba
A158: Bolívar | B158: Calamar
A159: Bolívar | B159: Cantagallo
A160: Bolívar | B160: Cicuco
A161: Bolívar | B161: Córdoba
A162: Bolívar | B162: Clemencia
A163: Bolívar | B163: El Carmen de Bolívar
A164: Bolívar | B164: El Guamo
A165: Bolívar | B165: El Peñón
A166: Bolívar | B166: Hatillo de Loba
A167: Bolívar | B167: Magangué
A168: Bolívar | B168: Mahates
A169: Bolívar | B169: Margarita
A170: Bolívar | B170: María la Baja
A171: Bolívar | B171: Montecristo
A172: Bolívar | B172: Santa Cruz de Mompox
A173: Bolívar | B173: Morales
A174: Bolívar | B174: Norosí
A175: Bolívar | B175: Pinillos
A176: Bolívar | B176: Regidor
A177: Bolívar | B177: Río Viejo
A178: Bolívar | B178: San Cristóbal
A179: Bolívar | B179: San Estanislao
A180: Bolívar | B180: San Fernando
A181: Bolívar | B181: San Jacinto
A182: Bolívar | B182: San Jacinto del Cauca
A183: Bolívar | B183: San Juan Nepomuceno
A184: Bolívar | B184: San Martín de Loba
A185: Bolívar | B185: San Pablo
A186: Bolívar | B186: Santa Catalina
A187: Bolívar | B187: Santa Rosa
A188: Bolívar | B188: Santa Rosa del Sur
A189: Bolívar | B189: Simití
A190: Bolívar | B190: Soplaviento
A191: Bolívar | B191: Talaigua Nuevo
A192: Bolívar | B192: Tiquisio
A193: Bolívar | B193: Turbaco
A194: Bolívar | B194: Turbaná
A195: Bolívar | B195: Villanueva
A196: Bolívar | B196: Zambrano
A197: Boyacá | B197: Tunja
A198: Boyacá | B198: Almeida
A199: Boyacá | B199: Aquitania
A200: Boyacá | B200: Arcabuco
... 923 more rows

Sheet TEMAS - ACTIVIDADES
A1: No. | B1: TEMA | C1: ACTIVIDADES QUE COMPRENDE
A2: 1 | B2: RETORNO A LA PRESENCIALIDAD PLENA | C2: Verificar el avance de los planes de acción de las sedes educativas que no han dado cumplimiento las condiciones mínimas de seguridad.
C3: Hacer seguimiento a la ejecución de los recursos FOME.
C4: Verficar el número de estudiantes que asisten presencialmente a los establecimientos educativos.
C5: Verificar, en lo de su competencia, el cumplimiento de los protocolos de bioseguridad establecidos por el Gobierno Nacional.
C6: Verificar los planes de fortalecimiento académico, flexibilidad curricular y valoración formativa, que reconozcan el estado de desarrollo de los estudiantes en donde se prioricen aprendizajes esenciales que acojan estrategias de interacción y retroalimentación que respondan a las necesidades de niñas, niños, adolescentes y jóvenes.
A7: 2 | B7: CONTROL NORMATIVO Y VERIFICACIÓN DE CONDICIONES | C7: Ejercer control normativo y verificar los actos administrativos de creación o de reconocimiento oficial del EE, legalización de novedades, autorización de jornadas, sedes, ciclos y programas y la aprobación o resignificación del PEI.
C8: Verificar la disponibilidad de infraestructura, mobiliario, laboratorios y demás elementos apropiados para el desarrollo de los programas académicos ofertados por los prestadores en los distintos niveles de formación, incluyendo los apoyos específicos destinados para la atención de los estudiantes con discapacidad.
A9: 3 | B9: PLANTA DE PERSONAL, JORNADA LABORAL Y PERFILES DE DESEMPEÑO | C9: Verificar la asignación de la planta de personal docente y directivo-docente destinado a los EE Oficiales, teniendo en cuenta el PEI, las relaciones técnicas vigentes y sus perfiles o áreas de desempeño, incluyendo a los profesionales de apoyo.
C10: Controlar el cumplimiento de la jornada y adopatar mecanismos de control sobre el ausentismo laboral.
C11: Verificar los perfiles del personal docente vinculado a los establecimientos educativos No Oficiales y garatizar su idoneidad.
A12: =+A9+1 -> 4 | B12: COBERTURA Y PERMANENCIA ESCOLAR | C12: Ejercer control sobre la cobertura escolar y garantizar el registro adecuado y oportuno de la matrícula en el SIMAT.
C13: Hacer seguimiento a los programas de acceso y permanencia e implementar estrategias dirigidas a disminuir la deserción y la reprobación escolar.
C14: Garantizar el cumplimiento del principio de gratuidad de la prestación del servicio en los niveles educativos cobijados por este beneficio.
A15: =+A12+1 -> 5 | B15: MODELO DE GESTIÓN DE LA EDUCACIÓN INICIAL | C15: Apoyar el proceso de implementación en la ETC del Modelo de Gestión de la Educación Inicial en todos sus componentes, profundizando en la conformación del Registro Único de Prestadores de Educación Inicial – RUPEI – y en las labores de seguimiento y de acompañamiento técnico a las unidades de servicio existentes en su jurisdicción.
A16: =+A15+1 -> 6 | B16: CONVIVENCIA ESCOLAR | C16: Verificar el funcionamiento del comité escolar de convivencia y el cumplimiento de sus funciones y revisar anualmente las condiciones de convivencia escolar de los EE identificando los factores de riesgo y los factores protectores que incidan en la convivencia escolar y en la protección de los derechos humanos, sexuales y reproductivos.
C17: Verificar los mecanismos de activación de la Ruta de Atención Integral para la Convivencia Escolar y el reportes de las situaciones tipo II y tipo III y verificar los reportes en el SIUCE.
C18: Fortalecer los sistemas de gobierno y de convivencia escolar bajo la perspectiva de hacer de los establecimientos educativos entornos protectores para la población escolar en ellos atendida.
C19: Verificar la aprobación y divulgación del manual de convivencia escolar.
A20: =+A16+1 -> 7 | B20: GESTIÓN DIRECTIVA Y GOBIERNO ESCOLAR | C20: Evaluar la gestión directiva y el direccionamiento estratégico de los establecimientos educativos, propiciar la participación de las comunidades educativas en las instancias de gobierno escolar y verificar su adecuada conformación y funcionamiento.
C21: Acompañar los procesos de rendición de cuentas que deben efectuar periódicamente los establecimientos oficiales y evaluar la gestión administrativa, financiera y contable de los Fondos de Servicios Educativos.
A22: 8 | B22: SISTEMAS DE INFORMACIÓN DEL SECTOR | C22: Verificar el funcionamiento de los establecimientos educativos a partir de los reportes arrojados por los sistemas de información y garantizarel registro, la depuración y la actualización permanente de los datos reportados en las plataformas del sector -DUE, EVI, SIET, SIMAT, etc.-
A23: =+A22+1 -> 9 | B23: EDUCACIÓN PRIVADA | C23: Verificar el procedimiento aplicado en los EE No Oficiales para la aprobación de los costos educativos, el reporte de la autoevaluación institucional y los procesos seguidos para la fijación de listas de útiles, textos y materiales escolares.
C24: Realizar visitas de evaluación externa que complementen la evaluación institucional y garantizar la idoneidad de la información registrada por los Colegios Privados en la aplicación EVI.
C25: Apoyar los procesos sancionatorios que deban adelantarse cuando se reciban quejas y se demuestre que los EE han incurrido en conductas irregulares, en el marco del debido proceso.
C26: Hacer seguimiento a los EE clasificados en régimen controlado con el propósito de asegurar que superen las causas que motivaron esta clasificación.
C27: Prestar asistencia tecnica a los EE privados en temas legalización de la oferta de servicios educativos, expedición de licencias de funcionamiento, aprobación de programas, registro de novedades, calendario escolar e intensidades horarias mínimas, jornada única, entre otros.
A28: =+A23+1 -> 10 | B28: CALIDAD Y PERTINENCIA DE LA EDUCACION | C28: Brindar apoyo a las instituciones educativas urbanas y rurales en el diseño de estrategias que favorezcan la trayectoria escolar completa garantizando a cada estudiante la culminación de su ciclo de formación.
C29: Apoyar la implantación del programa de Jornada Única como factor determinante para el mejoramiento de la calidad, en los EE oficiales priorizados para este fin.
C30: Apoyar la implementación de los programas de articulación y de mejoramiento de la educación media, en especial los dirigidos a garantizar las trayectorias educativas hacia las modalidades de formación técnica profesional, con el fin de garantizar la doble titulación.
C31: Hacer seguimiento y evaluar el cumplimiento de los Planes de Mejoramiento acordados en las visitas de control realizadas a los EE, acompañarlos en la elaboración de los PMI y tenerlos como insumos para la formulación del PAM.
C32: Verificar las edades de ingreso a los programas de Educación para Adultos, el tiempo de duración, la aplicación de las pruebas externas de evaluación, el cumplimiento del servicio social estudiantil, entre otros aspectos; que favorecen la calidad de la formación.
C33: Impulsar estrategias de mejoramiento de la calidad de la educación desde el punto de vista de la pertinencia y de su relacionamiento con la vocación productiva regional y hacer seguimiento a los resultados obtenidos por los EE en las pruebas de estado promoviendo la adopción de los planes de mejoramiento respectivos.
C34: Efectuar la revisión periódica de los contenidos básicos de formación y demás componentes de los programas de Educación para el Trabajo y el Desarrollo Humano, garantizando su pertinencia, mejora y actualización constante.
C35: Verificar la aprobación y divulgación del sistema de evaluación estudiantil.
C36: Verificar plataformas de notas y procesos evaluativos de los estudiantes.
A37: =+A28+1 -> 11 | B37: GARANTÍA DEL DERECHO A LA EDUCACIÓN- ATENCIÓN A QUEJAS Y SOLICITUDES | C37: Atención y trámite de quejas, denuncias y demás requerimientos formulados por los integrantes de la comunidad educativa siempre que guarden relación con la garantía del derecho fundamental a la educación y la debida prestación del servicio.
A38: =+A37+1 -> 12 | B38: ATENCIÓN A GRUPOS POBLACIONALES DE ESPECIAL PROTECCIÓN | C38: Realizar seguimiento a la atención educativa brindada a la población con capacidades o talentos excepcionales donde se garantice el acceso, la permanencia, la calidad, los apoyos y los ajustes razonables requeridos; asÍ como a la inversión de los recursos adicionales que se asignan a las ETC por este concepto.
C39: Fortalecer los modelos de atención dirigidos a los grupos de población que gozan de protección especial en virtud de la Constitución Política y apoyar a las comunidades étnicas en la implementación de la educación propia.
A40: 13 | B40: ACTIVIDADES PRIORIZADAS | C40: Consolidar el proceso de implementación en la ETC del Modelo de Gestión de la Educación Inicial de acuerdo con su capacidad instalada, profundizando en la identificación de la oferta de educación inicial, a través del Registro Único de Prestadores de Educación Inicial – RUPEI – y en las acciones de asistencia técnica y seguimiento a las unidades de servicio existentes en su jurisdicción.
C41: Fortalecer los programas de apoyo a la educación rural encaminados a reducir las brechas existentes con la educación urbana.
C42: Apoyar la implementación de los programas de articulación y de mejoramiento de la educación media, en especial los dirigidos a garantizar las trayectorias educativas hacia las modalidades de formación técnica profesional, con el fin de garantizar la doble titulación.
C43: Fortalecer los sistemas de gobierno escolar y de convivencia bajo la perspectiva de hacer de los establecimientos educativos entornos protectores para la población escolar en ellos atendida y atender oportunamente las inquietudes de la comunidad al respecto.
C44: Impulsar estrategias de mejoramiento de la calidad de la educación desde el punto de vista de la pertinencia y de su relacionamiento con la vocación productiva regional, hacer seguimiento a los resultados obtenidos por los EE en las pruebas de estado y promover alianzas estratégicas que garanticen la ejecución de los planes de mejoramiento respectivos.

Sheet 1. RETORNO A LA PRESENCIALIDAD
A1: MATRIZ DE FORMULACIÓN Y SEGUIMIENTO DEL POAIV
A2: Tema | G2: ¿Se ejecutará en 2022? | I2: Si respondió NO, ¿Por qué no se ejecutará? | K2: Número de EE (meta) | M2: Número de EE (logro) | N2: % DE LOGRO DE LA META (LOGRO / META) | O2: Medidas o acciones de mejora implementadas (Decisiones de carácter general tomadas. Actos administrativos: resoluciones, directivas, circulares, etc. Traslados por competencia ordenados a otras entidades u organismos)
A3: RETORNO A LA PRESENCIALIDAD PLENA | G3: Sí | K3: 21 | M3: 21 | N3: =IFERROR(M3/K3,"") -> 100% | O3: Se realizo 5 informes de visita y expedición de una circular | Q3: =VLOOKUP(A3,Hoja1!Q2:R56,2,0) -> tema1
A4: VISITAS, ACTUACIONES O INTERVENCIONES PROGRAMADAS | M4: RESULTADOS DE LAS ACTUACIONES REALIZADAS -Informes de Ejecución-
A5: NÚMERO DE ORDEN | B5: DEPARTAMENTO | C5: MUNICIPIO | D5: NOMBRE DEL ESTABLECIMIENTO | E5: SEDE ATENDIDA | F5: SECTOR DEL ESTABLECIMIENTO | G5: TIPO DE ESTABLECIMIENTO | H5: FECHA PROGRAMADA | I5: ACTIVIDAD A DESARROLLAR | J5: ¿CUÁL OTRA? | K5: FUNCIONARIO RESPONSABLE | L5: ÁREA | M5: FECHA REAL DE LA ACTUACIÓN | N5: SITUACIÓN ENCONTRADA O ACTUACIÓN REALIZADA | O5: CONCLUSIONES Y/O COMPROMISOS ADQUIRIDOS | P5: ACTIVIDADES DE SEGUIMIENTO Y VERIFICACIÓN
A8: Enumere los EE que serán atendidos en el período. | B8: Incluya el nombre del departamento a la que pertenece el EE objeto de la actuación. | C8: Incluya el nombre del municipio al que pertenece el EE objeto de la actuación. | D8: Identifique el EE priorizado para visitar o para ejecutar otro tipo de actuación según los criterios aplicados para elaborar el POAIV. | E8: Indique el nombre de la sede del EE en donde se ejecutará la visita y/o actuación | F8: Oficial/No oficial | G8: Lista desplegable: Preescolar, básica y media ETDH Educación inicial Educación de adultos Asopadres | H8: Agregue la fecha prevista para la realización de la actuación. | I8: Seleccione la actividad a desarrollar de acuerdo con el tema diligenciado | J8: Si seleccionó la opción OTRA, indique cuál | K8: Incluya los nombres y apellidos de los funcionarios encargados de realizar la actuación. | L8: Incluya el nombre del área de los funcionarios encargados de realizar la actuación. | M8: Indique la fecha real en que se llevó a cabo la visita o actuación. | N8: Haga un resumen sucinto de la situación encontrada o de la actuación realizada en el EE | O8: Relacione las acciones de mejora acordadas o los compromisos adquiridos por el EE y por la SE en aras de resolver la situación tratada. | P8: Informe qué acciones de seguimiento o de verificación ha adelantado la SE para verificar el cumplimiento de los compromisos adquiridos
A9: 1 | B9: Nariño | C9: San Bernardo | D9: Institución educativa La Vega | E9: Institución educativa La Vega | F9: Oficial | H9: 2022-04-19 | I9: Verificar, en lo de su competencia, el cumplimiento de los protocolos de bioseguridad establecidos por el Gobierno Nacional. | K9: Silvia Cardenas-Yola Maria Bacca-Oscar Ossa Perez-Ruth Perez-Harold Fernando Ruiz-Maria Betty Cabrera | L9: INSPECCION Y VIGILANCIA | M9: 2022-08-17 | N9: Se programo visita In situ para verificar en la competencia de la oficina de inspección y vigilancia, el cumplimiento de los protocolos de bioseguridad establecidos por el Gobierno Nacional. | O9: 1. Se verifica los lava manos al ingreso de la institucion educativa. De igual manera se constato que en cada salon hubira el dispensador de alcohol. 2. Se verifico que los baños esten en buen estado y cumplan la normativa vigente en el marco de el Covid-19. 3. Recomendaciones de Bioseguridad. | P9: Se recomendo que mantuvieran los protocolos establecidos en el establecimiento educativo
A10: =A9+1 -> 2 | B10: Nariño | C10: San Bernardo | D10: Institución Educativa Jose Antonio Galan | E10: Institución Educativa Jose Antonio Galan | F10: Oficial | H10: 2022-04-24 | I10: Verificar, en lo de su competencia, el cumplimiento de los protocolos de bioseguridad establecidos por el Gobierno Nacional. | K10: Silvia Cardenas-Yola Maria Bacca-Oscar Ossa Perez-Ruth Perez-Harold Fernando Ruiz-Maria Betty Cabrera | L10: INSPECCION Y VIGILANCIA | M10: 2022-08-18 | N10: Se programo visita In situ para verificar en la competencia de la oficina de inspección y vigilancia, el cumplimiento de los protocolos de bioseguridad establecidos por el Gobierno Nacional. | O10: 1. Se verifica los lava manos al ingreso de la institucion educativa. De igual manera se constato que en cada salon hubira el dispensador de alcohol. 2. Se verifico que los baños esten en buen estado y cumplan la normativa vigente en el marco de el Covid-19. 3. Recomendaciones de Bioseguridad. | P10: Se recomendo que mantuvieran los protocolos establecidos en el establecimiento educativo
A11: =A10+1 -> 3 | B11: Nariño | C11: Buesaco | D11: Institución educativa Rafael Ruribe Uribe | E11: Institución educativa Rafael Ruribe Uribe | F11: Oficial | H11: 2022-06-14 | I11: Verificar, en lo de su competencia, el cumplimiento de los protocolos de bioseguridad establecidos por el Gobierno Nacional. | K11: Silvia Cardenas-Yola Maria Bacca-Oscar Ossa Perez-Ruth Perez-Harold Fernando Ruiz-Maria Betty Cabrera | L11: INSPECCION Y VIGILANCIA | M11: 2022-09-12 | N11: Se programo visita In situ para verificar en la competencia de la oficina de inspección y vigilancia, el cumplimiento de los protocolos de bioseguridad establecidos por el Gobierno Nacional. | O11: 1. Se verifica los lava manos al ingreso de la institucion educativa. De igual manera se constato que en cada salon hubira el dispensador de alcohol. 2. Se verifico que los baños esten en buen estado y cumplan la normativa vigente en el marco de el Covid-19. 3. Recomendaciones de Bioseguridad. | P11: Se recomendo que mantuvieran los protocolos establecidos en el establecimiento educativo
A12: 4 | B12: Nariño | C12: San Lorenzo | D12: Institución educativa Sagrado Corazon de Jesus | E12: Institución educativa Sagrado Corazon de Jesus | F12: Oficial | H12: 2022-06-28 | I12: Verificar, en lo de su competencia, el cumplimiento de los protocolos de bioseguridad establecidos por el Gobierno Nacional. | K12: Silvia Cardenas-Yola Maria Bacca-Oscar Ossa Perez-Ruth Perez-Harold Fernando Ruiz-Maria Betty Cabrera | L12: INSPECCION Y VIGILANCIA | M12: 2022-12-22 | N12: Se programará visita In situ para verificar en la competencia de la oficina de inspección y vigilancia, el cumplimiento de los protocolos de bioseguridad establecidos por el Gobierno Nacional. | O12: 1. Se verifica los lavamanosal ingreso de la institucion educativa. De igual manerase constato que en cada salon hubira el dispensador de alcohol. 2. Se verifico que los baños esten en buen estado y cumplan la normativa vigente en el marco de el Covid-19. 3. Recomendaciones de Bioseguridad. | P12: Se recomendo que mantuvieran los protocolos establcidosen el establecimiento educativo
A13: 5 | B13: Nariño | C13: Taminango | D13: Institución educativa Tablon Panamericano | E13: Institución educativa Tablon Panamericano | F13: Oficial | H13: 2022-02-22 | I13: Verificar, en lo de su competencia, el cumplimiento de los protocolos de bioseguridad establecidos por el Gobierno Nacional. | K13: Silvia Cardenas-Yola Maria Bacca-Oscar Ossa Perez-Ruth Perez-Harold Fernando Ruiz-Maria Betty Cabrera | L13: INSPECCION Y VIGILANCIA | M13: 2022-02-22 | N13: Se programará visita In situ para verificar en la competencia de la oficina de inspección y vigilancia, el cumplimiento de los protocolos de bioseguridad establecidos por el Gobierno Nacional. | O13: 1. Se verifica los lavamanos al ingreso dela institucion educativa. De igual manerase constato que en cada salon hubira el dispensador de alcohol. 2. Se verifico que los baños esten en buen estado y cumplan la normativa vigente en el marco de el Covid-19. 3. Recomendaciones de Bioseguridad. | P13: Se recomendo que mantuvieran los protocolos establcidosen el establecimiento educativo
A14: 6 | B14: Nariño | C14: Colón | D14: INSTITUCION EDUCATIVA NUESTRA SEÑORA DEL ROSARIO | E14: INSTITUCION EDUCATIVA NUESTRA SEÑORA DEL ROSARIO | F14: Oficial | H14: 2022-04-19 | I14: Verificar los planes de fortalecimiento académico, flexibilidad curricular y valoración formativa, que reconozcan el estado de desarrollo de los estudiantes en donde se prioricen aprendizajes esenciales que acojan estrategias de interacción y retroalimentación que respondan a las necesidades de niñas, niños, adolescentes y jóvenes. | K14: Julián Rosero, Mirian Portillo, Socorro Bastidas, Teresa Narváez, Jesús Gavilanes | L14: Subsecretaría de Calidad Educativa | M14: 2022-10-10 | N14: Categorización ICFES 2021 en "C", Promedio ICFES 2021 en 245, la última versión de PEI enviada el 31/03/2021, Modelo Pedagógico Pedagogía Activa, 9 Sedes, Zona rural, proceso de Ruta de Mejoramiento implementada. Se realizó acompañamiento mediante Asistencia Técnica Virtual. | O14: Se dio cumplimiento a la Asistencia Técnica virtual y la Institución Educativa se compromete a enviar los documentos de gestión escolar, ajustados de acuerdo a las orientaciones. | P14: Circular número 077 del 2 de diciembre de 2022 expedida por la SED Nariño, mediante la cual se solicita documentos de gestión escolar.
A15: 7 | B15: Nariño | C15: La Cruz | D15: INSTITUCION EDUCATIVA AGROPECUARIA MIGUEL ANGEL RANGEL | E15: INSTITUCION EDUCATIVA AGROPECUARIA MIGUEL ANGEL RANGEL | F15: Oficial | H15: 2022-04-24 | I15: Verificar los planes de fortalecimiento académico, flexibilidad curricular y valoración formativa, que reconozcan el estado de desarrollo de los estudiantes en donde se prioricen aprendizajes esenciales que acojan estrategias de interacción y retroalimentación que respondan a las necesidades de niñas, niños, adolescentes y jóvenes. | K15: Julián Rosero, Mirian Portillo, Socorro Bastidas, Teresa Narváez, Jesús Gavilanes | L15: Subsecretaría de Calidad Educativa | M15: 2022-10-10 | N15: Categorización ICFES 2021 en "C", Promedio ICFES 2021 en 220, la última versión de PEI enviada el 30/03/2022, Modelo Pedagógico: Enseñanza para la comprensión, 3 Sedes, Zona rural, proceso de Ruta de Mejoramiento implementada. Se realizó acompañamiento mediante Asistencia Técnica Virtual. | O15: Se dio cumplimiento a la Asistencia Técnica virtual y la Institución Educativa se compromete a enviar los documentos de gestión escolar, ajustados de acuerdo a las orientaciones. | P15: Circular número 077 del 2 de diciembre de 2022 expedida por la SED Nariño, mediante la cual se solicita documentos de gestión escolar.
A16: 8 | B16: Nariño | C16: El Rosario | D16: INSTITUCION EDUCATIVA SANTA ROSA DE LIMA | E16: INSTITUCION EDUCATIVA SANTA ROSA DE LIMA | F16: Oficial | H16: 2022-05-24 | I16: Verificar los planes de fortalecimiento académico, flexibilidad curricular y valoración formativa, que reconozcan el estado de desarrollo de los estudiantes en donde se prioricen aprendizajes esenciales que acojan estrategias de interacción y retroalimentación que respondan a las necesidades de niñas, niños, adolescentes y jóvenes. | K16: Julián Rosero, Mirian Portillo, Socorro Bastidas, Teresa Narváez, Jesús Gavilanes | L16: Subsecretaría de Calidad Educativa | M16: 2022-10-13 | N16: Categorización ICFES 2021 en "D", Promedio ICFES 2021 en 203, la última versión de PEI enviada el 01/06/2022, Modelo Pedagógico: Cognoscitivo, 2 Sedes, Zona rural. Se realizó acompañamiento mediante Asistencia Técnica Virtual. | O16: Se dio cumplimiento a la Asistencia Técnica virtual y la Institución Educativa se compromete a enviar los documentos de gestión escolar, ajustados de acuerdo a las orientaciones. | P16: Circular número 077 del 2 de diciembre de 2022 expedida por la SED Nariño, mediante la cual se solicita documentos de gestión escolar.
A17: 9 | B17: Nariño | C17: Puerres | D17: INSTITUCION EDUCATIVA SAN MATEO | E17: INSTITUCION EDUCATIVA SAN MATEO | F17: Oficial | H17: 2022-06-14 | I17: Verificar los planes de fortalecimiento académico, flexibilidad curricular y valoración formativa, que reconozcan el estado de desarrollo de los estudiantes en donde se prioricen aprendizajes esenciales que acojan estrategias de interacción y retroalimentación que respondan a las necesidades de niñas, niños, adolescentes y jóvenes. | K17: Julián Rosero, Mirian Portillo, Socorro Bastidas, Teresa Narváez, Jesús Gavilanes | L17: Subsecretaría de Calidad Educativa | M17: 2022-10-11 | N17: Categorización ICFES 2021 en "C", Promedio ICFES 2021 en 225, la última versión de PEI enviada el 02/07/2019, Modelo Pedagógico: Pedagogía Activa, 2 Sedes, Zona rural. Se realizó acompañamiento mediante Asistencia Técnica Virtual. | O17: Se dio cumplimiento a la Asistencia Técnica virtual y la Institución Educativa se compromete a enviar los documentos de gestión escolar, ajustados de acuerdo a las orientaciones. | P17: Circular número 077 del 2 de diciembre de 2022 expedida por la SED Nariño, mediante la cual se solicita documentos de gestión escolar.
A18: 10 | B18: Nariño | C18: Roberto Payán | D18: INSTITUCION EDUCATIVA PUMBI LAS LAJAS | E18: INSTITUCION EDUCATIVA PUMBI LAS LAJAS | F18: Oficial | H18: 2022-06-28 | I18: Verificar los planes de fortalecimiento académico, flexibilidad curricular y valoración formativa, que reconozcan el estado de desarrollo de los estudiantes en donde se prioricen aprendizajes esenciales que acojan estrategias de interacción y retroalimentación que respondan a las necesidades de niñas, niños, adolescentes y jóvenes. | K18: Julián Rosero, Mirian Portillo, Socorro Bastidas, Teresa Narváez, Jesús Gavilanes | L18: Subsecretaría de Calidad Educativa | M18: 2022-10-11 | N18: Sin categorizar por el ICFES, no se registra puntajes de grado 11 ICFES, Jornada Única, la última versión de PEI enviada el 12/08/2018, Modelo Pedagógico: Constructivista social de Vigotsky, 19 Sedes, Zona rural. Se realizó acompañamiento mediante Asistencia Técnica Virtual. | O18: Se dio cumplimiento a la Asistencia Técnica virtual y la Institución Educativa se compromete a enviar los documentos de gestión escolar, ajustados de acuerdo a las orientaciones. | P18: Circular número 077 del 2 de diciembre de 2022 expedida por la SED Nariño, mediante la cual se solicita documentos de gestión escolar.
A19: 11 | B19: Nariño | C19: San Lorenzo | D19: INSTITUCION EDUCATIVA NUESTRA SEÑORA DEL CARMEN | E19: INSTITUCION EDUCATIVA NUESTRA SEÑORA DEL CARMEN | F19: Oficial | H19: 2022-09-06 | I19: Verificar los planes de fortalecimiento académico, flexibilidad curricular y valoración formativa, que reconozcan el estado de desarrollo de los estudiantes en donde se prioricen aprendizajes esenciales que acojan estrategias de interacción y retroalimentación que respondan a las necesidades de niñas, niños, adolescentes y jóvenes. | K19: Julián Rosero, Mirian Portillo, Socorro Bastidas, Teresa Narváez, Jesús Gavilanes | L19: Subsecretaría de Calidad Educativa | M19: 2022-10-11 | N19: Categorización ICFES 2021 en "C", Promedio ICFES 2021 en 228, la última versión de PEI enviada el 29/03/2021, Modelo Pedagógico: Pedagogía Activa, 11 Sedes, Zona rural. Se realizó acompañamiento mediante Asistencia Técnica Virtual. | O19: Se dio cumplimiento a la Asistencia Técnica virtual y la Institución Educativa se compromete a enviar los documentos de gestión escolar, ajustados de acuerdo a las orientaciones. | P19: Circular número 077 del 2 de diciembre de 2022 expedida por la SED Nariño, mediante la cual se solicita documentos de gestión escolar.
A20: 12 | B20: Nariño | C20: San Lorenzo | D20: INSTITUCION EDUCATIVA TECNICA AGROPECUARIA SAN GERARDO | E20: INSTITUCION EDUCATIVA TECNICA AGROPECUARIA SAN GERARDO | F20: Oficial | H20: 2022-09-20 | I20: Verificar los planes de fortalecimiento académico, flexibilidad curricular y valoración formativa, que reconozcan el estado de desarrollo de los estudiantes en donde se prioricen aprendizajes esenciales que acojan estrategias de interacción y retroalimentación que respondan a las necesidades de niñas, niños, adolescentes y jóvenes. | K20: Julián Rosero, Mirian Portillo, Socorro Bastidas, Teresa Narváez, Jesús Gavilanes | L20: Subsecretaría de Calidad Educativa | M20: 2022-10-12 | N20: Categorización ICFES 2021 en "C", Promedio ICFES 2021 en 261, la última versión de PEI enviada el 29/04/2022, Modelo Pedagógico: Constructivista y Aprendizaje Significativo, 04 Sedes, Zona rural. Se realizó acompañamiento mediante Asistencia Técnica Virtual. | O20: Se dio cumplimiento a la Asistencia Técnica virtual y la Institución Educativa se compromete a enviar los documentos de gestión escolar, ajustados de acuerdo a las orientaciones. | P20: Circular número 077 del 2 de diciembre de 2022 expedida por la SED Nariño, mediante la cual se solicita documentos de gestión escolar.
A21: 13 | B21: Nariño | C21: San Lorenzo | D21: INSTITUCION EDUCATIVA VALPARAISO BAJO | E21: INSTITUCION EDUCATIVA VALPARAISO BAJO | F21: Oficial | H21: 2022-10-04 | I21: Verificar los planes de fortalecimiento académico, flexibilidad curricular y valoración formativa, que reconozcan el estado de desarrollo de los estudiantes en donde se prioricen aprendizajes esenciales que acojan estrategias de interacción y retroalimentación que respondan a las necesidades de niñas, niños, adolescentes y jóvenes. | K21: Julián Rosero, Mirian Portillo, Socorro Bastidas, Teresa Narváez, Jesús Gavilanes | L21: Subsecretaría de Calidad Educativa | M21: 2022-10-12 | N21: Categorización ICFES 2021 en "C", Promedio ICFES 2021 en 225, la última versión de PEI enviada el 27/07/2022, Modelo Pedagógico: Constructivista social de Vigostky, 01 Sede, Zona rural. Se realizó acompañamiento mediante Asistencia Técnica Virtual. | O21: Se dio cumplimiento a la Asistencia Técnica virtual y la Institución Educativa se compromete a enviar los documentos de gestión escolar, ajustados de acuerdo a las orientaciones. | P21: Circular número 077 del 2 de diciembre de 2022 expedida por la SED Nariño, mediante la cual se solicita documentos de gestión escolar.
A22: 14 | B22: Nariño | C22: San Bernardo | D22: INSTITUCION EDUCATIVA AGROPECUARIA LA VEGA | E22: INSTITUCION EDUCATIVA AGROPECUARIA LA VEGA | F22: Oficial | H22: 2022-08-23 | I22: Verificar los planes de fortalecimiento académico, flexibilidad curricular y valoración formativa, que reconozcan el estado de desarrollo de los estudiantes en donde se prioricen aprendizajes esenciales que acojan estrategias de interacción y retroalimentación que respondan a las necesidades de niñas, niños, adolescentes y jóvenes. | K22: Julián Rosero, Mirian Portillo, Socorro Bastidas, Teresa Narváez, Jesús Gavilanes | L22: Subsecretaría de Calidad Educativa | M22: 2022-03-25 | N22: Categorización ICFES 2021 en "C", Promedio ICFES 2021 en 242, la última versión de PEI enviada el 30/04/2019, Modelo Pedagógico Desarrollista, 8 Sedes, Zona rural. Se realizó acompañamiento mediante Asistencia Técnica presencial en el auditorio de la SED. | O22: Se dio cumplimiento a la Asistencia Técnica virtual y la Institución Educativa se compromete a enviar los documentos de gestión escolar, ajustados de acuerdo a las orientaciones. | P22: Circular número 077 del 2 de diciembre de 2022 expedida por la SED Nariño, mediante la cual se solicita documentos de gestión escolar.
A23: 15 | B23: Nariño | C23: Yacuanquer | D23: INSTITUCION EDUCATIVA DE DESARROLLO RURAL | E23: INSTITUCION EDUCATIVA DE DESARROLLO RURAL | F23: Oficial | H23: 2022-04-11 | I23: Verificar los planes de fortalecimiento académico, flexibilidad curricular y valoración formativa, que reconozcan el estado de desarrollo de los estudiantes en donde se prioricen aprendizajes esenciales que acojan estrategias de interacción y retroalimentación que respondan a las necesidades de niñas, niños, adolescentes y jóvenes. | K23: Julián Rosero, Mirian Portillo, Socorro Bastidas, Teresa Narváez, Jesús Gavilanes | L23: Subsecretaría de Calidad Educativa | M23: 2022-04-11 | N23: Categorización ICFES 2021 en "C", Promedio ICFES 2021 en 246, la última versión de PEI enviada el 22/04/2022, Modelo Pedagógico: Ecléptico, 07 Sedes, Zona rural. Se realizó acompañamiento en sitio. | O23: Se dio cumplimiento a la Asistencia Técnica virtual y la Institución Educativa se compromete a enviar los documentos de gestión escolar, ajustados de acuerdo a las orientaciones. | P23: Circular número 077 del 2 de diciembre de 2022 expedida por la SED Nariño, mediante la cual se solicita documentos de gestión escolar.
A24: 16 | B24: Nariño | C24: Samaniego | D24: INSTITUCION EDUCATIVA AGROPECUARIA SIMÓN ALVAREZ | E24: INSTITUCION EDUCATIVA AGROPECUARIA SIMÓN ALVAREZ | F24: Oficial | H24: 2022-12-13 | I24: Verificar los planes de fortalecimiento académico, flexibilidad curricular y valoración formativa, que reconozcan el estado de desarrollo de los estudiantes en donde se prioricen aprendizajes esenciales que acojan estrategias de interacción y retroalimentación que respondan a las necesidades de niñas, niños, adolescentes y jóvenes. | K24: Julián Rosero, Mirian Portillo, Socorro Bastidas, Teresa Narváez, Giovanny Suárez | L24: Subsecretaría de Calidad Educativa | M24: 2022-12-13 | N24: Categorización ICFES 2021 en "C", Promedio ICFES 2021 en 221, la última versión de PEI enviada el 15/02/2022, Modelo Pedagógico: Constructivista social de Vigostky, 19 Sedes, Zona rural. Se realizó mediante Asistencia Técnica Virtual. | O24: Se dio cumplimiento a la Asistencia Técnica virtual y la Institución Educativa se compromete a enviar los documentos de gestión escolar, ajustados de acuerdo a las orientaciones. | P24: Circular número 077 del 2 de diciembre de 2022 expedida por la SED Nariño, mediante la cual se solicita documentos de gestión escolar.
A25: 17 | B25: Nariño | C25: San Lorenzo | D25: INSTITUCION EDUCATIVA SAGRADO CORAZÓN DE JESÚS | E25: INSTITUCION EDUCATIVA SAGRADO CORAZÓN DE JESÚS | F25: Oficial | H25: 2022-09-05 | I25: Verificar los planes de fortalecimiento académico, flexibilidad curricular y valoración formativa, que reconozcan el estado de desarrollo de los estudiantes en donde se prioricen aprendizajes esenciales que acojan estrategias de interacción y retroalimentación que respondan a las necesidades de niñas, niños, adolescentes y jóvenes. | K25: Julián Rosero, Mirian Portillo, Socorro Bastidas, Teresa Narváez, Jesús Gavilanes | L25: Subsecretaría de Calidad Educativa | M25: 2022-09-05 | N25: Categorización ICFES 2021 en "C", Promedio ICFES 2021 en 232, la última versión de PEI enviada el 19/09/2017, Modelo Pedagógico: Aprendizaje Signficativo de Ausubel, 02 Sedes, Zona rural. Se realizó mediante Asistencia Técnica Virtual. | O25: Se dio cumplimiento a la Asistencia Técnica virtual y la Institución Educativa se compromete a enviar los documentos de gestión escolar, ajustados de acuerdo a las orientaciones. | P25: Circular número 077 del 2 de diciembre de 2022 expedida por la SED Nariño, mediante la cual se solicita documentos de gestión escolar.
A26: 18 | B26: Nariño | C26: Linares | D26: INSTITUCION EDUCATIVA DIEGO LUIS CORDOBA | E26: INSTITUCION EDUCATIVA DIEGO LUIS CORDOBA | F26: Oficial | H26: 2022-10-13 | I26: Verificar los planes de fortalecimiento académico, flexibilidad curricular y valoración formativa, que reconozcan el estado de desarrollo de los estudiantes en donde se prioricen aprendizajes esenciales que acojan estrategias de interacción y retroalimentación que respondan a las necesidades de niñas, niños, adolescentes y jóvenes. | K26: Julián Rosero, Mirian Portillo, Socorro Bastidas, Teresa Narváez, Jesús Gavilanes | L26: Subsecretaría de Calidad Educativa | M26: 2022-10-13 | N26: Categorización ICFES 2021 en "B", Promedio ICFES 2021 en 243, la última versión de PEI enviada el 06/05/2019, Modelo Pedagógico: Constructivismo y Aprendizaje Signficativo, 15 Sedes, Zona urbana. Se realizó mediante Asistencia Técnica Virtual. | O26: Se dio cumplimiento a la Asistencia Técnica virtual y la Institución Educativa se compromete a enviar los documentos de gestión escolar, ajustados de acuerdo a las orientaciones. | P26: Circular número 077 del 2 de diciembre de 2022 expedida por la SED Nariño, mediante la cual se solicita documentos de gestión escolar.
A27: 19 | B27: Nariño | C27: Imués | D27: INSTITUCION EDUCATIVA AGROPECUARIO SANTA ANA | E27: INSTITUCION EDUCATIVA AGROPECUARIO SANTA ANA | F27: Oficial | H27: 2022-10-14 | I27: Verificar los planes de fortalecimiento académico, flexibilidad curricular y valoración formativa, que reconozcan el estado de desarrollo de los estudiantes en donde se prioricen aprendizajes esenciales que acojan estrategias de interacción y retroalimentación que respondan a las necesidades de niñas, niños, adolescentes y jóvenes. | K27: Julián Rosero, Socorro Bastidas, Teresa Narváez | L27: Subsecretaría de Calidad Educativa | M27: 2022-10-14 | N27: Categorización ICFES 2021 en "B", Promedio ICFES 2021 en 245, la última versión de PEI enviada el 06/05/2019, Modelo Pedagógico: No define con claridad, 06 Sedes, Zona urbana. Se realizó mediante Asistencia Técnica en sitio. | O27: Se dio cumplimiento a la Asistencia Técnica virtual y la Institución Educativa se compromete a enviar los documentos de gestión escolar, ajustados de acuerdo a las orientaciones. | P27: Circular número 077 del 2 de diciembre de 2022 expedida por la SED Nariño, mediante la cual se solicita documentos de gestión escolar.
A28: 20 | B28: Nariño | C28: Colón | D28: INSTITUCION EDUCATIVA LEOPOLDO LOPEZ ALVAREZ | E28: INSTITUCION EDUCATIVA LEOPOLDO LOPEZ ALVAREZ | F28: Oficial | H28: 2022-10-12 | I28: Verificar los planes de fortalecimiento académico, flexibilidad curricular y valoración formativa, que reconozcan el estado de desarrollo de los estudiantes en donde se prioricen aprendizajes esenciales que acojan estrategias de interacción y retroalimentación que respondan a las necesidades de niñas, niños, adolescentes y jóvenes. | K28: Julián Rosero, Mirian Portillo, Socorro Bastidas, Teresa Narváez, Jesús Gavilanes | L28: Subsecretaría de Calidad Educativa | M28: 2022-10-12 | N28: Categorización ICFES 2021 en "A", Promedio ICFES 2021 en 275, la última versión de PEI enviada el 01/06/2022, Modelo Pedagógico: No define con claridad, 06 Sedes, Zona urbana. Se realizó mediante Asistencia Técnica Virtual. | O28: Se dio cumplimiento a la Asistencia Técnica virtual y la Institución Educativa se compromete a enviar los documentos de gestión escolar, ajustados de acuerdo a las orientaciones. | P28: Circular número 077 del 2 de diciembre de 2022 expedida por la SED Nariño, mediante la cual se solicita documentos de gestión escolar.
A29: 21 | B29: Nariño | C29: Córdoba | D29: INSTITUCION EDUCATIVA NUESTRA SEÑORA DE FATIMA | E29: INSTITUCION EDUCATIVA NUESTRA SEÑORA DE FATIMA | F29: Oficial | H29: 2022-12-12 | I29: Verificar los planes de fortalecimiento académico, flexibilidad curricular y valoración formativa, que reconozcan el estado de desarrollo de los estudiantes en donde se prioricen aprendizajes esenciales que acojan estrategias de interacción y retroalimentación que respondan a las necesidades de niñas, niños, adolescentes y jóvenes. | K29: Julián Rosero, Mirian Portillo, Socorro Bastidas, Teresa Narváez, Giovanny Suárez | L29: Subsecretaría de Calidad Educativa | M29: 2022-12-12 | N29: Categorización ICFES 2021 en "C", Promedio ICFES 2021 en 240, la última versión de PEI enviada el 21/03/2019, Modelo Pedagógico: Holístico cognitivo vivencial, 02 Sedes, Zona rural. Se realizó mediante Asistencia Técnica Virtual. | O29: Se dio cumplimiento a la Asistencia Técnica virtual y la Institución Educativa se compromete a enviar los documentos de gestión escolar, ajustados de acuerdo a las orientaciones. | P29: Circular número 077 del 2 de diciembre de 2022 expedida por la SED Nariño, mediante la cual se solicita documentos de gestión escolar.
A30: 22
A31: 23
A32: 24
A33: 25
A34: 26
A35: 27
A36: 28
A37: 29
A38: 30
A39: 31
A40: 32
A41: 33
A42: 34
A43: 35
A44: 36
A45: 37
A46: 38
A47: 39
A48: 40
A49: 41
A50: 42
A51: 43
A52: 44
A53: 45
A54: 46
A55: 47
A56: 48
A57: 49
A58: 50
A59: 51
A60: 52
A61: 53
A62: 54
A63: 55
A64: 56
A65: 57
A66: 58
A67: 59
A68: 60
A69: 61
A70: 62
A71: 63
A72: 64
A73: 65
A74: 66
A75: 67
A76: 68
A77: 69
A78: 70
A79: 71
A80: 72
A81: 73
A82: 74
A83: 75
A84: 76
A85: 77
A86: 78
A87: 79
A88: 80
A89: 81
A90: 82
A91: 83
A92: 84
A93: 85
A94: 86
A95: 87
A96: 88
A97: 89
A98: 90
A99: 91
A100: 92
A101: 93
A102: 94
A103: 95
A104: 96
A105: 97
A106: 98
A107: 99
A108: 100
A109: 101
A110: 102
A111: 103
A112: 104
A113: 105
A114: 106
A115: 107
A116: 108
A117: 109
A118: 110
A119: 111
A120: 112
A121: 113
A122: 114
A123: 115
A124: 116
A125: 117
A126: 118
A127: 119
A128: 120
A129: 121
A130: 122
A131: 123
A132: 124
A133: 125
A134: 126
A135: 127
A136: 128
A137: 129
A138: 130
A139: 131
A140: 132
A141: 133
A142: 134
A143: 135
A144: 136
A145: 137
A146: 138
A147: 139
A148: 140
A149: 141
A150: 142
A151: 143
A152: 144
A153: 145
A154: 146
A155: 147
A156: 148
A157: 149
A158: 150
A159: 151
A160: 152
A161: 153
A162: 154
A163: 155
A164: 156
A165: 157
A166: 158
A167: 159
A168: 160
A169: 161
A170: 162
A171: 163
A172: 164
A173: 165
A174: 166
A175: =A174+1 -> 167
A176: 168
A177: 169
A178: 170
A179: 171
A180: 172
A181: 173
A182: 174
A183: 175
A184: 176
A185: 177
A186: 178
A187: 179
A188: 180
A189: 181
A190: 182
A191: 183
A192: 184
A193: 185
A194: 186
A195: 187
A196: 188
A197: 189
A198: 190
A199: 191
A200: 192
A201: 193
A202: 194
... 4806 more rows

Sheet 2. CONTROL NORMATIVO
A1: MATRIZ DE FORMULACIÓN Y SEGUIMIENTO DEL POAIV
A2: Tema | G2: ¿Se ejecutará en 2022? | I2: Si respondió NO, ¿Por qué no se ejecutará? | K2: Número de EE (meta) | M2: Número de EE (logro) | N2: % DE LOGRO DE LA META (LOGRO / META) | O2: Medidas o acciones de mejora implementadas (Decisiones de carácter general tomadas. Actos administrativos: resoluciones, directivas, circulares, etc. Traslados por competencia ordenados a otras entidades u organismos)
A3: CONTROL NORMATIVO Y VERIFICACIÓN DE CONDICIONES | G3: Sí | K3: 57 | M3: 55 | N3: =+M3/K3 -> 96% | O3: Se expidieron 48 actos administrativos | Q3: =VLOOKUP(A3,Hoja1!Q2:R56,2,0) -> tema2
A4: VISITAS, ACTUACIONES O INTERVENCIONES PROGRAMADAS | M4: RESULTADOS DE LAS ACTUACIONES REALIZADAS -Informes de Ejecución-
A5: NÚMERO DE ORDEN | B5: DEPARTAMENTO | C5: MUNICIPIO | D5: NOMBRE DEL ESTABLECIMIENTO | E5: SEDE ATENDIDA | F5: SECTOR DEL ESTABLECIMIENTO | G5: TIPO DE ESTABLECIMIENTO | H5: FECHA PROGRAMADA | I5: ACTIVIDAD A DESARROLLAR | J5: ¿CUÁL OTRA? | K5: FUNCIONARIO RESPONSABLE | L5: ÁREA | M5: FECHA REAL DE LA ACTUACIÓN | N5: SITUACIÓN ENCONTRADA O ACTUACIÓN REALIZADA | O5: CONCLUSIONES Y/O COMPROMISOS ADQUIRIDOS | P5: ACTIVIDADES DE SEGUIMIENTO Y VERIFICACIÓN
A8: Enumere los EE que serán atendidos en el período. | B8: Incluya el nombre del departamento a la que pertenece el EE objeto de la actuación. | C8: Incluya el nombre del municipio al que pertenece el EE objeto de la actuación. | D8: Identifique el EE priorizado para visitar o para ejecutar otro tipo de actuación según los criterios aplicados para elaborar el POAIV. | E8: Indique el nombre de la sede del EE en donde se ejecutará la visita y/o actuación | F8: Oficial/No oficial | G8: Lista desplegable: Preescolar, básica y media ETDH Educación inicial Educación de adultos Asopadres | H8: Agregue la fecha prevista para la realización de la actuación. | I8: Seleccione la actividad a desarrollar de acuerdo con el tema diligenciado | J8: Si seleccionó la opción OTRA, indique cuál | K8: Incluya los nombres y apellidos de los funcionarios encargados de realizar la actuación. | L8: Incluya el nombre del área de los funcionarios encargados de realizar la actuación. | M8: Indique la fecha real en que se llevó a cabo la visita o actuación. | N8: Haga un resumen sucinto de la situación encontrada o de la actuación realizada en el EE | O8: Relacione las acciones de mejora acordadas o los compromisos adquiridos por el EE y por la SE en aras de resolver la situación tratada. | P8: Informe qué acciones de seguimiento o de verificación ha adelantado la SE para verificar el cumplimiento de los compromisos adquiridos
A9: 1 | B9: Nariño | C9: Mallama | D9: INSTITUCION EDUCATIVA SAN JUAN BATISTA DE LA SALLE | E9: INSTITUCION EDUCATIVA SAN JUAN BATISTA DE LA SALLE | F9: Oficial | H9: 2022-01-24 | I9: Ejercer control normativo y verificar los actos administrativos de creación o de reconocimiento oficial del EE, legalización de novedades, autorización de jornadas, sedes, ciclos y programas y la aprobación o resignificación del PEI. | K9: Silvia Cardenas-Yola Maria Bacca-Oscar Ossa Perez-Ruth Perez-Harold Fernando Ruiz-Maria Betty Cabrera | L9: Inspeccion y Vigilancia | M9: 2022-01-31 | N9: Durante los días 24 al 25 de enero de 2022, se realizó visita a la Institución para Verificar in situ, los componentes del PEI como requisito para la aprobación por parte de la SED Nariño, para la inclusión del caracter académico. | O9: 1. Elaboración del acto administrativo de inclusion de la caracteristica académica de la institución educativa San Juan Bautista de la Salle del municipio de Mallama. | P9: Expedición de la Resolución No 0223 del 31/01/2022.
A10: =A9+1 -> 2 | B10: Nariño | C10: Cumbal | D10: INSTITUCION EDUCATIVA TALLAMBI | E10: INSTITUCION EDUCATIVA TALLAMBI | F10: Oficial | H10: 2022-12-30 | I10: Ejercer control normativo y verificar los actos administrativos de creación o de reconocimiento oficial del EE, legalización de novedades, autorización de jornadas, sedes, ciclos y programas y la aprobación o resignificación del PEI. | K10: Silvia Cardenas-Yola Maria Bacca-Oscar Ossa Perez-Ruth Perez-Harold Fernando Ruiz-Maria Betty Cabrera | L10: Inspeccion y Vigilancia | M10: 2022-08-17 | N10: Durante el mes de junio del 2022, se realizó visita a la Institución Educativa para Verificar in situ, los componentes del PEI, como requisito para la aprobación por parte de la SED Nariño la educación por ciclos. | O10: 1. Elaboración del acto administrativo de educación por ciclos de la institución educativa Tallambi del municipio de Cumbal. | P10: Expedición de la Resolución No.3023 de 17/08/2022.
A11: =A10+1 -> 3 | B11: Nariño | C11: Túquerres | D11: INSTITUCION EDUCATIVA TERESIANO | E11: INSTITUCION EDUCATIVA TERESIANO | F11: Oficial | H11: 2022-04-01 | I11: Ejercer control normativo y verificar los actos administrativos de creación o de reconocimiento oficial del EE, legalización de novedades, autorización de jornadas, sedes, ciclos y programas y la aprobación o resignificación del PEI. | K11: Silvia Cardenas-Yola Maria Bacca-Oscar Ossa Perez-Ruth Perez-Harold Fernando Ruiz-Maria Betty Cabrera | L11: Inspeccion y Vigilancia | M11: 2022-06-07 | N11: Se continua con el convenio 1584 del 2021 que originó el convenio 1630 del 2020, entre ARN y la UNAD para implementar el modelo educativo flexible maestro Itinerante. | O11: 1.Elaboración del acto administrativo de educación por ciclos del I al IV bajo la estrategia Maestro Itinerante. | P11: Expedición de la Resolución No 2080 del 7/06/2022.
A12: 4 | B12: Nariño | C12: Ricaurte | D12: INSTITUCION EDUCATIVA AGROINDUSTRIAL SINDAGUA | E12: INSTITUCION EDUCATIVA AGROINDUSTRIAL SINDAGUA | F12: Oficial | H12: 2022-12-23 | I12: Ejercer control normativo y verificar los actos administrativos de creación o de reconocimiento oficial del EE, legalización de novedades, autorización de jornadas, sedes, ciclos y programas y la aprobación o resignificación del PEI. | K12: Silvia Cardenas-Yola Maria Bacca-Oscar Ossa Perez-Ruth Perez-Harold Fernando Ruiz-Maria Betty Cabrera | L12: Inspeccion y Vigilancia | M12: 2022-02-21 | N12: En virtud del oficio radicado mediante requerimiento No.2021EE401908 del 27/12/2022, el MEN otroga la viabilidad del modelo de Educación inicial en la ruralidad y ruralidad dispersaen metodologia preescolar no escolarizada. | O12: 1. Elaboración del acto administrativo que autoriza el modelo de educación inicial en ruralidad y ruralidad dispersa en la metodologia preescolar no escolarizada y semiescolarizado. | P12: Expedición de la resolución No 0502 del 21/02/2022.
A13: 5 | B13: Nariño | C13: Ricaurte | D13: CENTRO EDUCATIVO CUESBI MONTAÑA | E13: CENTRO EDUCATIVO CUESBI MONTAÑA | F13: Oficial | H13: 2022-06-30 | I13: Ejercer control normativo y verificar los actos administrativos de creación o de reconocimiento oficial del EE, legalización de novedades, autorización de jornadas, sedes, ciclos y programas y la aprobación o resignificación del PEI. | K13: Silvia Cardenas-Yola Maria Bacca-Oscar Ossa Perez-Ruth Perez-Harold Fernando Ruiz-Maria Betty Cabrera | L13: Inspeccion y Vigilancia | M13: 2022-02-21 | N13: En virtud del oficio radicado mediante requerimiento No.2021EE401908 del 27/12/2022, el MEN otroga la viabilidad del modelo de Educación inicial en la ruralidad y ruralidad dispersaen metodologia preescolar no escolarizada. | O13: 1. Elaboración del acto administrativo que autoriza el modelo de educación inicial en ruralidad y ruralidad dispersa en la metodologia preescolar no escolarizada y semiescolarizado. | P13: Expedición de la resolución No 0502 del 21/02/2022.
A14: 6 | B14: Nariño | C14: Ricaurte | D14: CENTRO EDUCATIVO VEGAS | E14: CENTRO EDUCATIVO VEGAS | F14: Oficial | H14: 2022-02-21 | I14: Ejercer control normativo y verificar los actos administrativos de creación o de reconocimiento oficial del EE, legalización de novedades, autorización de jornadas, sedes, ciclos y programas y la aprobación o resignificación del PEI. | K14: Silvia Cardenas-Yola Maria Bacca-Oscar Ossa Perez-Ruth Perez-Harold Fernando Ruiz-Maria Betty Cabrera | L14: Inspeccion y Vigilancia | M14: 2022-02-21 | N14: En virtud del oficio radicado mediante requerimiento No.2021EE401908 del 27/12/2022, el MEN otroga la viabilidad del modelo de Educación inicial en la ruralidad y ruralidad dispersaen metodologia preescolar no escolarizada. | O14: 1. Elaboración del acto administrativo que autoriza el modelo de educación inicial en ruralidad y ruralidad dispersa en la metodologia preescolar no escolarizada y semiescolarizado. | P14: Expedición de la resolución No 0502 del 21/02/2022.
A15: 7 | B15: Nariño | C15: Ricaurte | D15: CENTRO EDUCATIVA PUEBLO VIEJO | E15: CENTRO EDUCATIVA PUEBLO VIEJO | F15: Oficial | H15: 2022-02-21 | I15: Ejercer control normativo y verificar los actos administrativos de creación o de reconocimiento oficial del EE, legalización de novedades, autorización de jornadas, sedes, ciclos y programas y la aprobación o resignificación del PEI. | K15: Silvia Cardenas-Yola Maria Bacca-Oscar Ossa Perez-Ruth Perez-Harold Fernando Ruiz-Maria Betty Cabrera | L15: Inspeccion y Vigilancia | M15: 2022-02-21 | N15: En virtud del oficio radicado mediante requerimiento No.2021EE401908 del 27/12/2022, el MEN otroga la viabilidad del modelo de Educación inicial en la ruralidad y ruralidad dispersaen metodologia preescolar no escolarizada. | O15: 1. Elaboración del acto administrativo que autoriza el modelo de educación inicial en ruralidad y ruralidad dispersa en la metodologia preescolar no escolarizada y semiescolarizado. | P15: Expedición de la resolución No 0502 del 21/02/2022.
A16: 8 | B16: Nariño | C16: Ricaurte | D16: CENTRO EDUCATIVO CHICAL | E16: CENTRO EDUCATIVO CHICAL | F16: Oficial | H16: 2022-02-21 | I16: Ejercer control normativo y verificar los actos administrativos de creación o de reconocimiento oficial del EE, legalización de novedades, autorización de jornadas, sedes, ciclos y programas y la aprobación o resignificación del PEI. | K16: Silvia Cardenas-Yola Maria Bacca-Oscar Ossa Perez-Ruth Perez-Harold Fernando Ruiz-Maria Betty Cabrera | L16: Inspeccion y Vigilancia | M16: 2022-02-21 | N16: En virtud del oficio radicado mediante requerimiento No.2021EE401908 del 27/12/2022, el MEN otroga la viabilidad del modelo de Educación inicial en la ruralidad y ruralidad dispersaen metodologia preescolar no escolarizada. | O16: 1. Elaboración del acto administrativo que autoriza el modelo de educación inicial en ruralidad y ruralidad dispersa en la metodologia preescolar no escolarizada y semiescolarizado. | P16: Expedición de la resolución No 0502 del 21/02/2022.
A17: 9 | B17: Nariño | C17: Ricaurte | D17: CENTRO EDUCATIVO ANDALUCIA | E17: CENTRO EDUCATIVO ANDALUCIA | F17: Oficial | H17: 2022-02-21 | I17: Ejercer control normativo y verificar los actos administrativos de creación o de reconocimiento oficial del EE, legalización de novedades, autorización de jornadas, sedes, ciclos y programas y la aprobación o resignificación del PEI. | K17: Silvia Cardenas-Yola Maria Bacca-Oscar Ossa Perez-Ruth Perez-Harold Fernando Ruiz-Maria Betty Cabrera | L17: Inspeccion y Vigilancia | M17: 2022-02-21 | N17: En virtud del oficio radicado mediante requerimiento No.2021EE401908 del 27/12/2022, el MEN otroga la viabilidad del modelo de Educación inicial en la ruralidad y ruralidad dispersaen metodologia preescolar no escolarizada. | O17: 1. Elaboración del acto administrativo que autoriza el modelo de educación inicial en ruralidad y ruralidad dispersa en la metodologia preescolar no escolarizada y semiescolarizado. | P17: Expedición de la resolución No 0502 del 21/02/2022.
A18: 10 | B18: Nariño | C18: Ricaurte | D18: CENTRO EDUCATIVO CHICANDINA | E18: CENTRO EDUCATIVO CHICANDINA | F18: Oficial | H18: 2022-02-21 | I18: Ejercer control normativo y verificar los actos administrativos de creación o de reconocimiento oficial del EE, legalización de novedades, autorización de jornadas, sedes, ciclos y programas y la aprobación o resignificación del PEI. | K18: Silvia Cardenas-Yola Maria Bacca-Oscar Ossa Perez-Ruth Perez-Harold Fernando Ruiz-Maria Betty Cabrera | L18: Inspeccion y Vigilancia | M18: 2022-02-21 | N18: En virtud del oficio radicado mediante requerimiento No.2021EE401908 del 27/12/2022, el MEN otroga la viabilidad del modelo de Educación inicial en la ruralidad y ruralidad dispersaen metodologia preescolar no escolarizada. | O18: 1. Elaboración del acto administrativo que autoriza el modelo de educación inicial en ruralidad y ruralidad dispersa en la metodologia preescolar no escolarizada y semiescolarizado. | P18: Expedición de la resolución No 0502 del 21/02/2022.
A19: 11 | B19: Nariño | C19: Ricaurte | D19: CENTRO EDUCATIVO SANTA ROSA GUALCALA | E19: CENTRO EDUCATIVO SANTA ROSA GUALCALA | F19: Oficial | H19: 2022-02-21 | I19: Ejercer control normativo y verificar los actos administrativos de creación o de reconocimiento oficial del EE, legalización de novedades, autorización de jornadas, sedes, ciclos y programas y la aprobación o resignificación del PEI. | K19: Silvia Cardenas-Yola Maria Bacca-Oscar Ossa Perez-Ruth Perez-Harold Fernando Ruiz-Maria Betty Cabrera | L19: Inspeccion y Vigilancia | M19: 2022-02-21 | N19: En virtud del oficio radicado mediante requerimiento No.2021EE401908 del 27/12/2022, el MEN otroga la viabilidad del modelo de Educación inicial en la ruralidad y ruralidad dispersaen metodologia preescolar no escolarizada. | O19: 1. Elaboración del acto administrativo que autoriza el modelo de educación inicial en ruralidad y ruralidad dispersa en la metodologia preescolar no escolarizada y semiescolarizado. | P19: Expedición de la resolución No 0502 del 21/02/2022.
A20: 12 | B20: Nariño | C20: Cumbitara | D20: I.E Agropecuaria Santa Rosa | E20: Sede 5 La Floresta | F20: Oficial | H20: 2022-01-28 | I20: Ejercer control normativo y verificar los actos administrativos de creación o de reconocimiento oficial del EE, legalización de novedades, autorización de jornadas, sedes, ciclos y programas y la aprobación o resignificación del PEI. | K20: Camilo Norato - Fabian Zambrano - Juan Carlos Gómez - Robinson Meneses | L20: Inspeccion y vigilancia | M20: 2022-02-01 | N20: Reapertura Sede 05 La Floresta, Sede Anexa a la I.E Agrpecuaria Santa Rosa | O20: Proyección De acto Adminitrativo de Reapertura Sede 05 La Floresta | P20: Expedición Resolucion N° 0240 de 01-02-2022
A21: 13 | B21: Nariño | C21: Magüí | D21: I.E Eliseo Payán | E21: Sede 21 Pueblo | F21: Oficial | H21: 2022-01-27 | I21: Ejercer control normativo y verificar los actos administrativos de creación o de reconocimiento oficial del EE, legalización de novedades, autorización de jornadas, sedes, ciclos y programas y la aprobación o resignificación del PEI. | K21: Camilo Norato - Fabian Zambrano - Juan Carlos Gómez - Robinson Meneses | L21: Inspeccion y vigilancia | M21: 2022-02-01 | N21: Reapertura Sede 21 Pueblo Nuevo, Sede Anexa a la I.E Eliseo Payán | O21: Proyección De acto Adminitrativo de Reapertura Sede 05 La Floresta | P21: Expedición Resolucion N° 0232 de 01-02-2022
A22: 14 | B22: Nariño | C22: Roberto Payán | D22: I.E Policarpa Boca De Telembí | E22: Sede 13 Piscuande | F22: Oficial | H22: 2022-01-27 | I22: Ejercer control normativo y verificar los actos administrativos de creación o de reconocimiento oficial del EE, legalización de novedades, autorización de jornadas, sedes, ciclos y programas y la aprobación o resignificación del PEI. | K22: Camilo Norato - Fabian Zambrano - Juan Carlos Gómez - Robinson Meneses | L22: Inspeccion y vigilancia | M22: 2022-02-01 | N22: Sustitución de Matrícula Contratada a Oficial, Anexo sede 13 Piscuande, a la I.E Policarpa Boca De Telembi | O22: Proyección De acto Adminitrativo de Anexo de Sede 21 Piscuande | P22: Expedición Resolucion N° 0237 de 01-02-2022
A23: 15 | B23: Nariño | C23: Roberto Payán | D23: I.E San José De Telembí | E23: Sede 10 Cualiman | F23: Oficial | H23: 2022-02-03 | I23: Ejercer control normativo y verificar los actos administrativos de creación o de reconocimiento oficial del EE, legalización de novedades, autorización de jornadas, sedes, ciclos y programas y la aprobación o resignificación del PEI. | K23: Camilo Norato - Fabian Zambrano - Juan Carlos Gómez - Robinson Meneses | L23: Inspeccion y vigilancia | M23: 2022-02-09 | N23: Sustitución de Matrícula Contratada a Oficial, Anexo sede 10 Cualiman, a la I.E San José De Telembi | O23: Proyección De acto Adminitrativo de Anexo de Sede 10 Cualiman | P23: Expedición Resolucion N° 0389 de 09-02-2022
A24: 16 | B24: Nariño | C24: Roberto Payán | D24: I.E San José De Telembí | E24: Sede 11 Nuevo Despertar Chontaduro | F24: Oficial | H24: 2022-02-03 | I24: Ejercer control normativo y verificar los actos administrativos de creación o de reconocimiento oficial del EE, legalización de novedades, autorización de jornadas, sedes, ciclos y programas y la aprobación o resignificación del PEI. | K24: Camilo Norato - Fabian Zambrano - Juan Carlos Gómez - Robinson Meneses | L24: Inspeccion y vigilancia | M24: 2022-02-09 | N24: Sustitución de Matrícula Contratada a Oficial, Anexo sede 11 Nuevo Despertar Chontaduro, a la I.E San José De Telembi | O24: Proyección De acto Adminitrativo de Anexo de Sede 11 Nuevo Despertar Chontaduro | P24: Expedición Resolucion N° 0389 de 09-02-2022
A25: 17 | B25: Nariño | C25: Roberto Payán | D25: I.E San José De Telembí | E25: Sede 12 Hinún Río Ispí | F25: Oficial | H25: 2022-02-03 | I25: Ejercer control normativo y verificar los actos administrativos de creación o de reconocimiento oficial del EE, legalización de novedades, autorización de jornadas, sedes, ciclos y programas y la aprobación o resignificación del PEI. | K25: Camilo Norato - Fabian Zambrano - Juan Carlos Gómez - Robinson Meneses | L25: Inspeccion y vigilancia | M25: 2022-02-09 | N25: Sustitución de Matrícula Contratada a Oficial, Anexo sede 12 Hinún Río Ispí, a la I.E San José De Telembi | O25: Proyección De acto Adminitrativo de Anexo de Sede 12 Hinún Río Ispí | P25: Expedición Resolucion N° 0389 de 09-02-2022
A26: 18 | B26: Nariño | C26: Cumbitara | D26: I.E Sidón | E26: Sede 08 Monte Alto | F26: Oficial | H26: 2022-03-15 | I26: Ejercer control normativo y verificar los actos administrativos de creación o de reconocimiento oficial del EE, legalización de novedades, autorización de jornadas, sedes, ciclos y programas y la aprobación o resignificación del PEI. | K26: Camilo Norato - Fabian Zambrano - Juan Carlos Gómez - Robinson Meneses | L26: Inspeccion y vigilancia | M26: 2022-03-22 | N26: Sustitución de Matrícula Contratada a Oficial, Anexo Sede 08 Monte Alto, a la I.E Sidón | O26: Proyección De acto Adminitrativo de Anexo de Sede 08 Monte Alto | P26: Expedición Resolucion N° 0844 de 22-03-2022
A27: 19 | B27: Nariño | C27: Cumbitara | D27: I.E Sidón | E27: Sede 09 El Placer | F27: Oficial | H27: 2022-03-15 | I27: Ejercer control normativo y verificar los actos administrativos de creación o de reconocimiento oficial del EE, legalización de novedades, autorización de jornadas, sedes, ciclos y programas y la aprobación o resignificación del PEI. | K27: Camilo Norato - Fabian Zambrano - Juan Carlos Gómez - Robinson Meneses | L27: Inspeccion y vigilancia | M27: 2022-03-22 | N27: Sustitución de Matrícula Contratada a Oficial, Anexo Sede 09 El Placer, a la I.E Sidón | O27: Proyección De acto Adminitrativo de Anexo de Sede 09 El Placer | P27: Expedición Resolucion N° 0844 de 22-03-2022
A28: 20 | B28: Nariño | C28: Cumbitara | D28: I.E Sidón | E28: Sede 10 El Desplayado | F28: Oficial | H28: 2022-03-15 | I28: Ejercer control normativo y verificar los actos administrativos de creación o de reconocimiento oficial del EE, legalización de novedades, autorización de jornadas, sedes, ciclos y programas y la aprobación o resignificación del PEI. | K28: Camilo Norato - Fabian Zambrano - Juan Carlos Gómez - Robinson Meneses | L28: Inspeccion y vigilancia | M28: 2022-03-22 | N28: Sustitución de Matrícula Contratada a Oficial, Anexo Sede 10 El Desplayado, a la I.E Sidón | O28: Proyección De acto Adminitrativo de Anexo de Sede 10 El Desplayado | P28: Expedición Resolucion N° 0844 de 22-03-2022
A29: 21 | B29: Nariño | C29: Cumbitara | D29: I.E Sidón | E29: Sede 11 La Espiga | F29: Oficial | H29: 2022-03-15 | I29: Ejercer control normativo y verificar los actos administrativos de creación o de reconocimiento oficial del EE, legalización de novedades, autorización de jornadas, sedes, ciclos y programas y la aprobación o resignificación del PEI. | K29: Camilo Norato - Fabian Zambrano - Juan Carlos Gómez - Robinson Meneses | L29: Inspeccion y vigilancia | M29: 2022-03-22 | N29: Sustitución de Matrícula Contratada a Oficial, Anexo Sede 11 La Espiga, a la I.E Sidón | O29: Proyección De acto Adminitrativo de Anexo de Sede 11 la Espiga | P29: Expedición Resolucion N° 0844 de 22-03-2022
A30: 22 | B30: Nariño | C30: Cumbitara | D30: I.E Sidón | E30: Sede 12 La Florida | F30: Oficial | H30: 2022-03-15 | I30: Ejercer control normativo y verificar los actos administrativos de creación o de reconocimiento oficial del EE, legalización de novedades, autorización de jornadas, sedes, ciclos y programas y la aprobación o resignificación del PEI. | K30: Camilo Norato - Fabian Zambrano - Juan Carlos Gómez - Robinson Meneses | L30: Inspeccion y vigilancia | M30: 2022-03-22 | N30: Sustitución de Matrícula Contratada a Oficial, Anexo Sede 12 La Florida, a la I.E Sidón | O30: Proyección De acto Adminitrativo de Anexo de Sede 12 la Florida | P30: Expedición Resolucion N° 0844 de 22-03-2022
A31: 23 | B31: Nariño | C31: Cumbitara | D31: I.E Sidón | E31: Sede 13 Las Piedras | F31: Oficial | H31: 2022-03-15 | I31: Ejercer control normativo y verificar los actos administrativos de creación o de reconocimiento oficial del EE, legalización de novedades, autorización de jornadas, sedes, ciclos y programas y la aprobación o resignificación del PEI. | K31: Camilo Norato - Fabian Zambrano - Juan Carlos Gómez - Robinson Meneses | L31: Inspeccion y vigilancia | M31: 2022-03-22 | N31: Sustitución de Matrícula Contratada a Oficial, Anexo Sede 13 Las Piedras, a la I.E Sidón | O31: Proyección De acto Adminitrativo de Anexo de Sede 13 las Piedras | P31: Expedición Resolucion N° 0844 de 22-03-2022
A32: 24 | B32: Nariño | C32: Cumbitara | D32: I.E Sidón | E32: Sede 14 Santa Cecilia | F32: Oficial | H32: 2022-03-15 | I32: Ejercer control normativo y verificar los actos administrativos de creación o de reconocimiento oficial del EE, legalización de novedades, autorización de jornadas, sedes, ciclos y programas y la aprobación o resignificación del PEI. | K32: Camilo Norato - Fabian Zambrano - Juan Carlos Gómez - Robinson Meneses | L32: Inspeccion y vigilancia | M32: 2022-03-22 | N32: Sustitución de Matrícula Contratada a Oficial, Anexo Sede 14 Santa Cecilia, a la I.E Sidón | O32: Proyección De acto Adminitrativo de Anexo de Sede 14 Santa Cecilia | P32: Expedición Resolucion N° 0844 de 22-03-2022
A33: 25 | B33: Nariño | C33: El Rosario | D33: I.E Nuestra Señora Del Rosaro | E33: Sede 10 El Vapor | F33: Oficial | H33: 2022-03-24 | I33: Ejercer control normativo y verificar los actos administrativos de creación o de reconocimiento oficial del EE, legalización de novedades, autorización de jornadas, sedes, ciclos y programas y la aprobación o resignificación del PEI. | K33: Camilo Norato - Fabian Zambrano - Juan Carlos Gómez - Robinson Meneses | L33: Inspeccion y vigilancia | M33: 2022-03-22 | N33: Sustitución de Matrícula Contratada a Oficial, Anexo Sede 10 El Vapor, a la I.E Nuestra Señora Del Rosario | O33: Proyección De acto Adminitrativo de Anexo de Sede 10 El Vapor | P33: Expedición Resolucion N° 0846 de 22-03-2022
A34: 26 | B34: Nariño | C34: El Rosario | D34: I.E Sagrado Corazón De Jesus | E34: Sede 5 El Vergel | F34: Oficial | H34: 2022-03-23 | I34: Ejercer control normativo y verificar los actos administrativos de creación o de reconocimiento oficial del EE, legalización de novedades, autorización de jornadas, sedes, ciclos y programas y la aprobación o resignificación del PEI. | K34: Camilo Norato - Fabian Zambrano - Juan Carlos Gómez - Robinson Meneses | L34: Inspeccion y vigilancia | M34: 2022-03-22 | N34: Sustitución de Matrícula Contratada a Oficial, Anexo Sede 05 El Vergel, a la I.E Sagrado Corazón De Jesus | O34: Proyección De acto Adminitrativo de Anexo de Sede 05 El Vergel | P34: Expedición Resolucion N° 0847 de 22-03-2022
A35: 27 | B35: Nariño | C35: El Rosario | D35: I.E Sagrado Corazón De Jesus | E35: Sede 6 La Guadua | F35: Oficial | H35: 2022-03-23 | I35: Ejercer control normativo y verificar los actos administrativos de creación o de reconocimiento oficial del EE, legalización de novedades, autorización de jornadas, sedes, ciclos y programas y la aprobación o resignificación del PEI. | K35: Camilo Norato - Fabian Zambrano - Juan Carlos Gómez - Robinson Meneses | L35: Inspeccion y vigilancia | M35: 2022-03-22 | N35: Sustitución de Matrícula Contratada a Oficial, Anexo Sede 06 La Guadua, a la I.E Sagrado Corazón De Jesus | O35: Proyección De acto Adminitrativo de Anexo de Sede 06 La Guadua | P35: Expedición Resolucion N° 0847 de 22-03-2022
A36: 28 | B36: Nariño | C36: El Rosario | D36: I.E Sagrado Corazón De Jesus | E36: Sede 7 La Esperanza | F36: Oficial | H36: 2022-03-23 | I36: Ejercer control normativo y verificar los actos administrativos de creación o de reconocimiento oficial del EE, legalización de novedades, autorización de jornadas, sedes, ciclos y programas y la aprobación o resignificación del PEI. | K36: Camilo Norato - Fabian Zambrano - Juan Carlos Gómez - Robinson Meneses | L36: Inspeccion y vigilancia | M36: 2022-03-22 | N36: Sustitución de Matrícula Contratada a Oficial, Anexo Sede 07 La Esperanza, a la I.E Sagrado Corazón De Jesus | O36: Proyección De acto Adminitrativo de Anexo de Sede 07 La Esperanza | P36: Expedición Resolucion N° 0847 de 22-03-2022
A37: 29 | B37: Nariño | C37: El Rosario | D37: I.E Sagrado Corazón De Jesus | E37: Sede 8 San Miguel | F37: Oficial | H37: 2022-03-23 | I37: Ejercer control normativo y verificar los actos administrativos de creación o de reconocimiento oficial del EE, legalización de novedades, autorización de jornadas, sedes, ciclos y programas y la aprobación o resignificación del PEI. | K37: Camilo Norato - Fabian Zambrano - Juan Carlos Gómez - Robinson Meneses | L37: Inspeccion y vigilancia | M37: 2022-03-22 | N37: Sustitución de Matrícula Contratada a Oficial, Anexo Sede 08 San Miguel, a la I.E Sagrado Corazón De Jesus | O37: Proyección De acto Adminitrativo de Anexo de Sede 08 San Miguel | P37: Expedición Resolucion N° 0847 de 22-03-2022
A38: 30 | B38: Nariño | C38: Leiva | D38: I.E El Palmar | E38: Sede 15 La Playa | F38: Oficial | H38: 2022-03-25 | I38: Ejercer control normativo y verificar los actos administrativos de creación o de reconocimiento oficial del EE, legalización de novedades, autorización de jornadas, sedes, ciclos y programas y la aprobación o resignificación del PEI. | K38: Camilo Norato - Fabian Zambrano - Juan Carlos Gómez - Robinson Meneses | L38: Inspeccion y vigilancia | M38: 2022-03-22 | N38: Sustitución de Matrícula Contratada a Oficial, Anexo Sede 15 La Playa, a la I.E El Palmar | O38: Proyección De acto Adminitrativo de Anexo de Sede 15 La Playa | P38: Expedición Resolucion N° 0845 de 22-03-2022
A39: 31 | B39: Nariño | C39: Leiva | D39: I.E El Palmar | E39: Sede 16 Florida Media | F39: Oficial | H39: 2022-03-25 | I39: Ejercer control normativo y verificar los actos administrativos de creación o de reconocimiento oficial del EE, legalización de novedades, autorización de jornadas, sedes, ciclos y programas y la aprobación o resignificación del PEI. | K39: Camilo Norato - Fabian Zambrano - Juan Carlos Gómez - Robinson Meneses | L39: Inspeccion y vigilancia | M39: 2022-03-22 | N39: Sustitución de Matrícula Contratada a Oficial, Anexo Sede 16 Florida Media, a la I.E El Palmar | O39: Proyección De acto Adminitrativo de Anexo de Sede 16 Florida Media | P39: Expedición Resolucion N° 0845 de 22-03-2022
A40: 32 | B40: Nariño | C40: La Llanada | D40: I.E Técnico Agropecuaria Rodrigo Lara Bonilla | E40: Sede 3 Sumbiambi | F40: Oficial | H40: 2022-03-25 | I40: Ejercer control normativo y verificar los actos administrativos de creación o de reconocimiento oficial del EE, legalización de novedades, autorización de jornadas, sedes, ciclos y programas y la aprobación o resignificación del PEI. | K40: Camilo Norato - Fabian Zambrano - Juan Carlos Gómez - Robinson Meneses | L40: Inspeccion y vigilancia | M40: 2022-03-28 | N40: Sustitución de Matrícula Contratada a Oficial, Anexo Sede 3 Sumbiambí, a la I.E Técnico Agropecuaria Rodrigo Lara Bonilla | O40: Proyección De acto Adminitrativo de Anexo de Sede 3 Sumbiambí | P40: Expedición Resolucion N° 0873 de 28-03-2022
A41: 33 | B41: Nariño | C41: La Llanada | D41: I.E Técnico Agropecuaria Rodrigo Lara Bonilla | E41: Sede 4 Brisas De Telembí | F41: Oficial | H41: 2022-03-25 | I41: Ejercer control normativo y verificar los actos administrativos de creación o de reconocimiento oficial del EE, legalización de novedades, autorización de jornadas, sedes, ciclos y programas y la aprobación o resignificación del PEI. | K41: Camilo Norato - Fabian Zambrano - Juan Carlos Gómez - Robinson Meneses | L41: Inspeccion y vigilancia | M41: 2022-03-28 | N41: Sustitución de Matrícula Contratada a Oficial, Anexo Sede 4 Brisas Del Telembí, a la I.E Técnico Agropecuaria Rodrigo Lara Bonilla | O41: Proyección De acto Adminitrativo de Anexo de Sede 4 Brisas Del Telembí | P41: Expedición Resolucion N° 0873 de 28-03-2022
A42: 34 | B42: Nariño | C42: Leiva | D42: I.E Las Delicias | E42: Sede 10 Cristo Rey | F42: Oficial | H42: 2022-03-30 | I42: Ejercer control normativo y verificar los actos administrativos de creación o de reconocimiento oficial del EE, legalización de novedades, autorización de jornadas, sedes, ciclos y programas y la aprobación o resignificación del PEI. | K42: Camilo Norato - Fabian Zambrano - Juan Carlos Gómez - Robinson Meneses | L42: Inspeccion y vigilancia | M42: 2022-03-28 | N42: Sustitución de Matrícula Contratada a Oficial, Anexo Sede 10 Cristo Rey, a la I.E Las Delicias | O42: Proyección De acto Adminitrativo de Anexo de Sede 10 Cristo Rey | P42: Expedición Resolucion N° 0874 de 28-03-2022
A43: 35 | B43: Nariño | C43: Linares | D43: I.E Luis Carlos Galán | E43: Sede 9 Providencia | F43: Oficial | H43: 2022-03-30 | I43: Ejercer control normativo y verificar los actos administrativos de creación o de reconocimiento oficial del EE, legalización de novedades, autorización de jornadas, sedes, ciclos y programas y la aprobación o resignificación del PEI. | K43: Camilo Norato - Fabian Zambrano - Juan Carlos Gómez - Robinson Meneses | L43: Inspeccion y vigilancia | M43: 2022-03-29 | N43: Cierre Temporal Sede 09 Providenacia, Sede Anexa a la I.E Luis Carlos Galán | O43: Proyección De acto Adminitrativo de Cierre Temporal Sede 09 Providencia | P43: Expedición Resolucion N° 0876 de 29-03-2022
A44: 36 | B44: Nariño | C44: Puerres | D44: I.E Monopamba | E44: Sede 6 San Luis De La Esperanza | F44: Oficial | H44: 2022-03-30 | I44: Ejercer control normativo y verificar los actos administrativos de creación o de reconocimiento oficial del EE, legalización de novedades, autorización de jornadas, sedes, ciclos y programas y la aprobación o resignificación del PEI. | K44: Camilo Norato - Fabian Zambrano - Juan Carlos Gómez - Robinson Meneses | L44: Inspeccion y vigilancia | M44: 2022-03-29 | N44: Cierre Temporal Sede 06 San Luis De La Esperanza, Sede Anexa a la I.E Monopamba | O44: Proyección De acto Adminitrativo de Cierre Temporal Sede 06 San Luis De La Esperanza | P44: Expedición Resolucion N° 0875 de 29-03-2022
A45: 37 | B45: Nariño | C45: Cumbitara | D45: I.E Sidón | E45: Sede 15 Yanazara | F45: Oficial | H45: 2022-04-12 | I45: Ejercer control normativo y verificar los actos administrativos de creación o de reconocimiento oficial del EE, legalización de novedades, autorización de jornadas, sedes, ciclos y programas y la aprobación o resignificación del PEI. | K45: Camilo Norato - Fabian Zambrano - Juan Carlos Gómez - Robinson Meneses | L45: Inspeccion y vigilancia | M45: 2022-04-08 | N45: Reapertura Sede 15 Yanazara, Sede Anexa a la I.E Sidón | O45: Proyección De acto Adminitrativo de Reapertura Sede 15 Yanazara | P45: Expedición Resolucion N° 1291 de 08-04-2022
A46: 38 | B46: Nariño | C46: Policarpa | D46: I.E Madrigal San Francisco De Asís | E46: Sede 4 La Dorada | F46: Oficial | H46: 2022-05-10 | I46: Ejercer control normativo y verificar los actos administrativos de creación o de reconocimiento oficial del EE, legalización de novedades, autorización de jornadas, sedes, ciclos y programas y la aprobación o resignificación del PEI. | K46: Camilo Norato - Fabian Zambrano - Juan Carlos Gómez - Robinson Meneses | L46: Inspeccion y vigilancia | M46: 2022-05-12 | N46: Reapertura Sede 4 La Dorada, Sede Anexa a la I.E Madrigal San Francisco De Asís | O46: Proyección De acto Adminitrativo de Reapertura Sede 4 La Dorada | P46: Expedición Resolucion N° 1645 de 12-05-2022
A47: 39 | B47: Nariño | C47: Policarpa | D47: I.E Restrepo | E47: Sede 7 Simón Bolivar | F47: Oficial | H47: 2022-05-10 | I47: Ejercer control normativo y verificar los actos administrativos de creación o de reconocimiento oficial del EE, legalización de novedades, autorización de jornadas, sedes, ciclos y programas y la aprobación o resignificación del PEI. | K47: Camilo Norato - Fabian Zambrano - Juan Carlos Gómez - Robinson Meneses | L47: Inspeccion y vigilancia | M47: 2022-05-12 | N47: Reapertura Sede 7 Simón Bolivar, Sede Anexa a la I.E Restrepo | O47: Proyección De acto Adminitrativo de Reapertura Sede 7 Simón Bolivar | P47: Expedición Resolucion N° 1644 de 12-05-2022
A48: 40 | B48: Nariño | C48: Los Andes | D48: I.E La Paz | E48: Sede 3 San José Cordilleras Andinas | F48: Oficial | H48: 2022-05-09 | I48: Ejercer control normativo y verificar los actos administrativos de creación o de reconocimiento oficial del EE, legalización de novedades, autorización de jornadas, sedes, ciclos y programas y la aprobación o resignificación del PEI. | K48: Camilo Norato - Fabian Zambrano - Juan Carlos Gómez - Robinson Meneses | L48: Inspeccion y vigilancia | M48: 2022-05-12 | N48: Reapertura Sede 3 San José Cordilleras Andinas, Sede Anexa a la I.E La Paz | O48: Proyección De acto Adminitrativo de Reapertura Sede 3 San José Cordilleras Andinas | P48: Expedición Resolucion N° 1642 de 12-05-2022
A49: 41 | B49: Nariño | C49: Los Andes | D49: I.E Agropecuario La Planada | E49: Sede 9 Bajo Providencia | F49: Oficial | H49: 2022-05-09 | I49: Ejercer control normativo y verificar los actos administrativos de creación o de reconocimiento oficial del EE, legalización de novedades, autorización de jornadas, sedes, ciclos y programas y la aprobación o resignificación del PEI. | K49: Camilo Norato - Fabian Zambrano - Juan Carlos Gómez - Robinson Meneses | L49: Inspeccion y vigilancia | M49: 2022-05-12 | N49: Reapertura Sede 9 Bajo Providencia, Sede Anexa a la I.E Agropecuario La Planada | O49: Proyección De acto Adminitrativo de Reapertura Sede 9 Bajo Providencia | P49: Expedición Resolucion N° 1643 de 12-05-2022
A50: 42 | B50: Nariño | C50: La Florida | D50: I.E La Inmaculada De Robles | E50: Sede 10 Garces Alto | F50: Oficial | H50: 2022-06-17 | I50: Ejercer control normativo y verificar los actos administrativos de creación o de reconocimiento oficial del EE, legalización de novedades, autorización de jornadas, sedes, ciclos y programas y la aprobación o resignificación del PEI. | K50: Camilo Norato - Fabian Zambrano - Juan Carlos Gómez - Robinson Meneses | L50: Inspeccion y vigilancia | M50: 2022-06-14 | N50: Cierre Temporal Sede 10 Garces Alto, Sede Anexa a la I.E La Inmaculada De Robles | O50: Proyección De acto Adminitrativo de Cierre Temporal Sede 10 Garces Alto | P50: Expedición Resolucion N° 2154 de 14-06-2022
A51: 43 | B51: Nariño | C51: Barbacoas | D51: I.E Buenavista | E51: Sede 13 Pipalta Campo Alegre | F51: Oficial | H51: 2022-06-14 | I51: Ejercer control normativo y verificar los actos administrativos de creación o de reconocimiento oficial del EE, legalización de novedades, autorización de jornadas, sedes, ciclos y programas y la aprobación o resignificación del PEI. | K51: Camilo Norato - Fabian Zambrano - Juan Carlos Gómez - Robinson Meneses | L51: Inspeccion y vigilancia | M51: 2022-06-14 | N51: Sustitución de Matrícula Contratada a Oficial, Anexo Sede 13 Pipalta Campo Alegre, a la I.E Buenavista | O51: Proyección De acto Adminitrativo de Anexo de Sede 13 Pipalta Campo Alegre | P51: Expedición Resolucion N° 2157 de 14-06-2022
A52: 44 | B52: Nariño | C52: Barbacoas | D52: I.E Buenavista | E52: Sede 14 Cuilbi | F52: Oficial | H52: 2022-06-14 | I52: Ejercer control normativo y verificar los actos administrativos de creación o de reconocimiento oficial del EE, legalización de novedades, autorización de jornadas, sedes, ciclos y programas y la aprobación o resignificación del PEI. | K52: Camilo Norato - Fabian Zambrano - Juan Carlos Gómez - Robinson Meneses | L52: Inspeccion y vigilancia | M52: 2022-06-14 | N52: Sustitución de Matrícula Contratada a Oficial, Anexo Sede 14 Cuilbi, a la I.E Buenavista | O52: Proyección De acto Adminitrativo de Anexo de Sede 14 Cuilbi | P52: Expedición Resolucion N° 2157 de 14-06-2022
A53: 45 | B53: Nariño | C53: Barbacoas | D53: I.E Luis Irizar Salazar | E53: Sede 29 El Placer | F53: Oficial | H53: 2022-06-15 | I53: Ejercer control normativo y verificar los actos administrativos de creación o de reconocimiento oficial del EE, legalización de novedades, autorización de jornadas, sedes, ciclos y programas y la aprobación o resignificación del PEI. | K53: Camilo Norato - Fabian Zambrano - Juan Carlos Gómez - Robinson Meneses | L53: Inspeccion y vigilancia | M53: 2022-06-14 | N53: Sustitución de Matrícula Contratada a Oficial, Anexo Sede 29 El Placer, a la I.E Luis Irizar Salazar | O53: Proyección De acto Adminitrativo de Anexo de Sede 29 El Placer | P53: Expedición Resolucion N° 2159 de 14-06-2022
A54: 46 | B54: Nariño | C54: Barbacoas | D54: I.E Luis Irizar Salazar | E54: Sede 30 Culbi | F54: Oficial | H54: 2022-06-15 | I54: Ejercer control normativo y verificar los actos administrativos de creación o de reconocimiento oficial del EE, legalización de novedades, autorización de jornadas, sedes, ciclos y programas y la aprobación o resignificación del PEI. | K54: Camilo Norato - Fabian Zambrano - Juan Carlos Gómez - Robinson Meneses | L54: Inspeccion y vigilancia | M54: 2022-06-14 | N54: Sustitución de Matrícula Contratada a Oficial, Anexo Sede 30 Culbi, a la I.E Luis Irizar Salazar | O54: Proyección De acto Adminitrativo de Anexo de Sede 30 Culbi | P54: Expedición Resolucion N° 2159 de 14-06-2022
A55: 47 | B55: Nariño | C55: Barbacoas | D55: I.E Escuela Normal Superior La Inmaculada | E55: Sede 27 Rural Mixto De La Junta Río Inguambí | F55: Oficial | H55: 2022-06-15 | I55: Ejercer control normativo y verificar los actos administrativos de creación o de reconocimiento oficial del EE, legalización de novedades, autorización de jornadas, sedes, ciclos y programas y la aprobación o resignificación del PEI. | K55: Camilo Norato - Fabian Zambrano - Juan Carlos Gómez - Robinson Meneses | L55: Inspeccion y vigilancia | M55: 2022-06-14 | N55: Sustitución de Matrícula Contratada a Oficial, Anexo Sede 27 Rural Mixto De La Junta Río Inguambí, a la I.E Escuela Normal Superior La Inmaculada | O55: Proyección De acto Adminitrativo de Anexo de Sede 27 Rural Mixto De La Junta Río Inguambí | P55: Expedición Resolucion N° 2158 de 14-06-2022
A56: 48 | B56: Nariño | C56: La Llanada | D56: I.E Juan Pablo I | E56: Sede 4 El Maco | F56: Oficial | H56: 2022-06-16 | I56: Ejercer control normativo y verificar los actos administrativos de creación o de reconocimiento oficial del EE, legalización de novedades, autorización de jornadas, sedes, ciclos y programas y la aprobación o resignificación del PEI. | K56: Camilo Norato - Fabian Zambrano - Juan Carlos Gómez - Robinson Meneses | L56: Inspeccion y vigilancia | M56: 2022-06-14 | N56: Sustitución de Matrícula Contratada a Oficial, Anexo Sede 04 El Maco, a la I.E Juan Pablo I | O56: Proyección De acto Adminitrativo de Anexo de Sede 04 El Maco | P56: Expedición Resolucion N° 2155 de 14-06-2022
A57: 49 | B57: Nariño | C57: Barbacoas | D57: I.E San Miguel De Ñambí | E57: Sede 7 Guagaypi | F57: Oficial | H57: 2022-06-17 | I57: Ejercer control normativo y verificar los actos administrativos de creación o de reconocimiento oficial del EE, legalización de novedades, autorización de jornadas, sedes, ciclos y programas y la aprobación o resignificación del PEI. | K57: Camilo Norato - Fabian Zambrano - Juan Carlos Gómez - Robinson Meneses | L57: Inspeccion y vigilancia | M57: 2022-06-14 | N57: Modificatrio a las Resoluciones 815 de 21-05-2022 y 1676 de 10-08-2022, y se Anexa La Sede 7 Guagaypi , a la I.E San Miguel De Ñambí | O57: Proyección De acto Adminitrativo de Anexo de Sede 07 Guagaypi | P57: Expedición Resolucion N° 2156 de 14-06-2022
A58: 50 | B58: Nariño | C58: Barbacoas | D58: I.E San Miguel De Ñambí | E58: Sede 8 Bocas De Cartagena | F58: Oficial | H58: 2022-06-17 | I58: Ejercer control normativo y verificar los actos administrativos de creación o de reconocimiento oficial del EE, legalización de novedades, autorización de jornadas, sedes, ciclos y programas y la aprobación o resignificación del PEI. | K58: Camilo Norato - Fabian Zambrano - Juan Carlos Gómez - Robinson Meneses | L58: Inspeccion y vigilancia | M58: 2022-06-14 | N58: Modificatrio a las Resoluciones 815 de 21-05-2022 y 1676 de 10-08-2022, y se Anexa La Sede 8 Bocas De Cartagena, a la I.E San Miguel De Ñambí | O58: Proyección De acto Adminitrativo de Anexo de Sede 8 Bocas De Cartagena | P58: Expedición Resolucion N° 2156 de 14-06-2022
A59: 51 | B59: Nariño | C59: Barbacoas | D59: I.E San Miguel De Ñambí | E59: Sede 9 Pali | F59: Oficial | H59: 2022-06-17 | I59: Ejercer control normativo y verificar los actos administrativos de creación o de reconocimiento oficial del EE, legalización de novedades, autorización de jornadas, sedes, ciclos y programas y la aprobación o resignificación del PEI. | K59: Camilo Norato - Fabian Zambrano - Juan Carlos Gómez - Robinson Meneses | L59: Inspeccion y vigilancia | M59: 2022-06-14 | N59: Modificatrio a las Resoluciones 815 de 21-05-2022 y 1676 de 10-08-2022, y se Anexa La Sede 9 Pali, a la I.E San Miguel De Ñambí | O59: Proyección De acto Adminitrativo de Anexo de Sede 9 Pali | P59: Expedición Resolucion N° 2156 de 14-06-2022
A60: 52 | B60: Nariño | C60: El Charco | D60: C.E Maiz Blanco | E60: Sede Morrito Afro | F60: Oficial | H60: 2022-06-01 | I60: Ejercer control normativo y verificar los actos administrativos de creación o de reconocimiento oficial del EE, legalización de novedades, autorización de jornadas, sedes, ciclos y programas y la aprobación o resignificación del PEI. | K60: Camilo Norato - Fabian Zambrano - Juan Carlos Gómez - Robinson Meneses | L60: Inspeccion y vigilancia | M60: 2022-06-14 | N60: Por la cual se Asigna Código DANE a La Sede Morrito Afro, Sede Anexa al C.E Maiz Blanco | O60: Proyección De acto Adminitrativo de Asignación de Código DANE Sede Morrito Afro | P60: Expedición Resolucion N° 2153 de 14-06-2022
A61: 53 | B61: Nariño | C61: El Charco | D61: C.E Maiz Blanco | E61: Sede Morrito Indígena | F61: Oficial | H61: 2022-06-01 | I61: Ejercer control normativo y verificar los actos administrativos de creación o de reconocimiento oficial del EE, legalización de novedades, autorización de jornadas, sedes, ciclos y programas y la aprobación o resignificación del PEI. | K61: Camilo Norato - Fabian Zambrano - Juan Carlos Gómez - Robinson Meneses | L61: Inspeccion y vigilancia | M61: 2022-06-14 | N61: Por la cual se Asigna Código DANE a La Sede Morrito Indígena, Sede Anexa al C.E Maiz Blanco | O61: Proyección De acto Adminitrativo de Asignación de Código DANE Sede Morrito Indígena | P61: Expedición Resolucion N° 2153 de 14-06-2022
A62: 54 | B62: Nariño | C62: La Llanada | D62: I.E Técnico Agropecuaria Rodrigo Lara Bonilla | E62: Sede Playa Bonita | F62: Oficial | H62: 2022-03-15 | I62: Ejercer control normativo y verificar los actos administrativos de creación o de reconocimiento oficial del EE, legalización de novedades, autorización de jornadas, sedes, ciclos y programas y la aprobación o resignificación del PEI. | K62: Camilo Norato - Fabian Zambrano - Juan Carlos Gómez - Robinson Meneses | L62: Inspeccion y vigilancia | M62: 2022-04-01 | N62: Reconocimiento Oficial de la Sede Playa Bonita, Sede Anexa a la I.E Técnico Agropecuaria Rodrigo Lara Bonilla | O62: Proyección De acto Adminitrativo de Reconocimiento Oficial Sede Playa Bonita | P62: Expedición Resolucion N° 0927 de 01-04-2022
A63: 55 | B63: Nariño | C63: Santacruz | D63: I.E Nuestra Señora De Lourdes | E63: C.E La Tola | F63: Oficial | H63: 2022-03-11 | I63: Ejercer control normativo y verificar los actos administrativos de creación o de reconocimiento oficial del EE, legalización de novedades, autorización de jornadas, sedes, ciclos y programas y la aprobación o resignificación del PEI. | K63: Camilo Norato - Fabian Zambrano - Juan Carlos Gómez - Robinson Meneses | L63: Inspeccion y vigilancia | M63: 2022-04-06 | N63: Reconocimiento Oficial del C.E La Tola, Centro Asiciado a la I.E Nuestra Señora De Lourdes | O63: Proyección De acto Adminitrativo de Reconocimiento Oficial C.E La Tola | P63: Expedición Resolucion N° 1257 de 06-04-2022
A64: 56 | B64: Nariño | C64: Barbacoas | D64: INSTITUCION EDUCATIVA BUENAVISTA | E64: INSTITUCION EDUCATIVA BUENAVISTA | F64: Oficial | H64: 2022-12-20 | I64: Ejercer control normativo y verificar los actos administrativos de creación o de reconocimiento oficial del EE, legalización de novedades, autorización de jornadas, sedes, ciclos y programas y la aprobación o resignificación del PEI. | K64: Silvia Cardenas-Yola Maria Bacca-Oscar Ossa Perez-Ruth Perez-Harold Fernando Ruiz-Maria Betty Cabrera | L64: Inspeccion y Vigilancia | M64: 2022-12-31 | N64: La institución educativa solicita la aprobación de la educación por ciclos, petición radicada con el requerimiento No NAR2022ER011412 del 05/05/2022 | O64: 1. Pendiente realizar visita Insitu para verificar que el establecimiento educativo cuenta con infraestructura,equipos, numero de docentes para prestar el servicio de educación por ciclos. | P64: 1. Pendiente expedición del acto administrativo previo cumplimiento de requisitos.
A65: 57 | B65: Nariño | C65: Cumbal | D65: CENTRO EDUCATIVO LA CADERA | E65: CENTRO EDUCATIVO LA CADERA | F65: Oficial | H65: 2022-12-21 | I65: Ejercer control normativo y verificar los actos administrativos de creación o de reconocimiento oficial del EE, legalización de novedades, autorización de jornadas, sedes, ciclos y programas y la aprobación o resignificación del PEI. | K65: Silvia Cardenas-Yola Maria Bacca-Oscar Ossa Perez-Ruth Perez-Harold Fernando Ruiz-Maria Betty Cabrera | L65: Inspeccion y Vigilancia | M65: 2022-12-31 | N65: El centro educativo solicita se amplie el ciclo de educación media para los grados 10 y 11, petición radicada mediante requerimiento NAR2022ER017824 del 07/07/2022 | O65: Pendiente Realizar visita Insitu para verificar que el establecimiento educativo cuenta con infraestructura,equipos, numero de docentes para prestar el servicio de educación media 10 y 11. | P65: 1. Pendiente expedición del acto administrativo previo cumplimiento de requisitos.
A66: 58
A67: 59
A68: 60
A69: 61
A70: 62
A71: 63
A72: 64
A73: 65
A74: 66
A75: 67
A76: 68
A77: 69
A78: 70
A79: 71
A80: 72
A81: 73
A82: 74
A83: 75
A84: 76
A85: 77
A86: 78
A87: 79
A88: 80
A89: 81
A90: 82
A91: 83
A92: 84
A93: 85
A94: 86
A95: 87
A96: 88
A97: 89
A98: 90
A99: 91
A100: 92
A101: 93
A102: 94
A103: 95
A104: 96
A105: 97
A106: 98
A107: 99
A108: 100
A109: 101
A110: 102
A111: 103
A112: 104
A113: 105
A114: 106
A115: 107
A116: 108
A117: 109
A118: 110
A119: 111
A120: 112
A121: 113
A122: 114
A123: 115
A124: 116
A125: 117
A126: 118
A127: 119
A128: 120
A129: 121
A130: 122
A131: 123
A132: 124
A133: 125
A134: 126
A135: 127
A136: 128
A137: 129
A138: 130
A139: 131
A140: 132
A141: 133
A142: 134
A143: 135
A144: 136
A145: 137
A146: 138
A147: 139
A148: 140
A149: 141
A150: 142
A151: 143
A152: 144
A153: 145
A154: 146
A155: 147
A156: 148
A157: 149
A158: 150
A159: 151
A160: 152
A161: 153
A162: 154
A163: 155
A164: 156
A165: 157
A166: 158
A167: 159
A168: 160
A169: 161
A170: 162
A171: 163
A172: 164
A173: 165
A174: 166
A175: =A174+1 -> 167
A176: 168
A177: 169
A178: 170
A179: 171
A180: 172
A181: 173
A182: 174
A183: 175
A184: 176
A185: 177
A186: 178
A187: 179
A188: 180
A189: 181
A190: 182
A191: 183
A192: 184
A193: 185
A194: 186
A195: 187
A196: 188
A197: 189
A198: 190
A199: 191
A200: 192
A201: 193
A202: 194
... 4806 more rows

Sheet 3. PERSONAL Y JORNADA LABORAL
A1: MATRIZ DE FORMULACIÓN Y SEGUIMIENTO DEL POAIV
A2: Tema | G2: ¿Se ejecutará en 2022? | I2: Si respondió NO, ¿Por qué no se ejecutará? | K2: Número de EE (meta) | M2: Número de EE (logro) | N2: % DE LOGRO DE LA META (LOGRO / META) | O2: Medidas o acciones de mejora implementadas (Decisiones de carácter general tomadas. Actos administrativos: resoluciones, directivas, circulares, etc. Traslados por competencia ordenados a otras entidades u organismos)
A3: PLANTA DE PERSONAL, JORNADA LABORAL Y PERFILES DE DESEMPEÑO | G3: Sí | K3: 1472 | M3: 1472 | N3: =+M3/K3 -> 100% | Q3: =VLOOKUP(A3,Hoja1!Q2:R56,2,0) -> tema3
A4: VISITAS, ACTUACIONES O INTERVENCIONES PROGRAMADAS | M4: RESULTADOS DE LAS ACTUACIONES REALIZADAS -Informes de Ejecución-
A5: NÚMERO DE ORDEN | B5: DEPARTAMENTO | C5: MUNICIPIO | D5: NOMBRE DEL ESTABLECIMIENTO | E5: SEDE ATENDIDA | F5: SECTOR DEL ESTABLECIMIENTO | G5: TIPO DE ESTABLECIMIENTO | H5: FECHA PROGRAMADA | I5: ACTIVIDAD A DESARROLLAR | J5: ¿CUÁL OTRA? | K5: FUNCIONARIO RESPONSABLE | L5: ÁREA | M5: FECHA REAL DE LA ACTUACIÓN | N5: SITUACIÓN ENCONTRADA O ACTUACIÓN REALIZADA | O5: CONCLUSIONES Y/O COMPROMISOS ADQUIRIDOS | P5: ACTIVIDADES DE SEGUIMIENTO Y VERIFICACIÓN
A8: Enumere los EE que serán atendidos en el período. | B8: Incluya el nombre del departamento a la que pertenece el EE objeto de la actuación. | C8: Incluya el nombre del municipio al que pertenece el EE objeto de la actuación. | D8: Identifique el EE priorizado para visitar o para ejecutar otro tipo de actuación según los criterios aplicados para elaborar el POAIV. | E8: Indique el nombre de la sede del EE en donde se ejecutará la visita y/o actuación | F8: Oficial/No oficial | G8: Lista desplegable: Preescolar, básica y media ETDH Educación inicial Educación de adultos Asopadres | H8: Agregue la fecha prevista para la realización de la actuación. | I8: Seleccione la actividad a desarrollar de acuerdo con el tema diligenciado | J8: Si seleccionó la opción OTRA, indique cuál | K8: Incluya los nombres y apellidos de los funcionarios encargados de realizar la actuación. | L8: Incluya el nombre del área de los funcionarios encargados de realizar la actuación. | M8: Indique la fecha real en que se llevó a cabo la visita o actuación. | N8: Haga un resumen sucinto de la situación encontrada o de la actuación realizada en el EE | O8: Relacione las acciones de mejora acordadas o los compromisos adquiridos por el EE y por la SE en aras de resolver la situación tratada. | P8: Informe qué acciones de seguimiento o de verificación ha adelantado la SE para verificar el cumplimiento de los compromisos adquiridos
A9: 1 | B9: Nariño | C9: ALDANA | D9: INSTITUCION EDUCATIVA NUESTRA SEÑORA DEL PILAR SEDE PRINCIPAL | E9: INSTITUCION EDUCATIVA NUESTRA SEÑORA DEL PILAR SEDE PRINCIPAL | F9: Oficial | H9: 2022-01-01 | I9: Verificar la asignación de la planta de personal docente y directivo-docente destinado a los EE Oficiales, teniendo en cuenta el PEI, las relaciones técnicas vigentes y sus perfiles o áreas de desempeño, incluyendo a los profesionales de apoyo. | K9: FRANCISCO JAVIER CHACON VASQUEZ, ISABEL CRISTINA SANTACRUZ LOPEZ- | L9: ADMINISTRATIVA Y FINANCIERA RECURSOS HUMANOS | M9: 2022-05-04 | N9: Una vez ejecutada la verificación de recurso humano y matricula del establecimiento educativo, se logró verificar que el mismo cuenta con una planta docente completa, en ese orden se finiquitó el proceso de estudio de planta y se activó el proceso de reorganización y distribución de carga académica. | O9: Se inicia con el Plan de Asistencia técnica a la entidad territorial de Nariño para la ejecucion de los componentes del plan de fortalecimiento a la gestión del recurso humano de la ETC y definir el plan de trabajo para la vigencia 2022. | P9: La Entidad , esta en proceso que viene desarrollando sobre reorganización de planta según el concepto técnico de modificación de 2021. Se han realizado, conversión de cargos, retiros, traslados y se manifiesta que no se han realizado nombramientos en vacantes definitivas, indicando que los registros encontrados en Planta_T.
A10: =A9+1 -> 2 | B10: Nariño | C10: ALDANA | D10: SEDE 4 ALTO MUESAS | E10: SEDE 4 ALTO MUESAS | F10: Oficial | H10: 2022-01-01 | I10: Verificar la asignación de la planta de personal docente y directivo-docente destinado a los EE Oficiales, teniendo en cuenta el PEI, las relaciones técnicas vigentes y sus perfiles o áreas de desempeño, incluyendo a los profesionales de apoyo. | K10: FRANCISCO JAVIER CHACON VASQUEZ, ISABEL CRISTINA SANTACRUZ LOPEZ- | L10: ADMINISTRATIVA Y FINANCIERA RECURSOS HUMANOS | M10: 2022-05-04 | N10: Una vez ejecutada la verificación de recurso humano y matricula del establecimiento educativo, se logró verificar que el mismo cuenta con una planta docente completa, en ese orden se finiquitó el proceso de estudio de planta y se activó el proceso de reorganización y distribución de carga académica. | O10: Se inicia con el Plan de Asistencia técnica a la entidad territorial de Nariño para la ejecucion de los componentes del plan de fortalecimiento a la gestión del recurso humano de la ETC y definir el plan de trabajo para la vigencia 2022. | P10: La Entidad , esta en proceso que viene desarrollando sobre reorganización de planta según el concepto técnico de modificación de 2021. Se han realizado, conversión de cargos, retiros, traslados y se manifiesta que no se han realizado nombramientos en vacantes definitivas, indicando que los registros encontrados en Planta_T.
A11: =A10+1 -> 3 | B11: Nariño | C11: ALDANA | D11: SEDE 5 MUESAS | E11: SEDE 5 MUESAS | F11: Oficial | H11: 2022-01-01 | I11: Verificar la asignación de la planta de personal docente y directivo-docente destinado a los EE Oficiales, teniendo en cuenta el PEI, las relaciones técnicas vigentes y sus perfiles o áreas de desempeño, incluyendo a los profesionales de apoyo. | K11: FRANCISCO JAVIER CHACON VASQUEZ, ISABEL CRISTINA SANTACRUZ LOPEZ- | L11: ADMINISTRATIVA Y FINANCIERA RECURSOS HUMANOS | M11: 2022-05-04 | N11: Una vez ejecutada la verificación de recurso humano y matricula del establecimiento educativo, se logró verificar que el mismo cuenta con una planta docente completa, en ese orden se finiquitó el proceso de estudio de planta y se activó el proceso de reorganización y distribución de carga académica. | O11: Se inicia con el Plan de Asistencia técnica a la entidad territorial de Nariño para la ejecucion de los componentes del plan de fortalecimiento a la gestión del recurso humano de la ETC y definir el plan de trabajo para la vigencia 2022. | P11: La Entidad , esta en proceso que viene desarrollando sobre reorganización de planta según el concepto técnico de modificación de 2021. Se han realizado, conversión de cargos, retiros, traslados y se manifiesta que no se han realizado nombramientos en vacantes definitivas, indicando que los registros encontrados en Planta_T.
A12: 4 | B12: Nariño | C12: ALDANA | D12: INSTITUCION EDUCATIVA COMERCIAL SAN LUIS SEDE PRINCIPAL | E12: INSTITUCION EDUCATIVA COMERCIAL SAN LUIS SEDE PRINCIPAL | F12: Oficial | H12: 2022-01-01 | I12: Verificar la asignación de la planta de personal docente y directivo-docente destinado a los EE Oficiales, teniendo en cuenta el PEI, las relaciones técnicas vigentes y sus perfiles o áreas de desempeño, incluyendo a los profesionales de apoyo. | K12: FRANCISCO JAVIER CHACON VASQUEZ, ISABEL CRISTINA SANTACRUZ LOPEZ- | L12: ADMINISTRATIVA Y FINANCIERA RECURSOS HUMANOS | M12: 2022-05-04 | N12: Una vez ejecutada la verificación de recurso humano y matricula del establecimiento educativo, se logró verificar que el mismo cuenta con una planta docente completa, en ese orden se finiquitó el proceso de estudio de planta y se activó el proceso de reorganización y distribución de carga académica. | O12: Se inicia con el Plan de Asistencia técnica a la entidad territorial de Nariño para la ejecucion de los componentes del plan de fortalecimiento a la gestión del recurso humano de la ETC y definir el plan de trabajo para la vigencia 2022. | P12: La Entidad , esta en proceso que viene desarrollando sobre reorganización de planta según el concepto técnico de modificación de 2021. Se han realizado, conversión de cargos, retiros, traslados y se manifiesta que no se han realizado nombramientos en vacantes definitivas, indicando que los registros encontrados en Planta_T.
A13: 5 | B13: Nariño | C13: ALDANA | D13: SEDE 3 CENTRO EDUCATIVO GUESPUD | E13: SEDE 3 CENTRO EDUCATIVO GUESPUD | F13: Oficial | H13: 2022-01-01 | I13: Verificar la asignación de la planta de personal docente y directivo-docente destinado a los EE Oficiales, teniendo en cuenta el PEI, las relaciones técnicas vigentes y sus perfiles o áreas de desempeño, incluyendo a los profesionales de apoyo. | K13: FRANCISCO JAVIER CHACON VASQUEZ, ISABEL CRISTINA SANTACRUZ LOPEZ- | L13: ADMINISTRATIVA Y FINANCIERA RECURSOS HUMANOS | M13: 2022-05-04 | N13: Una vez ejecutada la verificación de recurso humano y matricula del establecimiento educativo, se logró verificar que el mismo cuenta con una planta docente completa, en ese orden se finiquitó el proceso de estudio de planta y se activó el proceso de reorganización y distribución de carga académica. | O13: Se inicia con el Plan de Asistencia técnica a la entidad territorial de Nariño para la ejecucion de los componentes del plan de fortalecimiento a la gestión del recurso humano de la ETC y definir el plan de trabajo para la vigencia 2022. | P13: La Entidad , esta en proceso que viene desarrollando sobre reorganización de planta según el concepto técnico de modificación de 2021. Se han realizado, conversión de cargos, retiros, traslados y se manifiesta que no se han realizado nombramientos en vacantes definitivas, indicando que los registros encontrados en Planta_T.
A14: 6 | B14: Nariño | C14: ANCUYÁ | D14: CENTRO EDUCATIVO YANANCHA | E14: CENTRO EDUCATIVO YANANCHA | F14: Oficial | H14: 2022-01-01 | I14: Verificar la asignación de la planta de personal docente y directivo-docente destinado a los EE Oficiales, teniendo en cuenta el PEI, las relaciones técnicas vigentes y sus perfiles o áreas de desempeño, incluyendo a los profesionales de apoyo. | K14: FRANCISCO JAVIER CHACON VASQUEZ, ISABEL CRISTINA SANTACRUZ LOPEZ- | L14: ADMINISTRATIVA Y FINANCIERA RECURSOS HUMANOS | M14: 2022-05-04 | N14: Una vez ejecutada la verificación de recurso humano y matricula del establecimiento educativo, se logró verificar que el mismo cuenta con una planta docente completa, en ese orden se finiquitó el proceso de estudio de planta y se activó el proceso de reorganización y distribución de carga académica. | O14: Se inicia con el Plan de Asistencia técnica a la entidad territorial de Nariño para la ejecucion de los componentes del plan de fortalecimiento a la gestión del recurso humano de la ETC y definir el plan de trabajo para la vigencia 2022. | P14: La Entidad , esta en proceso que viene desarrollando sobre reorganización de planta según el concepto técnico de modificación de 2021. Se han realizado, conversión de cargos, retiros, traslados y se manifiesta que no se han realizado nombramientos en vacantes definitivas, indicando que los registros encontrados en Planta_T.
A15: 7 | B15: Nariño | C15: ANCUYÁ | D15: SEDE 1 INSTITUCIÓN EDUCATIVA SAN FRANCISCO DE ASÍS | E15: SEDE 1 INSTITUCIÓN EDUCATIVA SAN FRANCISCO DE ASÍS | F15: Oficial | H15: 2022-01-01 | I15: Verificar la asignación de la planta de personal docente y directivo-docente destinado a los EE Oficiales, teniendo en cuenta el PEI, las relaciones técnicas vigentes y sus perfiles o áreas de desempeño, incluyendo a los profesionales de apoyo. | K15: FRANCISCO JAVIER CHACON VASQUEZ, ISABEL CRISTINA SANTACRUZ LOPEZ- | L15: ADMINISTRATIVA Y FINANCIERA RECURSOS HUMANOS | M15: 2022-05-04 | N15: Una vez ejecutada la verificación de recurso humano y matricula del establecimiento educativo, se logró verificar que el mismo cuenta con una planta docente completa, en ese orden se finiquitó el proceso de estudio de planta y se activó el proceso de reorganización y distribución de carga académica. | O15: Se inicia con el Plan de Asistencia técnica a la entidad territorial de Nariño para la ejecucion de los componentes del plan de fortalecimiento a la gestión del recurso humano de la ETC y definir el plan de trabajo para la vigencia 2022. | P15: La Entidad , esta en proceso que viene desarrollando sobre reorganización de planta según el concepto técnico de modificación de 2021. Se han realizado, conversión de cargos, retiros, traslados y se manifiesta que no se han realizado nombramientos en vacantes definitivas, indicando que los registros encontrados en Planta_T.
A16: 8 | B16: Nariño | C16: ANCUYÁ | D16: SEDE 5 SAN LUIS | E16: SEDE 5 SAN LUIS | F16: Oficial | H16: 2022-01-01 | I16: Verificar la asignación de la planta de personal docente y directivo-docente destinado a los EE Oficiales, teniendo en cuenta el PEI, las relaciones técnicas vigentes y sus perfiles o áreas de desempeño, incluyendo a los profesionales de apoyo. | K16: FRANCISCO JAVIER CHACON VASQUEZ, ISABEL CRISTINA SANTACRUZ LOPEZ- | L16: ADMINISTRATIVA Y FINANCIERA RECURSOS HUMANOS | M16: 2022-05-04 | N16: Una vez ejecutada la verificación de recurso humano y matricula del establecimiento educativo, se logró verificar que el mismo cuenta con una planta docente completa, en ese orden se finiquitó el proceso de estudio de planta y se activó el proceso de reorganización y distribución de carga académica. | O16: Se inicia con el Plan de Asistencia técnica a la entidad territorial de Nariño para la ejecucion de los componentes del plan de fortalecimiento a la gestión del recurso humano de la ETC y definir el plan de trabajo para la vigencia 2022. | P16: La Entidad , esta en proceso que viene desarrollando sobre reorganización de planta según el concepto técnico de modificación de 2021. Se han realizado, conversión de cargos, retiros, traslados y se manifiesta que no se han realizado nombramientos en vacantes definitivas, indicando que los registros encontrados en Planta_T.
A17: 9 | B17: Nariño | C17: ANCUYÁ | D17: SEDE 6 SAN PEDRO | E17: SEDE 6 SAN PEDRO | F17: Oficial | H17: 2022-01-01 | I17: Verificar la asignación de la planta de personal docente y directivo-docente destinado a los EE Oficiales, teniendo en cuenta el PEI, las relaciones técnicas vigentes y sus perfiles o áreas de desempeño, incluyendo a los profesionales de apoyo. | K17: FRANCISCO JAVIER CHACON VASQUEZ, ISABEL CRISTINA SANTACRUZ LOPEZ- | L17: ADMINISTRATIVA Y FINANCIERA RECURSOS HUMANOS | M17: 2022-05-04 | N17: Una vez ejecutada la verificación de recurso humano y matricula del establecimiento educativo, se logró verificar que el mismo cuenta con una planta docente completa, en ese orden se finiquitó el proceso de estudio de planta y se activó el proceso de reorganización y distribución de carga académica. | O17: Se inicia con el Plan de Asistencia técnica a la entidad territorial de Nariño para la ejecucion de los componentes del plan de fortalecimiento a la gestión del recurso humano de la ETC y definir el plan de trabajo para la vigencia 2022. | P17: La Entidad , esta en proceso que viene desarrollando sobre reorganización de planta según el concepto técnico de modificación de 2021. Se han realizado, conversión de cargos, retiros, traslados y se manifiesta que no se han realizado nombramientos en vacantes definitivas, indicando que los registros encontrados en Planta_T.
A18: 10 | B18: Nariño | C18: ANCUYÁ | D18: SEDE 2 CENTRO EDUCATIVO MARÍA AUXILIADORA | E18: SEDE 2 CENTRO EDUCATIVO MARÍA AUXILIADORA | F18: Oficial | H18: 2022-01-01 | I18: Verificar la asignación de la planta de personal docente y directivo-docente destinado a los EE Oficiales, teniendo en cuenta el PEI, las relaciones técnicas vigentes y sus perfiles o áreas de desempeño, incluyendo a los profesionales de apoyo. | K18: FRANCISCO JAVIER CHACON VASQUEZ, ISABEL CRISTINA SANTACRUZ LOPEZ- | L18: ADMINISTRATIVA Y FINANCIERA RECURSOS HUMANOS | M18: 2022-05-04 | N18: Una vez ejecutada la verificación de recurso humano y matricula del establecimiento educativo, se logró verificar que el mismo cuenta con una planta docente completa, en ese orden se finiquitó el proceso de estudio de planta y se activó el proceso de reorganización y distribución de carga académica. | O18: Se inicia con el Plan de Asistencia técnica a la entidad territorial de Nariño para la ejecucion de los componentes del plan de fortalecimiento a la gestión del recurso humano de la ETC y definir el plan de trabajo para la vigencia 2022. | P18: La Entidad , esta en proceso que viene desarrollando sobre reorganización de planta según el concepto técnico de modificación de 2021. Se han realizado, conversión de cargos, retiros, traslados y se manifiesta que no se han realizado nombramientos en vacantes definitivas, indicando que los registros encontrados en Planta_T.
A19: 11 | B19: Nariño | C19: ANCUYÁ | D19: SEDE 4 COCHA BLANCA | E19: SEDE 4 COCHA BLANCA | F19: Oficial | H19: 2022-01-01 | I19: Verificar la asignación de la planta de personal docente y directivo-docente destinado a los EE Oficiales, teniendo en cuenta el PEI, las relaciones técnicas vigentes y sus perfiles o áreas de desempeño, incluyendo a los profesionales de apoyo. | K19: FRANCISCO JAVIER CHACON VASQUEZ, ISABEL CRISTINA SANTACRUZ LOPEZ- | L19: ADMINISTRATIVA Y FINANCIERA RECURSOS HUMANOS | M19: 2022-05-04 | N19: Una vez ejecutada la verificación de recurso humano y matricula del establecimiento educativo, se logró verificar que el mismo cuenta con una planta docente completa, en ese orden se finiquitó el proceso de estudio de planta y se activó el proceso de reorganización y distribución de carga académica. | O19: Se inicia con el Plan de Asistencia técnica a la entidad territorial de Nariño para la ejecucion de los componentes del plan de fortalecimiento a la gestión del recurso humano de la ETC y definir el plan de trabajo para la vigencia 2022. | P19: La Entidad , esta en proceso que viene desarrollando sobre reorganización de planta según el concepto técnico de modificación de 2021. Se han realizado, conversión de cargos, retiros, traslados y se manifiesta que no se han realizado nombramientos en vacantes definitivas, indicando que los registros encontrados en Planta_T.
A20: 12 | B20: Nariño | C20: ANCUYÁ | D20: SEDE 7 CRUZ DE MAYO | E20: SEDE 7 CRUZ DE MAYO | F20: Oficial | H20: 2022-01-01 | I20: Verificar la asignación de la planta de personal docente y directivo-docente destinado a los EE Oficiales, teniendo en cuenta el PEI, las relaciones técnicas vigentes y sus perfiles o áreas de desempeño, incluyendo a los profesionales de apoyo. | K20: FRANCISCO JAVIER CHACON VASQUEZ, ISABEL CRISTINA SANTACRUZ LOPEZ- | L20: ADMINISTRATIVA Y FINANCIERA RECURSOS HUMANOS | M20: 2022-05-04 | N20: Una vez ejecutada la verificación de recurso humano y matricula del establecimiento educativo, se logró verificar que el mismo cuenta con una planta docente completa, en ese orden se finiquitó el proceso de estudio de planta y se activó el proceso de reorganización y distribución de carga académica. | O20: Se inicia con el Plan de Asistencia técnica a la entidad territorial de Nariño para la ejecucion de los componentes del plan de fortalecimiento a la gestión del recurso humano de la ETC y definir el plan de trabajo para la vigencia 2022. | P20: La Entidad , esta en proceso que viene desarrollando sobre reorganización de planta según el concepto técnico de modificación de 2021. Se han realizado, conversión de cargos, retiros, traslados y se manifiesta que no se han realizado nombramientos en vacantes definitivas, indicando que los registros encontrados en Planta_T.
A21: 13 | B21: Nariño | C21: ANCUYÁ | D21: SEDE 8 EL PLACER | E21: SEDE 8 EL PLACER | F21: Oficial | H21: 2022-01-01 | I21: Verificar la asignación de la planta de personal docente y directivo-docente destinado a los EE Oficiales, teniendo en cuenta el PEI, las relaciones técnicas vigentes y sus perfiles o áreas de desempeño, incluyendo a los profesionales de apoyo. | K21: FRANCISCO JAVIER CHACON VASQUEZ, ISABEL CRISTINA SANTACRUZ LOPEZ- | L21: ADMINISTRATIVA Y FINANCIERA RECURSOS HUMANOS | M21: 2022-05-04 | N21: Una vez ejecutada la verificación de recurso humano y matricula del establecimiento educativo, se logró verificar que el mismo cuenta con una planta docente completa, en ese orden se finiquitó el proceso de estudio de planta y se activó el proceso de reorganización y distribución de carga académica. | O21: Se inicia con el Plan de Asistencia técnica a la entidad territorial de Nariño para la ejecucion de los componentes del plan de fortalecimiento a la gestión del recurso humano de la ETC y definir el plan de trabajo para la vigencia 2022. | P21: La Entidad , esta en proceso que viene desarrollando sobre reorganización de planta según el concepto técnico de modificación de 2021. Se han realizado, conversión de cargos, retiros, traslados y se manifiesta que no se han realizado nombramientos en vacantes definitivas, indicando que los registros encontrados en Planta_T.
A22: 14 | B22: Nariño | C22: ANCUYÁ | D22: SEDE 1 INSTITUCIÓN EDUCATIVA NUESTRA SEÑORA DE LAS LAJAS | E22: SEDE 1 INSTITUCIÓN EDUCATIVA NUESTRA SEÑORA DE LAS LAJAS | F22: Oficial | H22: 2022-01-01 | I22: Verificar la asignación de la planta de personal docente y directivo-docente destinado a los EE Oficiales, teniendo en cuenta el PEI, las relaciones técnicas vigentes y sus perfiles o áreas de desempeño, incluyendo a los profesionales de apoyo. | K22: FRANCISCO JAVIER CHACON VASQUEZ, ISABEL CRISTINA SANTACRUZ LOPEZ- | L22: ADMINISTRATIVA Y FINANCIERA RECURSOS HUMANOS | M22: 2022-05-04 | N22: Una vez ejecutada la verificación de recurso humano y matricula del establecimiento educativo, se logró verificar que el mismo cuenta con una planta docente completa, en ese orden se finiquitó el proceso de estudio de planta y se activó el proceso de reorganización y distribución de carga académica. | O22: Se inicia con el Plan de Asistencia técnica a la entidad territorial de Nariño para la ejecucion de los componentes del plan de fortalecimiento a la gestión del recurso humano de la ETC y definir el plan de trabajo para la vigencia 2022. | P22: La Entidad , esta en proceso que viene desarrollando sobre reorganización de planta según el concepto técnico de modificación de 2021. Se han realizado, conversión de cargos, retiros, traslados y se manifiesta que no se han realizado nombramientos en vacantes definitivas, indicando que los registros encontrados en Planta_T.
A23: 15 | B23: Nariño | C23: ANCUYÁ | D23: SEDE 2 INDO | E23: SEDE 2 INDO | F23: Oficial | H23: 2022-01-01 | I23: Verificar la asignación de la planta de personal docente y directivo-docente destinado a los EE Oficiales, teniendo en cuenta el PEI, las relaciones técnicas vigentes y sus perfiles o áreas de desempeño, incluyendo a los profesionales de apoyo. | K23: FRANCISCO JAVIER CHACON VASQUEZ, ISABEL CRISTINA SANTACRUZ LOPEZ- | L23: ADMINISTRATIVA Y FINANCIERA RECURSOS HUMANOS | M23: 2022-05-04 | N23: Una vez ejecutada la verificación de recurso humano y matricula del establecimiento educativo, se logró verificar que el mismo cuenta con una planta docente completa, en ese orden se finiquitó el proceso de estudio de planta y se activó el proceso de reorganización y distribución de carga académica. | O23: Se inicia con el Plan de Asistencia técnica a la entidad territorial de Nariño para la ejecucion de los componentes del plan de fortalecimiento a la gestión del recurso humano de la ETC y definir el plan de trabajo para la vigencia 2022. | P23: La Entidad , esta en proceso que viene desarrollando sobre reorganización de planta según el concepto técnico de modificación de 2021. Se han realizado, conversión de cargos, retiros, traslados y se manifiesta que no se han realizado nombramientos en vacantes definitivas, indicando que los registros encontrados en Planta_T.
A24: 16 | B24: Nariño | C24: ANCUYÁ | D24: SEDE 3 LA ARADA | E24: SEDE 3 LA ARADA | F24: Oficial | H24: 2022-01-01 | I24: Verificar la asignación de la planta de personal docente y directivo-docente destinado a los EE Oficiales, teniendo en cuenta el PEI, las relaciones técnicas vigentes y sus perfiles o áreas de desempeño, incluyendo a los profesionales de apoyo. | K24: FRANCISCO JAVIER CHACON VASQUEZ, ISABEL CRISTINA SANTACRUZ LOPEZ- | L24: ADMINISTRATIVA Y FINANCIERA RECURSOS HUMANOS | M24: 2022-05-04 | N24: Una vez ejecutada la verificación de recurso humano y matricula del establecimiento educativo, se logró verificar que el mismo cuenta con una planta docente completa, en ese orden se finiquitó el proceso de estudio de planta y se activó el proceso de reorganización y distribución de carga académica. | O24: Se inicia con el Plan de Asistencia técnica a la entidad territorial de Nariño para la ejecucion de los componentes del plan de fortalecimiento a la gestión del recurso humano de la ETC y definir el plan de trabajo para la vigencia 2022. | P24: La Entidad , esta en proceso que viene desarrollando sobre reorganización de planta según el concepto técnico de modificación de 2021. Se han realizado, conversión de cargos, retiros, traslados y se manifiesta que no se han realizado nombramientos en vacantes definitivas, indicando que los registros encontrados en Planta_T.
A25: 17 | B25: Nariño | C25: ANCUYÁ | D25: SEDE 4 EL COLLAL | E25: SEDE 4 EL COLLAL | F25: Oficial | H25: 2022-01-01 | I25: Verificar la asignación de la planta de personal docente y directivo-docente destinado a los EE Oficiales, teniendo en cuenta el PEI, las relaciones técnicas vigentes y sus perfiles o áreas de desempeño, incluyendo a los profesionales de apoyo. | K25: FRANCISCO JAVIER CHACON VASQUEZ, ISABEL CRISTINA SANTACRUZ LOPEZ- | L25: ADMINISTRATIVA Y FINANCIERA RECURSOS HUMANOS | M25: 2022-05-04 | N25: Una vez ejecutada la verificación de recurso humano y matricula del establecimiento educativo, se logró verificar que el mismo cuenta con una planta docente completa, en ese orden se finiquitó el proceso de estudio de planta y se activó el proceso de reorganización y distribución de carga académica. | O25: Se inicia con el Plan de Asistencia técnica a la entidad territorial de Nariño para la ejecucion de los componentes del plan de fortalecimiento a la gestión del recurso humano de la ETC y definir el plan de trabajo para la vigencia 2022. | P25: La Entidad , esta en proceso que viene desarrollando sobre reorganización de planta según el concepto técnico de modificación de 2021. Se han realizado, conversión de cargos, retiros, traslados y se manifiesta que no se han realizado nombramientos en vacantes definitivas, indicando que los registros encontrados en Planta_T.
A26: 18 | B26: Nariño | C26: ARBOLEDA | D26: SEDE 1 INSTITUCIÓN EDUCATIVA DE DESARROLLO RURAL DE BERRUECOS | E26: SEDE 1 INSTITUCIÓN EDUCATIVA DE DESARROLLO RURAL DE BERRUECOS | F26: Oficial | H26: 2022-01-01 | I26: Verificar la asignación de la planta de personal docente y directivo-docente destinado a los EE Oficiales, teniendo en cuenta el PEI, las relaciones técnicas vigentes y sus perfiles o áreas de desempeño, incluyendo a los profesionales de apoyo. | K26: FRANCISCO JAVIER CHACON VASQUEZ, ISABEL CRISTINA SANTACRUZ LOPEZ- | L26: ADMINISTRATIVA Y FINANCIERA RECURSOS HUMANOS | M26: 2022-05-04 | N26: Una vez ejecutada la verificación de recurso humano y matricula del establecimiento educativo, se logró verificar que el mismo cuenta con una planta docente completa, en ese orden se finiquitó el proceso de estudio de planta y se activó el proceso de reorganización y distribución de carga académica. | O26: Se inicia con el Plan de Asistencia técnica a la entidad territorial de Nariño para la ejecucion de los componentes del plan de fortalecimiento a la gestión del recurso humano de la ETC y definir el plan de trabajo para la vigencia 2022. | P26: La Entidad , esta en proceso que viene desarrollando sobre reorganización de planta según el concepto técnico de modificación de 2021. Se han realizado, conversión de cargos, retiros, traslados y se manifiesta que no se han realizado nombramientos en vacantes definitivas, indicando que los registros encontrados en Planta_T.
A27: 19 | B27: Nariño | C27: ARBOLEDA | D27: SEDE 2 SANTO TOMAS DE BERRUECOS | E27: SEDE 2 SANTO TOMAS DE BERRUECOS | F27: Oficial | H27: 2022-01-01 | I27: Verificar la asignación de la planta de personal docente y directivo-docente destinado a los EE Oficiales, teniendo en cuenta el PEI, las relaciones técnicas vigentes y sus perfiles o áreas de desempeño, incluyendo a los profesionales de apoyo. | K27: FRANCISCO JAVIER CHACON VASQUEZ, ISABEL CRISTINA SANTACRUZ LOPEZ- | L27: ADMINISTRATIVA Y FINANCIERA RECURSOS HUMANOS | M27: 2022-05-04 | N27: Una vez ejecutada la verificación de recurso humano y matricula del establecimiento educativo, se logró verificar que el mismo cuenta con una planta docente completa, en ese orden se finiquitó el proceso de estudio de planta y se activó el proceso de reorganización y distribución de carga académica. | O27: Se inicia con el Plan de Asistencia técnica a la entidad territorial de Nariño para la ejecucion de los componentes del plan de fortalecimiento a la gestión del recurso humano de la ETC y definir el plan de trabajo para la vigencia 2022. | P27: La Entidad , esta en proceso que viene desarrollando sobre reorganización de planta según el concepto técnico de modificación de 2021. Se han realizado, conversión de cargos, retiros, traslados y se manifiesta que no se han realizado nombramientos en vacantes definitivas, indicando que los registros encontrados en Planta_T.
A28: 20 | B28: Nariño | C28: ARBOLEDA | D28: SEDE 5 EL PORVENIR | E28: SEDE 5 EL PORVENIR | F28: Oficial | H28: 2022-01-01 | I28: Verificar los perfiles del personal docente vinculado a los establecimientos educativos No Oficiales y garatizar su idoneidad. | K28: FRANCISCO JAVIER CHACON VASQUEZ, ISABEL CRISTINA SANTACRUZ LOPEZ- | L28: ADMINISTRATIVA Y FINANCIERA RECURSOS HUMANOS | M28: 2022-05-04 | N28: Una vez ejecutada la verificación de recurso humano y matricula del establecimiento educativo, se logró verificar que el mismo cuenta con una planta docente completa, en ese orden se finiquitó el proceso de estudio de planta y se activó el proceso de reorganización y distribución de carga académica. | O28: Se inicia con el Plan de Asistencia técnica a la entidad territorial de Nariño para la ejecucion de los componentes del plan de fortalecimiento a la gestión del recurso humano de la ETC y definir el plan de trabajo para la vigencia 2022. | P28: La Entidad , esta en proceso que viene desarrollando sobre reorganización de planta según el concepto técnico de modificación de 2021. Se han realizado, conversión de cargos, retiros, traslados y se manifiesta que no se han realizado nombramientos en vacantes definitivas, indicando que los registros encontrados en Planta_T.
A29: 21 | B29: Nariño | C29: ARBOLEDA | D29: SEDE 1 INSTITUCIÓN EDUCATIVA ROSAFLORIDA | E29: SEDE 1 INSTITUCIÓN EDUCATIVA ROSAFLORIDA | F29: Oficial | H29: 2022-01-01 | I29: Verificar la asignación de la planta de personal docente y directivo-docente destinado a los EE Oficiales, teniendo en cuenta el PEI, las relaciones técnicas vigentes y sus perfiles o áreas de desempeño, incluyendo a los profesionales de apoyo. | K29: FRANCISCO JAVIER CHACON VASQUEZ, ISABEL CRISTINA SANTACRUZ LOPEZ- | L29: ADMINISTRATIVA Y FINANCIERA RECURSOS HUMANOS | M29: 2022-05-04 | N29: Una vez ejecutada la verificación de recurso humano y matricula del establecimiento educativo, se logró verificar que el mismo cuenta con una planta docente completa, en ese orden se finiquitó el proceso de estudio de planta y se activó el proceso de reorganización y distribución de carga académica. | O29: Se inicia con el Plan de Asistencia técnica a la entidad territorial de Nariño para la ejecucion de los componentes del plan de fortalecimiento a la gestión del recurso humano de la ETC y definir el plan de trabajo para la vigencia 2022. | P29: La Entidad , esta en proceso que viene desarrollando sobre reorganización de planta según el concepto técnico de modificación de 2021. Se han realizado, conversión de cargos, retiros, traslados y se manifiesta que no se han realizado nombramientos en vacantes definitivas, indicando que los registros encontrados en Planta_T.
A30: 22 | B30: Nariño | C30: ARBOLEDA | D30: SEDE 2 DE ROSAFLORIDA | E30: SEDE 2 DE ROSAFLORIDA | F30: Oficial | H30: 2022-01-01 | I30: Verificar la asignación de la planta de personal docente y directivo-docente destinado a los EE Oficiales, teniendo en cuenta el PEI, las relaciones técnicas vigentes y sus perfiles o áreas de desempeño, incluyendo a los profesionales de apoyo. | K30: FRANCISCO JAVIER CHACON VASQUEZ, ISABEL CRISTINA SANTACRUZ LOPEZ- | L30: ADMINISTRATIVA Y FINANCIERA RECURSOS HUMANOS | M30: 2022-05-04 | N30: Una vez ejecutada la verificación de recurso humano y matricula del establecimiento educativo, se logró verificar que el mismo cuenta con una planta docente completa, en ese orden se finiquitó el proceso de estudio de planta y se activó el proceso de reorganización y distribución de carga académica. | O30: Se inicia con el Plan de Asistencia técnica a la entidad territorial de Nariño para la ejecucion de los componentes del plan de fortalecimiento a la gestión del recurso humano de la ETC y definir el plan de trabajo para la vigencia 2022. | P30: La Entidad , esta en proceso que viene desarrollando sobre reorganización de planta según el concepto técnico de modificación de 2021. Se han realizado, conversión de cargos, retiros, traslados y se manifiesta que no se han realizado nombramientos en vacantes definitivas, indicando que los registros encontrados en Planta_T.
A31: 23 | B31: Nariño | C31: ARBOLEDA | D31: SEDE 3 PEDREGAL | E31: SEDE 3 PEDREGAL | F31: Oficial | H31: 2022-01-01 | I31: Verificar la asignación de la planta de personal docente y directivo-docente destinado a los EE Oficiales, teniendo en cuenta el PEI, las relaciones técnicas vigentes y sus perfiles o áreas de desempeño, incluyendo a los profesionales de apoyo. | K31: FRANCISCO JAVIER CHACON VASQUEZ, ISABEL CRISTINA SANTACRUZ LOPEZ- | L31: ADMINISTRATIVA Y FINANCIERA RECURSOS HUMANOS | M31: 2022-05-04 | N31: Una vez ejecutada la verificación de recurso humano y matricula del establecimiento educativo, se logró verificar que el mismo cuenta con una planta docente completa, en ese orden se finiquitó el proceso de estudio de planta y se activó el proceso de reorganización y distribución de carga académica. | O31: Se inicia con el Plan de Asistencia técnica a la entidad territorial de Nariño para la ejecucion de los componentes del plan de fortalecimiento a la gestión del recurso humano de la ETC y definir el plan de trabajo para la vigencia 2022. | P31: La Entidad , esta en proceso que viene desarrollando sobre reorganización de planta según el concepto técnico de modificación de 2021. Se han realizado, conversión de cargos, retiros, traslados y se manifiesta que no se han realizado nombramientos en vacantes definitivas, indicando que los registros encontrados en Planta_T.
A32: 24 | B32: Nariño | C32: ARBOLEDA | D32: SEDE 4 LAS PALMAS | E32: SEDE 4 LAS PALMAS | F32: Oficial | H32: 2022-01-01 | I32: Verificar la asignación de la planta de personal docente y directivo-docente destinado a los EE Oficiales, teniendo en cuenta el PEI, las relaciones técnicas vigentes y sus perfiles o áreas de desempeño, incluyendo a los profesionales de apoyo. | K32: FRANCISCO JAVIER CHACON VASQUEZ, ISABEL CRISTINA SANTACRUZ LOPEZ- | L32: ADMINISTRATIVA Y FINANCIERA RECURSOS HUMANOS | M32: 2022-05-04 | N32: Una vez ejecutada la verificación de recurso humano y matricula del establecimiento educativo, se logró verificar que el mismo cuenta con una planta docente completa, en ese orden se finiquitó el proceso de estudio de planta y se activó el proceso de reorganización y distribución de carga académica. | O32: Se inicia con el Plan de Asistencia técnica a la entidad territorial de Nariño para la ejecucion de los componentes del plan de fortalecimiento a la gestión del recurso humano de la ETC y definir el plan de trabajo para la vigencia 2022. | P32: La Entidad , esta en proceso que viene desarrollando sobre reorganización de planta según el concepto técnico de modificación de 2021. Se han realizado, conversión de cargos, retiros, traslados y se manifiesta que no se han realizado nombramientos en vacantes definitivas, indicando que los registros encontrados en Planta_T.
A33: 25 | B33: Nariño | C33: ARBOLEDA | D33: SEDE 5 TIERRAS BLANCAS | E33: SEDE 5 TIERRAS BLANCAS | F33: Oficial | H33: 2022-01-01 | I33: Verificar la asignación de la planta de personal docente y directivo-docente destinado a los EE Oficiales, teniendo en cuenta el PEI, las relaciones técnicas vigentes y sus perfiles o áreas de desempeño, incluyendo a los profesionales de apoyo. | K33: FRANCISCO JAVIER CHACON VASQUEZ, ISABEL CRISTINA SANTACRUZ LOPEZ- | L33: ADMINISTRATIVA Y FINANCIERA RECURSOS HUMANOS | M33: 2022-05-04 | N33: Una vez ejecutada la verificación de recurso humano y matricula del establecimiento educativo, se logró verificar que el mismo cuenta con una planta docente completa, en ese orden se finiquitó el proceso de estudio de planta y se activó el proceso de reorganización y distribución de carga académica. | O33: Se inicia con el Plan de Asistencia técnica a la entidad territorial de Nariño para la ejecucion de los componentes del plan de fortalecimiento a la gestión del recurso humano de la ETC y definir el plan de trabajo para la vigencia 2022. | P33: La Entidad , esta en proceso que viene desarrollando sobre reorganización de planta según el concepto técnico de modificación de 2021. Se han realizado, conversión de cargos, retiros, traslados y se manifiesta que no se han realizado nombramientos en vacantes definitivas, indicando que los registros encontrados en Planta_T.
A34: 26 | B34: Nariño | C34: ARBOLEDA | D34: SEDE 6 EL EMPATE | E34: SEDE 6 EL EMPATE | F34: Oficial | H34: 2022-01-01 | I34: Verificar la asignación de la planta de personal docente y directivo-docente destinado a los EE Oficiales, teniendo en cuenta el PEI, las relaciones técnicas vigentes y sus perfiles o áreas de desempeño, incluyendo a los profesionales de apoyo. | K34: FRANCISCO JAVIER CHACON VASQUEZ, ISABEL CRISTINA SANTACRUZ LOPEZ- | L34: ADMINISTRATIVA Y FINANCIERA RECURSOS HUMANOS | M34: 2022-05-04 | N34: Una vez ejecutada la verificación de recurso humano y matricula del establecimiento educativo, se logró verificar que el mismo cuenta con una planta docente completa, en ese orden se finiquitó el proceso de estudio de planta y se activó el proceso de reorganización y distribución de carga académica. | O34: Se inicia con el Plan de Asistencia técnica a la entidad territorial de Nariño para la ejecucion de los componentes del plan de fortalecimiento a la gestión del recurso humano de la ETC y definir el plan de trabajo para la vigencia 2022. | P34: La Entidad , esta en proceso que viene desarrollando sobre reorganización de planta según el concepto técnico de modificación de 2021. Se han realizado, conversión de cargos, retiros, traslados y se manifiesta que no se han realizado nombramientos en vacantes definitivas, indicando que los registros encontrados en Planta_T.
A35: 27 | B35: Nariño | C35: ARBOLEDA | D35: SEDE 9 SAN JOAQUÍN | E35: SEDE 9 SAN JOAQUÍN | F35: Oficial | H35: 2022-01-01 | I35: Verificar la asignación de la planta de personal docente y directivo-docente destinado a los EE Oficiales, teniendo en cuenta el PEI, las relaciones técnicas vigentes y sus perfiles o áreas de desempeño, incluyendo a los profesionales de apoyo. | K35: FRANCISCO JAVIER CHACON VASQUEZ, ISABEL CRISTINA SANTACRUZ LOPEZ- | L35: ADMINISTRATIVA Y FINANCIERA RECURSOS HUMANOS | M35: 2022-05-04 | N35: Una vez ejecutada la verificación de recurso humano y matricula del establecimiento educativo, se logró verificar que el mismo cuenta con una planta docente completa, en ese orden se finiquitó el proceso de estudio de planta y se activó el proceso de reorganización y distribución de carga académica. | O35: Se inicia con el Plan de Asistencia técnica a la entidad territorial de Nariño para la ejecucion de los componentes del plan de fortalecimiento a la gestión del recurso humano de la ETC y definir el plan de trabajo para la vigencia 2022. | P35: La Entidad , esta en proceso que viene desarrollando sobre reorganización de planta según el concepto técnico de modificación de 2021. Se han realizado, conversión de cargos, retiros, traslados y se manifiesta que no se han realizado nombramientos en vacantes definitivas, indicando que los registros encontrados en Planta_T.
A36: 28 | B36: Nariño | C36: ARBOLEDA | D36: SEDE 10 SAN MIGUEL | E36: SEDE 10 SAN MIGUEL | F36: Oficial | H36: 2022-01-01 | I36: Verificar la asignación de la planta de personal docente y directivo-docente destinado a los EE Oficiales, teniendo en cuenta el PEI, las relaciones técnicas vigentes y sus perfiles o áreas de desempeño, incluyendo a los profesionales de apoyo. | K36: FRANCISCO JAVIER CHACON VASQUEZ, ISABEL CRISTINA SANTACRUZ LOPEZ- | L36: ADMINISTRATIVA Y FINANCIERA RECURSOS HUMANOS | M36: 2022-05-04 | N36: Una vez ejecutada la verificación de recurso humano y matricula del establecimiento educativo, se logró verificar que el mismo cuenta con una planta docente completa, en ese orden se finiquitó el proceso de estudio de planta y se activó el proceso de reorganización y distribución de carga académica. | O36: Se inicia con el Plan de Asistencia técnica a la entidad territorial de Nariño para la ejecucion de los componentes del plan de fortalecimiento a la gestión del recurso humano de la ETC y definir el plan de trabajo para la vigencia 2022. | P36: La Entidad , esta en proceso que viene desarrollando sobre reorganización de planta según el concepto técnico de modificación de 2021. Se han realizado, conversión de cargos, retiros, traslados y se manifiesta que no se han realizado nombramientos en vacantes definitivas, indicando que los registros encontrados en Planta_T.
A37: 29 | B37: Nariño | C37: ARBOLEDA | D37: SEDE 11 SAN PEDRO ALTO | E37: SEDE 11 SAN PEDRO ALTO | F37: Oficial | H37: 2022-01-01 | I37: Verificar la asignación de la planta de personal docente y directivo-docente destinado a los EE Oficiales, teniendo en cuenta el PEI, las relaciones técnicas vigentes y sus perfiles o áreas de desempeño, incluyendo a los profesionales de apoyo. | K37: FRANCISCO JAVIER CHACON VASQUEZ, ISABEL CRISTINA SANTACRUZ LOPEZ- | L37: ADMINISTRATIVA Y FINANCIERA RECURSOS HUMANOS | M37: 2022-05-04 | N37: Una vez ejecutada la verificación de recurso humano y matricula del establecimiento educativo, se logró verificar que el mismo cuenta con una planta docente completa, en ese orden se finiquitó el proceso de estudio de planta y se activó el proceso de reorganización y distribución de carga académica. | O37: Se inicia con el Plan de Asistencia técnica a la entidad territorial de Nariño para la ejecucion de los componentes del plan de fortalecimiento a la gestión del recurso humano de la ETC y definir el plan de trabajo para la vigencia 2022. | P37: La Entidad , esta en proceso que viene desarrollando sobre reorganización de planta según el concepto técnico de modificación de 2021. Se han realizado, conversión de cargos, retiros, traslados y se manifiesta que no se han realizado nombramientos en vacantes definitivas, indicando que los registros encontrados en Planta_T.
A38: 30 | B38: Nariño | C38: ARBOLEDA | D38: SEDE 12 SAN VICENTE | E38: SEDE 12 SAN VICENTE | F38: Oficial | H38: 2022-01-01 | I38: Verificar la asignación de la planta de personal docente y directivo-docente destinado a los EE Oficiales, teniendo en cuenta el PEI, las relaciones técnicas vigentes y sus perfiles o áreas de desempeño, incluyendo a los profesionales de apoyo. | K38: FRANCISCO JAVIER CHACON VASQUEZ, ISABEL CRISTINA SANTACRUZ LOPEZ- | L38: ADMINISTRATIVA Y FINANCIERA RECURSOS HUMANOS | M38: 2022-05-04 | N38: Una vez ejecutada la verificación de recurso humano y matricula del establecimiento educativo, se logró verificar que el mismo cuenta con una planta docente completa, en ese orden se finiquitó el proceso de estudio de planta y se activó el proceso de reorganización y distribución de carga académica. | O38: Se inicia con el Plan de Asistencia técnica a la entidad territorial de Nariño para la ejecucion de los componentes del plan de fortalecimiento a la gestión del recurso humano de la ETC y definir el plan de trabajo para la vigencia 2022. | P38: La Entidad , esta en proceso que viene desarrollando sobre reorganización de planta según el concepto técnico de modificación de 2021. Se han realizado, conversión de cargos, retiros, traslados y se manifiesta que no se han realizado nombramientos en vacantes definitivas, indicando que los registros encontrados en Planta_T.
A39: 31 | B39: Nariño | C39: ARBOLEDA | D39: SEDE 1 INSTITUCIÓN EDUCATIVA ECOLÓGICA LA COCHA | E39: SEDE 1 INSTITUCIÓN EDUCATIVA ECOLÓGICA LA COCHA | F39: Oficial | H39: 2022-01-01 | I39: Verificar la asignación de la planta de personal docente y directivo-docente destinado a los EE Oficiales, teniendo en cuenta el PEI, las relaciones técnicas vigentes y sus perfiles o áreas de desempeño, incluyendo a los profesionales de apoyo. | K39: FRANCISCO JAVIER CHACON VASQUEZ, ISABEL CRISTINA SANTACRUZ LOPEZ- | L39: ADMINISTRATIVA Y FINANCIERA RECURSOS HUMANOS | M39: 2022-05-04 | N39: Una vez ejecutada la verificación de recurso humano y matricula del establecimiento educativo, se logró verificar que el mismo cuenta con una planta docente completa, en ese orden se finiquitó el proceso de estudio de planta y se activó el proceso de reorganización y distribución de carga académica. | O39: Se inicia con el Plan de Asistencia técnica a la entidad territorial de Nariño para la ejecucion de los componentes del plan de fortalecimiento a la gestión del recurso humano de la ETC y definir el plan de trabajo para la vigencia 2022. | P39: La Entidad , esta en proceso que viene desarrollando sobre reorganización de planta según el concepto técnico de modificación de 2021. Se han realizado, conversión de cargos, retiros, traslados y se manifiesta que no se han realizado nombramientos en vacantes definitivas, indicando que los registros encontrados en Planta_T.
A40: 32 | B40: Nariño | C40: ARBOLEDA | D40: SEDE 2 LA COCHA | E40: SEDE 2 LA COCHA | F40: Oficial | H40: 2022-01-01 | I40: Verificar la asignación de la planta de personal docente y directivo-docente destinado a los EE Oficiales, teniendo en cuenta el PEI, las relaciones técnicas vigentes y sus perfiles o áreas de desempeño, incluyendo a los profesionales de apoyo. | K40: FRANCISCO JAVIER CHACON VASQUEZ, ISABEL CRISTINA SANTACRUZ LOPEZ- | L40: ADMINISTRATIVA Y FINANCIERA RECURSOS HUMANOS | M40: 2022-05-04 | N40: Una vez ejecutada la verificación de recurso humano y matricula del establecimiento educativo, se logró verificar que el mismo cuenta con una planta docente completa, en ese orden se finiquitó el proceso de estudio de planta y se activó el proceso de reorganización y distribución de carga académica. | O40: Se inicia con el Plan de Asistencia técnica a la entidad territorial de Nariño para la ejecucion de los componentes del plan de fortalecimiento a la gestión del recurso humano de la ETC y definir el plan de trabajo para la vigencia 2022. | P40: La Entidad , esta en proceso que viene desarrollando sobre reorganización de planta según el concepto técnico de modificación de 2021. Se han realizado, conversión de cargos, retiros, traslados y se manifiesta que no se han realizado nombramientos en vacantes definitivas, indicando que los registros encontrados en Planta_T.
A41: 33 | B41: Nariño | C41: BARBACOAS | D41: ESCUELA ENRIQUE MUÑOZ | E41: ESCUELA ENRIQUE MUÑOZ | F41: Oficial | H41: 2022-01-01 | I41: Verificar la asignación de la planta de personal docente y directivo-docente destinado a los EE Oficiales, teniendo en cuenta el PEI, las relaciones técnicas vigentes y sus perfiles o áreas de desempeño, incluyendo a los profesionales de apoyo. | K41: FRANCISCO JAVIER CHACON VASQUEZ, ISABEL CRISTINA SANTACRUZ LOPEZ- | L41: ADMINISTRATIVA Y FINANCIERA RECURSOS HUMANOS | M41: 2022-05-04 | N41: Una vez ejecutada la verificación de recurso humano y matricula del establecimiento educativo, se logró verificar que el mismo cuenta con una planta docente completa, en ese orden se finiquitó el proceso de estudio de planta y se activó el proceso de reorganización y distribución de carga académica. | O41: Se inicia con el Plan de Asistencia técnica a la entidad territorial de Nariño para la ejecucion de los componentes del plan de fortalecimiento a la gestión del recurso humano de la ETC y definir el plan de trabajo para la vigencia 2022. | P41: La Entidad , esta en proceso que viene desarrollando sobre reorganización de planta según el concepto técnico de modificación de 2021. Se han realizado, conversión de cargos, retiros, traslados y se manifiesta que no se han realizado nombramientos en vacantes definitivas, indicando que los registros encontrados en Planta_T.
A42: 34 | B42: Nariño | C42: BARBACOAS | D42: ESCUELA NIÑO JESUS DE PRAGA N. 1 | E42: ESCUELA NIÑO JESUS DE PRAGA N. 1 | F42: Oficial | H42: 2022-01-01 | I42: Verificar la asignación de la planta de personal docente y directivo-docente destinado a los EE Oficiales, teniendo en cuenta el PEI, las relaciones técnicas vigentes y sus perfiles o áreas de desempeño, incluyendo a los profesionales de apoyo. | K42: FRANCISCO JAVIER CHACON VASQUEZ, ISABEL CRISTINA SANTACRUZ LOPEZ- | L42: ADMINISTRATIVA Y FINANCIERA RECURSOS HUMANOS | M42: 2022-05-04 | N42: Una vez ejecutada la verificación de recurso humano y matricula del establecimiento educativo, se logró verificar que el mismo cuenta con una planta docente completa, en ese orden se finiquitó el proceso de estudio de planta y se activó el proceso de reorganización y distribución de carga académica. | O42: Se inicia con el Plan de Asistencia técnica a la entidad territorial de Nariño para la ejecucion de los componentes del plan de fortalecimiento a la gestión del recurso humano de la ETC y definir el plan de trabajo para la vigencia 2022. | P42: La Entidad , esta en proceso que viene desarrollando sobre reorganización de planta según el concepto técnico de modificación de 2021. Se han realizado, conversión de cargos, retiros, traslados y se manifiesta que no se han realizado nombramientos en vacantes definitivas, indicando que los registros encontrados en Planta_T.
A43: 35 | B43: Nariño | C43: BARBACOAS | D43: ESCUELA CASA DE LA CULTURA | E43: ESCUELA CASA DE LA CULTURA | F43: Oficial | H43: 2022-01-01 | I43: Verificar la asignación de la planta de personal docente y directivo-docente destinado a los EE Oficiales, teniendo en cuenta el PEI, las relaciones técnicas vigentes y sus perfiles o áreas de desempeño, incluyendo a los profesionales de apoyo. | K43: FRANCISCO JAVIER CHACON VASQUEZ, ISABEL CRISTINA SANTACRUZ LOPEZ- | L43: ADMINISTRATIVA Y FINANCIERA RECURSOS HUMANOS | M43: 2022-05-04 | N43: Una vez ejecutada la verificación de recurso humano y matricula del establecimiento educativo, se logró verificar que el mismo cuenta con una planta docente completa, en ese orden se finiquitó el proceso de estudio de planta y se activó el proceso de reorganización y distribución de carga académica. | O43: Se inicia con el Plan de Asistencia técnica a la entidad territorial de Nariño para la ejecucion de los componentes del plan de fortalecimiento a la gestión del recurso humano de la ETC y definir el plan de trabajo para la vigencia 2022. | P43: La Entidad , esta en proceso que viene desarrollando sobre reorganización de planta según el concepto técnico de modificación de 2021. Se han realizado, conversión de cargos, retiros, traslados y se manifiesta que no se han realizado nombramientos en vacantes definitivas, indicando que los registros encontrados en Planta_T.
A44: 36 | B44: Nariño | C44: BARBACOAS | D44: ESCUELA CIUDAD DE BARBACOAS | E44: ESCUELA CIUDAD DE BARBACOAS | F44: Oficial | H44: 2022-01-01 | I44: Verificar la asignación de la planta de personal docente y directivo-docente destinado a los EE Oficiales, teniendo en cuenta el PEI, las relaciones técnicas vigentes y sus perfiles o áreas de desempeño, incluyendo a los profesionales de apoyo. | K44: FRANCISCO JAVIER CHACON VASQUEZ, ISABEL CRISTINA SANTACRUZ LOPEZ- | L44: ADMINISTRATIVA Y FINANCIERA RECURSOS HUMANOS | M44: 2022-05-04 | N44: Una vez ejecutada la verificación de recurso humano y matricula del establecimiento educativo, se logró verificar que el mismo cuenta con una planta docente completa, en ese orden se finiquitó el proceso de estudio de planta y se activó el proceso de reorganización y distribución de carga académica. | O44: Se inicia con el Plan de Asistencia técnica a la entidad territorial de Nariño para la ejecucion de los componentes del plan de fortalecimiento a la gestión del recurso humano de la ETC y definir el plan de trabajo para la vigencia 2022. | P44: La Entidad , esta en proceso que viene desarrollando sobre reorganización de planta según el concepto técnico de modificación de 2021. Se han realizado, conversión de cargos, retiros, traslados y se manifiesta que no se han realizado nombramientos en vacantes definitivas, indicando que los registros encontrados en Planta_T.
A45: 37 | B45: Nariño | C45: BARBACOAS | D45: CENTRO EDUCATIVO PALACIO | E45: CENTRO EDUCATIVO PALACIO | F45: Oficial | H45: 2022-01-01 | I45: Verificar la asignación de la planta de personal docente y directivo-docente destinado a los EE Oficiales, teniendo en cuenta el PEI, las relaciones técnicas vigentes y sus perfiles o áreas de desempeño, incluyendo a los profesionales de apoyo. | K45: FRANCISCO JAVIER CHACON VASQUEZ, ISABEL CRISTINA SANTACRUZ LOPEZ- | L45: ADMINISTRATIVA Y FINANCIERA RECURSOS HUMANOS | M45: 2022-05-04 | N45: Una vez ejecutada la verificación de recurso humano y matricula del establecimiento educativo, se logró verificar que el mismo cuenta con una planta docente completa, en ese orden se finiquitó el proceso de estudio de planta y se activó el proceso de reorganización y distribución de carga académica. | O45: Se inicia con el Plan de Asistencia técnica a la entidad territorial de Nariño para la ejecucion de los componentes del plan de fortalecimiento a la gestión del recurso humano de la ETC y definir el plan de trabajo para la vigencia 2022. | P45: La Entidad , esta en proceso que viene desarrollando sobre reorganización de planta según el concepto técnico de modificación de 2021. Se han realizado, conversión de cargos, retiros, traslados y se manifiesta que no se han realizado nombramientos en vacantes definitivas, indicando que los registros encontrados en Planta_T.
A46: 38 | B46: Nariño | C46: BARBACOAS | D46: CENTRO EDUCATIVO RURAL DE LIMONES | E46: CENTRO EDUCATIVO RURAL DE LIMONES | F46: Oficial | H46: 2022-01-01 | I46: Verificar la asignación de la planta de personal docente y directivo-docente destinado a los EE Oficiales, teniendo en cuenta el PEI, las relaciones técnicas vigentes y sus perfiles o áreas de desempeño, incluyendo a los profesionales de apoyo. | K46: FRANCISCO JAVIER CHACON VASQUEZ, ISABEL CRISTINA SANTACRUZ LOPEZ- | L46: ADMINISTRATIVA Y FINANCIERA RECURSOS HUMANOS | M46: 2022-05-04 | N46: Una vez ejecutada la verificación de recurso humano y matricula del establecimiento educativo, se logró verificar que el mismo cuenta con una planta docente completa, en ese orden se finiquitó el proceso de estudio de planta y se activó el proceso de reorganización y distribución de carga académica. | O46: Se inicia con el Plan de Asistencia técnica a la entidad territorial de Nariño para la ejecucion de los componentes del plan de fortalecimiento a la gestión del recurso humano de la ETC y definir el plan de trabajo para la vigencia 2022. | P46: La Entidad , esta en proceso que viene desarrollando sobre reorganización de planta según el concepto técnico de modificación de 2021. Se han realizado, conversión de cargos, retiros, traslados y se manifiesta que no se han realizado nombramientos en vacantes definitivas, indicando que los registros encontrados en Planta_T.
A47: 39 | B47: Nariño | C47: BARBACOAS | D47: CENTRO EDUCATIVO GERTRUDIS | E47: CENTRO EDUCATIVO GERTRUDIS | F47: Oficial | H47: 2022-01-01 | I47: Verificar la asignación de la planta de personal docente y directivo-docente destinado a los EE Oficiales, teniendo en cuenta el PEI, las relaciones técnicas vigentes y sus perfiles o áreas de desempeño, incluyendo a los profesionales de apoyo. | K47: FRANCISCO JAVIER CHACON VASQUEZ, ISABEL CRISTINA SANTACRUZ LOPEZ- | L47: ADMINISTRATIVA Y FINANCIERA RECURSOS HUMANOS | M47: 2022-05-04 | N47: Una vez ejecutada la verificación de recurso humano y matricula del establecimiento educativo, se logró verificar que el mismo cuenta con una planta docente completa, en ese orden se finiquitó el proceso de estudio de planta y se activó el proceso de reorganización y distribución de carga académica. | O47: Se inicia con el Plan de Asistencia técnica a la entidad territorial de Nariño para la ejecucion de los componentes del plan de fortalecimiento a la gestión del recurso humano de la ETC y definir el plan de trabajo para la vigencia 2022. | P47: La Entidad , esta en proceso que viene desarrollando sobre reorganización de planta según el concepto técnico de modificación de 2021. Se han realizado, conversión de cargos, retiros, traslados y se manifiesta que no se han realizado nombramientos en vacantes definitivas, indicando que los registros encontrados en Planta_T.
A48: 40 | B48: Nariño | C48: BARBACOAS | D48: CENTRO EDUCATIVO DE DIAGUILLO | E48: CENTRO EDUCATIVO DE DIAGUILLO | F48: Oficial | H48: 2022-01-01 | I48: Verificar la asignación de la planta de personal docente y directivo-docente destinado a los EE Oficiales, teniendo en cuenta el PEI, las relaciones técnicas vigentes y sus perfiles o áreas de desempeño, incluyendo a los profesionales de apoyo. | K48: FRANCISCO JAVIER CHACON VASQUEZ, ISABEL CRISTINA SANTACRUZ LOPEZ- | L48: ADMINISTRATIVA Y FINANCIERA RECURSOS HUMANOS | M48: 2022-05-04 | N48: Una vez ejecutada la verificación de recurso humano y matricula del establecimiento educativo, se logró verificar que el mismo cuenta con una planta docente completa, en ese orden se finiquitó el proceso de estudio de planta y se activó el proceso de reorganización y distribución de carga académica. | O48: Se inicia con el Plan de Asistencia técnica a la entidad territorial de Nariño para la ejecucion de los componentes del plan de fortalecimiento a la gestión del recurso humano de la ETC y definir el plan de trabajo para la vigencia 2022. | P48: La Entidad , esta en proceso que viene desarrollando sobre reorganización de planta según el concepto técnico de modificación de 2021. Se han realizado, conversión de cargos, retiros, traslados y se manifiesta que no se han realizado nombramientos en vacantes definitivas, indicando que los registros encontrados en Planta_T.
A49: 41 | B49: Nariño | C49: BARBACOAS | D49: CENTRO EDUCATIVO NAISPI | E49: CENTRO EDUCATIVO NAISPI | F49: Oficial | H49: 2022-01-01 | I49: Verificar la asignación de la planta de personal docente y directivo-docente destinado a los EE Oficiales, teniendo en cuenta el PEI, las relaciones técnicas vigentes y sus perfiles o áreas de desempeño, incluyendo a los profesionales de apoyo. | K49: FRANCISCO JAVIER CHACON VASQUEZ, ISABEL CRISTINA SANTACRUZ LOPEZ- | L49: ADMINISTRATIVA Y FINANCIERA RECURSOS HUMANOS | M49: 2022-05-04 | N49: Una vez ejecutada la verificación de recurso humano y matricula del establecimiento educativo, se logró verificar que el mismo cuenta con una planta docente completa, en ese orden se finiquitó el proceso de estudio de planta y se activó el proceso de reorganización y distribución de carga académica. | O49: Se inicia con el Plan de Asistencia técnica a la entidad territorial de Nariño para la ejecucion de los componentes del plan de fortalecimiento a la gestión del recurso humano de la ETC y definir el plan de trabajo para la vigencia 2022. | P49: La Entidad , esta en proceso que viene desarrollando sobre reorganización de planta según el concepto técnico de modificación de 2021. Se han realizado, conversión de cargos, retiros, traslados y se manifiesta que no se han realizado nombramientos en vacantes definitivas, indicando que los registros encontrados en Planta_T.
A50: 42 | B50: Nariño | C50: BARBACOAS | D50: CENTRO EDUCATIVO EL VIUDO | E50: CENTRO EDUCATIVO EL VIUDO | F50: Oficial | H50: 2022-01-01 | I50: Verificar la asignación de la planta de personal docente y directivo-docente destinado a los EE Oficiales, teniendo en cuenta el PEI, las relaciones técnicas vigentes y sus perfiles o áreas de desempeño, incluyendo a los profesionales de apoyo. | K50: FRANCISCO JAVIER CHACON VASQUEZ, ISABEL CRISTINA SANTACRUZ LOPEZ- | L50: ADMINISTRATIVA Y FINANCIERA RECURSOS HUMANOS | M50: 2022-05-04 | N50: Una vez ejecutada la verificación de recurso humano y matricula del establecimiento educativo, se logró verificar que el mismo cuenta con una planta docente completa, en ese orden se finiquitó el proceso de estudio de planta y se activó el proceso de reorganización y distribución de carga académica. | O50: Se inicia con el Plan de Asistencia técnica a la entidad territorial de Nariño para la ejecucion de los componentes del plan de fortalecimiento a la gestión del recurso humano de la ETC y definir el plan de trabajo para la vigencia 2022. | P50: La Entidad , esta en proceso que viene desarrollando sobre reorganización de planta según el concepto técnico de modificación de 2021. Se han realizado, conversión de cargos, retiros, traslados y se manifiesta que no se han realizado nombramientos en vacantes definitivas, indicando que los registros encontrados en Planta_T.
A51: 43 | B51: Nariño | C51: BARBACOAS | D51: CENTRO EDUCATIVO LA PEÑA - SEDE PRINCIPAL | E51: CENTRO EDUCATIVO LA PEÑA - SEDE PRINCIPAL | F51: Oficial | H51: 2022-01-01 | I51: Verificar la asignación de la planta de personal docente y directivo-docente destinado a los EE Oficiales, teniendo en cuenta el PEI, las relaciones técnicas vigentes y sus perfiles o áreas de desempeño, incluyendo a los profesionales de apoyo. | K51: FRANCISCO JAVIER CHACON VASQUEZ, ISABEL CRISTINA SANTACRUZ LOPEZ- | L51: ADMINISTRATIVA Y FINANCIERA RECURSOS HUMANOS | M51: 2022-05-04 | N51: Una vez ejecutada la verificación de recurso humano y matricula del establecimiento educativo, se logró verificar que el mismo cuenta con una planta docente completa, en ese orden se finiquitó el proceso de estudio de planta y se activó el proceso de reorganización y distribución de carga académica. | O51: Se inicia con el Plan de Asistencia técnica a la entidad territorial de Nariño para la ejecucion de los componentes del plan de fortalecimiento a la gestión del recurso humano de la ETC y definir el plan de trabajo para la vigencia 2022. | P51: La Entidad , esta en proceso que viene desarrollando sobre reorganización de planta según el concepto técnico de modificación de 2021. Se han realizado, conversión de cargos, retiros, traslados y se manifiesta que no se han realizado nombramientos en vacantes definitivas, indicando que los registros encontrados en Planta_T.
A52: 44 | B52: Nariño | C52: BARBACOAS | D52: CENTRO EDUCATIVO MINGOYA | E52: CENTRO EDUCATIVO MINGOYA | F52: Oficial | H52: 2022-01-01 | I52: Verificar la asignación de la planta de personal docente y directivo-docente destinado a los EE Oficiales, teniendo en cuenta el PEI, las relaciones técnicas vigentes y sus perfiles o áreas de desempeño, incluyendo a los profesionales de apoyo. | K52: FRANCISCO JAVIER CHACON VASQUEZ, ISABEL CRISTINA SANTACRUZ LOPEZ- | L52: ADMINISTRATIVA Y FINANCIERA RECURSOS HUMANOS | M52: 2022-05-04 | N52: Una vez ejecutada la verificación de recurso humano y matricula del establecimiento educativo, se logró verificar que el mismo cuenta con una planta docente completa, en ese orden se finiquitó el proceso de estudio de planta y se activó el proceso de reorganización y distribución de carga académica. | O52: Se inicia con el Plan de Asistencia técnica a la entidad territorial de Nariño para la ejecucion de los componentes del plan de fortalecimiento a la gestión del recurso humano de la ETC y definir el plan de trabajo para la vigencia 2022. | P52: La Entidad , esta en proceso que viene desarrollando sobre reorganización de planta según el concepto técnico de modificación de 2021. Se han realizado, conversión de cargos, retiros, traslados y se manifiesta que no se han realizado nombramientos en vacantes definitivas, indicando que los registros encontrados en Planta_T.
A53: 45 | B53: Nariño | C53: BARBACOAS | D53: CENTTRO EDUCATIVO CARTAGUA | E53: CENTTRO EDUCATIVO CARTAGUA | F53: Oficial | H53: 2022-01-01 | I53: Verificar la asignación de la planta de personal docente y directivo-docente destinado a los EE Oficiales, teniendo en cuenta el PEI, las relaciones técnicas vigentes y sus perfiles o áreas de desempeño, incluyendo a los profesionales de apoyo. | K53: FRANCISCO JAVIER CHACON VASQUEZ, ISABEL CRISTINA SANTACRUZ LOPEZ- | L53: ADMINISTRATIVA Y FINANCIERA RECURSOS HUMANOS | M53: 2022-05-04 | N53: Una vez ejecutada la verificación de recurso humano y matricula del establecimiento educativo, se logró verificar que el mismo cuenta con una planta docente completa, en ese orden se finiquitó el proceso de estudio de planta y se activó el proceso de reorganización y distribución de carga académica. | O53: Se inicia con el Plan de Asistencia técnica a la entidad territorial de Nariño para la ejecucion de los componentes del plan de fortalecimiento a la gestión del recurso humano de la ETC y definir el plan de trabajo para la vigencia 2022. | P53: La Entidad , esta en proceso que viene desarrollando sobre reorganización de planta según el concepto técnico de modificación de 2021. Se han realizado, conversión de cargos, retiros, traslados y se manifiesta que no se han realizado nombramientos en vacantes definitivas, indicando que los registros encontrados en Planta_T.
A54: 46 | B54: Nariño | C54: BARBACOAS | D54: CENTRO EDUCATIVO COROZO | E54: CENTRO EDUCATIVO COROZO | F54: Oficial | H54: 2022-01-01 | I54: Verificar la asignación de la planta de personal docente y directivo-docente destinado a los EE Oficiales, teniendo en cuenta el PEI, las relaciones técnicas vigentes y sus perfiles o áreas de desempeño, incluyendo a los profesionales de apoyo. | K54: FRANCISCO JAVIER CHACON VASQUEZ, ISABEL CRISTINA SANTACRUZ LOPEZ- | L54: ADMINISTRATIVA Y FINANCIERA RECURSOS HUMANOS | M54: 2022-05-04 | N54: Una vez ejecutada la verificación de recurso humano y matricula del establecimiento educativo, se logró verificar que el mismo cuenta con una planta docente completa, en ese orden se finiquitó el proceso de estudio de planta y se activó el proceso de reorganización y distribución de carga académica. | O54: Se inicia con el Plan de Asistencia técnica a la entidad territorial de Nariño para la ejecucion de los componentes del plan de fortalecimiento a la gestión del recurso humano de la ETC y definir el plan de trabajo para la vigencia 2022. | P54: La Entidad , esta en proceso que viene desarrollando sobre reorganización de planta según el concepto técnico de modificación de 2021. Se han realizado, conversión de cargos, retiros, traslados y se manifiesta que no se han realizado nombramientos en vacantes definitivas, indicando que los registros encontrados en Planta_T.
A55: 47 | B55: Nariño | C55: BARBACOAS | D55: CENTRO EDUCATIVO SAN FRANCISCO | E55: CENTRO EDUCATIVO SAN FRANCISCO | F55: Oficial | H55: 2022-01-01 | I55: Verificar la asignación de la planta de personal docente y directivo-docente destinado a los EE Oficiales, teniendo en cuenta el PEI, las relaciones técnicas vigentes y sus perfiles o áreas de desempeño, incluyendo a los profesionales de apoyo. | K55: FRANCISCO JAVIER CHACON VASQUEZ, ISABEL CRISTINA SANTACRUZ LOPEZ- | L55: ADMINISTRATIVA Y FINANCIERA RECURSOS HUMANOS | M55: 2022-05-04 | N55: Una vez ejecutada la verificación de recurso humano y matricula del establecimiento educativo, se logró verificar que el mismo cuenta con una planta docente completa, en ese orden se finiquitó el proceso de estudio de planta y se activó el proceso de reorganización y distribución de carga académica. | O55: Se inicia con el Plan de Asistencia técnica a la entidad territorial de Nariño para la ejecucion de los componentes del plan de fortalecimiento a la gestión del recurso humano de la ETC y definir el plan de trabajo para la vigencia 2022. | P55: La Entidad , esta en proceso que viene desarrollando sobre reorganización de planta según el concepto técnico de modificación de 2021. Se han realizado, conversión de cargos, retiros, traslados y se manifiesta que no se han realizado nombramientos en vacantes definitivas, indicando que los registros encontrados en Planta_T.
A56: 48 | B56: Nariño | C56: BARBACOAS | D56: CENTRO EDUCATIVO DE LA SECA | E56: CENTRO EDUCATIVO DE LA SECA | F56: Oficial | H56: 2022-01-01 | I56: Verificar la asignación de la planta de personal docente y directivo-docente destinado a los EE Oficiales, teniendo en cuenta el PEI, las relaciones técnicas vigentes y sus perfiles o áreas de desempeño, incluyendo a los profesionales de apoyo. | K56: FRANCISCO JAVIER CHACON VASQUEZ, ISABEL CRISTINA SANTACRUZ LOPEZ- | L56: ADMINISTRATIVA Y FINANCIERA RECURSOS HUMANOS | M56: 2022-05-04 | N56: Una vez ejecutada la verificación de recurso humano y matricula del establecimiento educativo, se logró verificar que el mismo cuenta con una planta docente completa, en ese orden se finiquitó el proceso de estudio de planta y se activó el proceso de reorganización y distribución de carga académica. | O56: Se inicia con el Plan de Asistencia técnica a la entidad territorial de Nariño para la ejecucion de los componentes del plan de fortalecimiento a la gestión del recurso humano de la ETC y definir el plan de trabajo para la vigencia 2022. | P56: La Entidad , esta en proceso que viene desarrollando sobre reorganización de planta según el concepto técnico de modificación de 2021. Se han realizado, conversión de cargos, retiros, traslados y se manifiesta que no se han realizado nombramientos en vacantes definitivas, indicando que los registros encontrados en Planta_T.
A57: 49 | B57: Nariño | C57: BARBACOAS | D57: CENTRO EDUCATIVO GUADUAL | E57: CENTRO EDUCATIVO GUADUAL | F57: Oficial | H57: 2022-01-01 | I57: Verificar la asignación de la planta de personal docente y directivo-docente destinado a los EE Oficiales, teniendo en cuenta el PEI, las relaciones técnicas vigentes y sus perfiles o áreas de desempeño, incluyendo a los profesionales de apoyo. | K57: FRANCISCO JAVIER CHACON VASQUEZ, ISABEL CRISTINA SANTACRUZ LOPEZ- | L57: ADMINISTRATIVA Y FINANCIERA RECURSOS HUMANOS | M57: 2022-05-04 | N57: Una vez ejecutada la verificación de recurso humano y matricula del establecimiento educativo, se logró verificar que el mismo cuenta con una planta docente completa, en ese orden se finiquitó el proceso de estudio de planta y se activó el proceso de reorganización y distribución de carga académica. | O57: Se inicia con el Plan de Asistencia técnica a la entidad territorial de Nariño para la ejecucion de los componentes del plan de fortalecimiento a la gestión del recurso humano de la ETC y definir el plan de trabajo para la vigencia 2022. | P57: La Entidad , esta en proceso que viene desarrollando sobre reorganización de planta según el concepto técnico de modificación de 2021. Se han realizado, conversión de cargos, retiros, traslados y se manifiesta que no se han realizado nombramientos en vacantes definitivas, indicando que los registros encontrados en Planta_T.
A58: 50 | B58: Nariño | C58: BARBACOAS | D58: CENTRO EDUCATIVO QUEMBI LAS PEÑAS | E58: CENTRO EDUCATIVO QUEMBI LAS PEÑAS | F58: Oficial | H58: 2022-01-01 | I58: Verificar la asignación de la planta de personal docente y directivo-docente destinado a los EE Oficiales, teniendo en cuenta el PEI, las relaciones técnicas vigentes y sus perfiles o áreas de desempeño, incluyendo a los profesionales de apoyo. | K58: FRANCISCO JAVIER CHACON VASQUEZ, ISABEL CRISTINA SANTACRUZ LOPEZ- | L58: ADMINISTRATIVA Y FINANCIERA RECURSOS HUMANOS | M58: 2022-05-04 | N58: Una vez ejecutada la verificación de recurso humano y matricula del establecimiento educativo, se logró verificar que el mismo cuenta con una planta docente completa, en ese orden se finiquitó el proceso de estudio de planta y se activó el proceso de reorganización y distribución de carga académica. | O58: Se inicia con el Plan de Asistencia técnica a la entidad territorial de Nariño para la ejecucion de los componentes del plan de fortalecimiento a la gestión del recurso humano de la ETC y definir el plan de trabajo para la vigencia 2022. | P58: La Entidad , esta en proceso que viene desarrollando sobre reorganización de planta según el concepto técnico de modificación de 2021. Se han realizado, conversión de cargos, retiros, traslados y se manifiesta que no se han realizado nombramientos en vacantes definitivas, indicando que los registros encontrados en Planta_T.
A59: 51 | B59: Nariño | C59: BARBACOAS | D59: CENTRO EDUCATIVO ZAPOTE | E59: CENTRO EDUCATIVO ZAPOTE | F59: Oficial | H59: 2022-01-01 | I59: Verificar la asignación de la planta de personal docente y directivo-docente destinado a los EE Oficiales, teniendo en cuenta el PEI, las relaciones técnicas vigentes y sus perfiles o áreas de desempeño, incluyendo a los profesionales de apoyo. | K59: FRANCISCO JAVIER CHACON VASQUEZ, ISABEL CRISTINA SANTACRUZ LOPEZ- | L59: ADMINISTRATIVA Y FINANCIERA RECURSOS HUMANOS | M59: 2022-05-04 | N59: Una vez ejecutada la verificación de recurso humano y matricula del establecimiento educativo, se logró verificar que el mismo cuenta con una planta docente completa, en ese orden se finiquitó el proceso de estudio de planta y se activó el proceso de reorganización y distribución de carga académica. | O59: Se inicia con el Plan de Asistencia técnica a la entidad territorial de Nariño para la ejecucion de los componentes del plan de fortalecimiento a la gestión del recurso humano de la ETC y definir el plan de trabajo para la vigencia 2022. | P59: La Entidad , esta en proceso que viene desarrollando sobre reorganización de planta según el concepto técnico de modificación de 2021. Se han realizado, conversión de cargos, retiros, traslados y se manifiesta que no se han realizado nombramientos en vacantes definitivas, indicando que los registros encontrados en Planta_T.
A60: 52 | B60: Nariño | C60: BARBACOAS | D60: INSTITUCION EDUCATIVA NORMAL SUPERIOR LA INMACULADA | E60: INSTITUCION EDUCATIVA NORMAL SUPERIOR LA INMACULADA | F60: Oficial | H60: 2022-01-01 | I60: Verificar la asignación de la planta de personal docente y directivo-docente destinado a los EE Oficiales, teniendo en cuenta el PEI, las relaciones técnicas vigentes y sus perfiles o áreas de desempeño, incluyendo a los profesionales de apoyo. | K60: FRANCISCO JAVIER CHACON VASQUEZ, ISABEL CRISTINA SANTACRUZ LOPEZ- | L60: ADMINISTRATIVA Y FINANCIERA RECURSOS HUMANOS | M60: 2022-05-04 | N60: Una vez ejecutada la verificación de recurso humano y matricula del establecimiento educativo, se logró verificar que el mismo cuenta con una planta docente completa, en ese orden se finiquitó el proceso de estudio de planta y se activó el proceso de reorganización y distribución de carga académica. | O60: Se inicia con el Plan de Asistencia técnica a la entidad territorial de Nariño para la ejecucion de los componentes del plan de fortalecimiento a la gestión del recurso humano de la ETC y definir el plan de trabajo para la vigencia 2022. | P60: La Entidad , esta en proceso que viene desarrollando sobre reorganización de planta según el concepto técnico de modificación de 2021. Se han realizado, conversión de cargos, retiros, traslados y se manifiesta que no se han realizado nombramientos en vacantes definitivas, indicando que los registros encontrados en Planta_T.
A61: 53 | B61: Nariño | C61: BARBACOAS | D61: ESCUELA ANEXA A LA NORMAL SUPERIOR LA INMACULADA | E61: ESCUELA ANEXA A LA NORMAL SUPERIOR LA INMACULADA | F61: Oficial | H61: 2022-01-01 | I61: Verificar la asignación de la planta de personal docente y directivo-docente destinado a los EE Oficiales, teniendo en cuenta el PEI, las relaciones técnicas vigentes y sus perfiles o áreas de desempeño, incluyendo a los profesionales de apoyo. | K61: FRANCISCO JAVIER CHACON VASQUEZ, ISABEL CRISTINA SANTACRUZ LOPEZ- | L61: ADMINISTRATIVA Y FINANCIERA RECURSOS HUMANOS | M61: 2022-05-04 | N61: Una vez ejecutada la verificación de recurso humano y matricula del establecimiento educativo, se logró verificar que el mismo cuenta con una planta docente completa, en ese orden se finiquitó el proceso de estudio de planta y se activó el proceso de reorganización y distribución de carga académica. | O61: Se inicia con el Plan de Asistencia técnica a la entidad territorial de Nariño para la ejecucion de los componentes del plan de fortalecimiento a la gestión del recurso humano de la ETC y definir el plan de trabajo para la vigencia 2022. | P61: La Entidad , esta en proceso que viene desarrollando sobre reorganización de planta según el concepto técnico de modificación de 2021. Se han realizado, conversión de cargos, retiros, traslados y se manifiesta que no se han realizado nombramientos en vacantes definitivas, indicando que los registros encontrados en Planta_T.
A62: 54 | B62: Nariño | C62: BARBACOAS | D62: ESCUELA MARCO FIDEL SUARES NO.1 | E62: ESCUELA MARCO FIDEL SUARES NO.1 | F62: Oficial | H62: 2022-01-01 | I62: Verificar la asignación de la planta de personal docente y directivo-docente destinado a los EE Oficiales, teniendo en cuenta el PEI, las relaciones técnicas vigentes y sus perfiles o áreas de desempeño, incluyendo a los profesionales de apoyo. | K62: FRANCISCO JAVIER CHACON VASQUEZ, ISABEL CRISTINA SANTACRUZ LOPEZ- | L62: ADMINISTRATIVA Y FINANCIERA RECURSOS HUMANOS | M62: 2022-05-04 | N62: Una vez ejecutada la verificación de recurso humano y matricula del establecimiento educativo, se logró verificar que el mismo cuenta con una planta docente completa, en ese orden se finiquitó el proceso de estudio de planta y se activó el proceso de reorganización y distribución de carga académica. | O62: Se inicia con el Plan de Asistencia técnica a la entidad territorial de Nariño para la ejecucion de los componentes del plan de fortalecimiento a la gestión del recurso humano de la ETC y definir el plan de trabajo para la vigencia 2022. | P62: La Entidad , esta en proceso que viene desarrollando sobre reorganización de planta según el concepto técnico de modificación de 2021. Se han realizado, conversión de cargos, retiros, traslados y se manifiesta que no se han realizado nombramientos en vacantes definitivas, indicando que los registros encontrados en Planta_T.
A63: 55 | B63: Nariño | C63: BARBACOAS | D63: ESCUELA NIÑO JESUS DE PRAGA NO. 2 | E63: ESCUELA NIÑO JESUS DE PRAGA NO. 2 | F63: Oficial | H63: 2022-01-01 | I63: Verificar la asignación de la planta de personal docente y directivo-docente destinado a los EE Oficiales, teniendo en cuenta el PEI, las relaciones técnicas vigentes y sus perfiles o áreas de desempeño, incluyendo a los profesionales de apoyo. | K63: FRANCISCO JAVIER CHACON VASQUEZ, ISABEL CRISTINA SANTACRUZ LOPEZ- | L63: ADMINISTRATIVA Y FINANCIERA RECURSOS HUMANOS | M63: 2022-05-04 | N63: Una vez ejecutada la verificación de recurso humano y matricula del establecimiento educativo, se logró verificar que el mismo cuenta con una planta docente completa, en ese orden se finiquitó el proceso de estudio de planta y se activó el proceso de reorganización y distribución de carga académica. | O63: Se inicia con el Plan de Asistencia técnica a la entidad territorial de Nariño para la ejecucion de los componentes del plan de fortalecimiento a la gestión del recurso humano de la ETC y definir el plan de trabajo para la vigencia 2022. | P63: La Entidad , esta en proceso que viene desarrollando sobre reorganización de planta según el concepto técnico de modificación de 2021. Se han realizado, conversión de cargos, retiros, traslados y se manifiesta que no se han realizado nombramientos en vacantes definitivas, indicando que los registros encontrados en Planta_T.
A64: 56 | B64: Nariño | C64: BARBACOAS | D64: ESCUELA CONCENTRACION O.A.P.E.C. | E64: ESCUELA CONCENTRACION O.A.P.E.C. | F64: Oficial | H64: 2022-01-01 | I64: Verificar la asignación de la planta de personal docente y directivo-docente destinado a los EE Oficiales, teniendo en cuenta el PEI, las relaciones técnicas vigentes y sus perfiles o áreas de desempeño, incluyendo a los profesionales de apoyo. | K64: FRANCISCO JAVIER CHACON VASQUEZ, ISABEL CRISTINA SANTACRUZ LOPEZ- | L64: ADMINISTRATIVA Y FINANCIERA RECURSOS HUMANOS | M64: 2022-05-04 | N64: Una vez ejecutada la verificación de recurso humano y matricula del establecimiento educativo, se logró verificar que el mismo cuenta con una planta docente completa, en ese orden se finiquitó el proceso de estudio de planta y se activó el proceso de reorganización y distribución de carga académica. | O64: Se inicia con el Plan de Asistencia técnica a la entidad territorial de Nariño para la ejecucion de los componentes del plan de fortalecimiento a la gestión del recurso humano de la ETC y definir el plan de trabajo para la vigencia 2022. | P64: La Entidad , esta en proceso que viene desarrollando sobre reorganización de planta según el concepto técnico de modificación de 2021. Se han realizado, conversión de cargos, retiros, traslados y se manifiesta que no se han realizado nombramientos en vacantes definitivas, indicando que los registros encontrados en Planta_T.
A65: 57 | B65: Nariño | C65: BARBACOAS | D65: CENTRO EDUCATIVO VERGEL | E65: CENTRO EDUCATIVO VERGEL | F65: Oficial | H65: 2022-01-01 | I65: Verificar la asignación de la planta de personal docente y directivo-docente destinado a los EE Oficiales, teniendo en cuenta el PEI, las relaciones técnicas vigentes y sus perfiles o áreas de desempeño, incluyendo a los profesionales de apoyo. | K65: FRANCISCO JAVIER CHACON VASQUEZ, ISABEL CRISTINA SANTACRUZ LOPEZ- | L65: ADMINISTRATIVA Y FINANCIERA RECURSOS HUMANOS | M65: 2022-05-04 | N65: Una vez ejecutada la verificación de recurso humano y matricula del establecimiento educativo, se logró verificar que el mismo cuenta con una planta docente completa, en ese orden se finiquitó el proceso de estudio de planta y se activó el proceso de reorganización y distribución de carga académica. | O65: Se inicia con el Plan de Asistencia técnica a la entidad territorial de Nariño para la ejecucion de los componentes del plan de fortalecimiento a la gestión del recurso humano de la ETC y definir el plan de trabajo para la vigencia 2022. | P65: La Entidad , esta en proceso que viene desarrollando sobre reorganización de planta según el concepto técnico de modificación de 2021. Se han realizado, conversión de cargos, retiros, traslados y se manifiesta que no se han realizado nombramientos en vacantes definitivas, indicando que los registros encontrados en Planta_T.
A66: 58 | B66: Nariño | C66: BARBACOAS | D66: CENTRO EDUCATIVO ÑAMBÍ LA MINA | E66: CENTRO EDUCATIVO ÑAMBÍ LA MINA | F66: Oficial | H66: 2022-01-01 | I66: Verificar la asignación de la planta de personal docente y directivo-docente destinado a los EE Oficiales, teniendo en cuenta el PEI, las relaciones técnicas vigentes y sus perfiles o áreas de desempeño, incluyendo a los profesionales de apoyo. | K66: FRANCISCO JAVIER CHACON VASQUEZ, ISABEL CRISTINA SANTACRUZ LOPEZ- | L66: ADMINISTRATIVA Y FINANCIERA RECURSOS HUMANOS | M66: 2022-05-04 | N66: Una vez ejecutada la verificación de recurso humano y matricula del establecimiento educativo, se logró verificar que el mismo cuenta con una planta docente completa, en ese orden se finiquitó el proceso de estudio de planta y se activó el proceso de reorganización y distribución de carga académica. | O66: Se inicia con el Plan de Asistencia técnica a la entidad territorial de Nariño para la ejecucion de los componentes del plan de fortalecimiento a la gestión del recurso humano de la ETC y definir el plan de trabajo para la vigencia 2022. | P66: La Entidad , esta en proceso que viene desarrollando sobre reorganización de planta según el concepto técnico de modificación de 2021. Se han realizado, conversión de cargos, retiros, traslados y se manifiesta que no se han realizado nombramientos en vacantes definitivas, indicando que los registros encontrados en Planta_T.
A67: 59 | B67: Nariño | C67: BARBACOAS | D67: CENTRO EDUCATIVO PAMBANA | E67: CENTRO EDUCATIVO PAMBANA | F67: Oficial | H67: 2022-01-01 | I67: Verificar la asignación de la planta de personal docente y directivo-docente destinado a los EE Oficiales, teniendo en cuenta el PEI, las relaciones técnicas vigentes y sus perfiles o áreas de desempeño, incluyendo a los profesionales de apoyo. | K67: FRANCISCO JAVIER CHACON VASQUEZ, ISABEL CRISTINA SANTACRUZ LOPEZ- | L67: ADMINISTRATIVA Y FINANCIERA RECURSOS HUMANOS | M67: 2022-05-04 | N67: Una vez ejecutada la verificación de recurso humano y matricula del establecimiento educativo, se logró verificar que el mismo cuenta con una planta docente completa, en ese orden se finiquitó el proceso de estudio de planta y se activó el proceso de reorganización y distribución de carga académica. | O67: Se inicia con el Plan de Asistencia técnica a la entidad territorial de Nariño para la ejecucion de los componentes del plan de fortalecimiento a la gestión del recurso humano de la ETC y definir el plan de trabajo para la vigencia 2022. | P67: La Entidad , esta en proceso que viene desarrollando sobre reorganización de planta según el concepto técnico de modificación de 2021. Se han realizado, conversión de cargos, retiros, traslados y se manifiesta que no se han realizado nombramientos en vacantes definitivas, indicando que los registros encontrados en Planta_T.
A68: 60 | B68: Nariño | C68: BARBACOAS | D68: CENTRO EDUCATIVO LA REPRESA INGUAMBI | E68: CENTRO EDUCATIVO LA REPRESA INGUAMBI | F68: Oficial | H68: 2022-01-01 | I68: Verificar la asignación de la planta de personal docente y directivo-docente destinado a los EE Oficiales, teniendo en cuenta el PEI, las relaciones técnicas vigentes y sus perfiles o áreas de desempeño, incluyendo a los profesionales de apoyo. | K68: FRANCISCO JAVIER CHACON VASQUEZ, ISABEL CRISTINA SANTACRUZ LOPEZ- | L68: ADMINISTRATIVA Y FINANCIERA RECURSOS HUMANOS | M68: 2022-05-04 | N68: Una vez ejecutada la verificación de recurso humano y matricula del establecimiento educativo, se logró verificar que el mismo cuenta con una planta docente completa, en ese orden se finiquitó el proceso de estudio de planta y se activó el proceso de reorganización y distribución de carga académica. | O68: Se inicia con el Plan de Asistencia técnica a la entidad territorial de Nariño para la ejecucion de los componentes del plan de fortalecimiento a la gestión del recurso humano de la ETC y definir el plan de trabajo para la vigencia 2022. | P68: La Entidad , esta en proceso que viene desarrollando sobre reorganización de planta según el concepto técnico de modificación de 2021. Se han realizado, conversión de cargos, retiros, traslados y se manifiesta que no se han realizado nombramientos en vacantes definitivas, indicando que los registros encontrados en Planta_T.
A69: 61 | B69: Nariño | C69: BARBACOAS | D69: CENTRO EDUCATIVO VUELTA INGUAMBI | E69: CENTRO EDUCATIVO VUELTA INGUAMBI | F69: Oficial | H69: 2022-01-01 | I69: Verificar la asignación de la planta de personal docente y directivo-docente destinado a los EE Oficiales, teniendo en cuenta el PEI, las relaciones técnicas vigentes y sus perfiles o áreas de desempeño, incluyendo a los profesionales de apoyo. | K69: FRANCISCO JAVIER CHACON VASQUEZ, ISABEL CRISTINA SANTACRUZ LOPEZ- | L69: ADMINISTRATIVA Y FINANCIERA RECURSOS HUMANOS | M69: 2022-05-04 | N69: Una vez ejecutada la verificación de recurso humano y matricula del establecimiento educativo, se logró verificar que el mismo cuenta con una planta docente completa, en ese orden se finiquitó el proceso de estudio de planta y se activó el proceso de reorganización y distribución de carga académica. | O69: Se inicia con el Plan de Asistencia técnica a la entidad territorial de Nariño para la ejecucion de los componentes del plan de fortalecimiento a la gestión del recurso humano de la ETC y definir el plan de trabajo para la vigencia 2022. | P69: La Entidad , esta en proceso que viene desarrollando sobre reorganización de planta según el concepto técnico de modificación de 2021. Se han realizado, conversión de cargos, retiros, traslados y se manifiesta que no se han realizado nombramientos en vacantes definitivas, indicando que los registros encontrados en Planta_T.
A70: 62 | B70: Nariño | C70: BARBACOAS | D70: CENTRO EDUCATIVO INGUAMBI MACHARE | E70: CENTRO EDUCATIVO INGUAMBI MACHARE | F70: Oficial | H70: 2022-01-01 | I70: Verificar la asignación de la planta de personal docente y directivo-docente destinado a los EE Oficiales, teniendo en cuenta el PEI, las relaciones técnicas vigentes y sus perfiles o áreas de desempeño, incluyendo a los profesionales de apoyo. | K70: FRANCISCO JAVIER CHACON VASQUEZ, ISABEL CRISTINA SANTACRUZ LOPEZ- | L70: ADMINISTRATIVA Y FINANCIERA RECURSOS HUMANOS | M70: 2022-05-04 | N70: Una vez ejecutada la verificación de recurso humano y matricula del establecimiento educativo, se logró verificar que el mismo cuenta con una planta docente completa, en ese orden se finiquitó el proceso de estudio de planta y se activó el proceso de reorganización y distribución de carga académica. | O70: Se inicia con el Plan de Asistencia técnica a la entidad territorial de Nariño para la ejecucion de los componentes del plan de fortalecimiento a la gestión del recurso humano de la ETC y definir el plan de trabajo para la vigencia 2022. | P70: La Entidad , esta en proceso que viene desarrollando sobre reorganización de planta según el concepto técnico de modificación de 2021. Se han realizado, conversión de cargos, retiros, traslados y se manifiesta que no se han realizado nombramientos en vacantes definitivas, indicando que los registros encontrados en Planta_T.
A71: 63 | B71: Nariño | C71: BARBACOAS | D71: SEDE NOMBRE DE DIOS | E71: SEDE NOMBRE DE DIOS | F71: Oficial | H71: 2022-01-01 | I71: Verificar la asignación de la planta de personal docente y directivo-docente destinado a los EE Oficiales, teniendo en cuenta el PEI, las relaciones técnicas vigentes y sus perfiles o áreas de desempeño, incluyendo a los profesionales de apoyo. | K71: FRANCISCO JAVIER CHACON VASQUEZ, ISABEL CRISTINA SANTACRUZ LOPEZ- | L71: ADMINISTRATIVA Y FINANCIERA RECURSOS HUMANOS | M71: 2022-05-04 | N71: Una vez ejecutada la verificación de recurso humano y matricula del establecimiento educativo, se logró verificar que el mismo cuenta con una planta docente completa, en ese orden se finiquitó el proceso de estudio de planta y se activó el proceso de reorganización y distribución de carga académica. | O71: Se inicia con el Plan de Asistencia técnica a la entidad territorial de Nariño para la ejecucion de los componentes del plan de fortalecimiento a la gestión del recurso humano de la ETC y definir el plan de trabajo para la vigencia 2022. | P71: La Entidad , esta en proceso que viene desarrollando sobre reorganización de planta según el concepto técnico de modificación de 2021. Se han realizado, conversión de cargos, retiros, traslados y se manifiesta que no se han realizado nombramientos en vacantes definitivas, indicando que los registros encontrados en Planta_T.
A72: 64 | B72: Nariño | C72: BARBACOAS | D72: SEDE LA MINA | E72: SEDE LA MINA | F72: Oficial | H72: 2022-01-01 | I72: Verificar la asignación de la planta de personal docente y directivo-docente destinado a los EE Oficiales, teniendo en cuenta el PEI, las relaciones técnicas vigentes y sus perfiles o áreas de desempeño, incluyendo a los profesionales de apoyo. | K72: FRANCISCO JAVIER CHACON VASQUEZ, ISABEL CRISTINA SANTACRUZ LOPEZ- | L72: ADMINISTRATIVA Y FINANCIERA RECURSOS HUMANOS | M72: 2022-05-04 | N72: Una vez ejecutada la verificación de recurso humano y matricula del establecimiento educativo, se logró verificar que el mismo cuenta con una planta docente completa, en ese orden se finiquitó el proceso de estudio de planta y se activó el proceso de reorganización y distribución de carga académica. | O72: Se inicia con el Plan de Asistencia técnica a la entidad territorial de Nariño para la ejecucion de los componentes del plan de fortalecimiento a la gestión del recurso humano de la ETC y definir el plan de trabajo para la vigencia 2022. | P72: La Entidad , esta en proceso que viene desarrollando sobre reorganización de planta según el concepto técnico de modificación de 2021. Se han realizado, conversión de cargos, retiros, traslados y se manifiesta que no se han realizado nombramientos en vacantes definitivas, indicando que los registros encontrados en Planta_T.
A73: 65 | B73: Nariño | C73: BARBACOAS | D73: CENTRO EDUCATIVA PALI | E73: CENTRO EDUCATIVA PALI | F73: Oficial | H73: 2022-01-01 | I73: Verificar la asignación de la planta de personal docente y directivo-docente destinado a los EE Oficiales, teniendo en cuenta el PEI, las relaciones técnicas vigentes y sus perfiles o áreas de desempeño, incluyendo a los profesionales de apoyo. | K73: FRANCISCO JAVIER CHACON VASQUEZ, ISABEL CRISTINA SANTACRUZ LOPEZ- | L73: ADMINISTRATIVA Y FINANCIERA RECURSOS HUMANOS | M73: 2022-05-04 | N73: Una vez ejecutada la verificación de recurso humano y matricula del establecimiento educativo, se logró verificar que el mismo cuenta con una planta docente completa, en ese orden se finiquitó el proceso de estudio de planta y se activó el proceso de reorganización y distribución de carga académica. | O73: Se inicia con el Plan de Asistencia técnica a la entidad territorial de Nariño para la ejecucion de los componentes del plan de fortalecimiento a la gestión del recurso humano de la ETC y definir el plan de trabajo para la vigencia 2022. | P73: La Entidad , esta en proceso que viene desarrollando sobre reorganización de planta según el concepto técnico de modificación de 2021. Se han realizado, conversión de cargos, retiros, traslados y se manifiesta que no se han realizado nombramientos en vacantes definitivas, indicando que los registros encontrados en Planta_T.
A74: 66 | B74: Nariño | C74: BARBACOAS | D74: SEDE 1 INSTITUCIÓN EDUCATIVA TERAIMBE | E74: SEDE 1 INSTITUCIÓN EDUCATIVA TERAIMBE | F74: Oficial | H74: 2022-01-01 | I74: Verificar la asignación de la planta de personal docente y directivo-docente destinado a los EE Oficiales, teniendo en cuenta el PEI, las relaciones técnicas vigentes y sus perfiles o áreas de desempeño, incluyendo a los profesionales de apoyo. | K74: FRANCISCO JAVIER CHACON VASQUEZ, ISABEL CRISTINA SANTACRUZ LOPEZ- | L74: ADMINISTRATIVA Y FINANCIERA RECURSOS HUMANOS | M74: 2022-05-04 | N74: Una vez ejecutada la verificación de recurso humano y matricula del establecimiento educativo, se logró verificar que el mismo cuenta con una planta docente completa, en ese orden se finiquitó el proceso de estudio de planta y se activó el proceso de reorganización y distribución de carga académica. | O74: Se inicia con el Plan de Asistencia técnica a la entidad territorial de Nariño para la ejecucion de los componentes del plan de fortalecimiento a la gestión del recurso humano de la ETC y definir el plan de trabajo para la vigencia 2022. | P74: La Entidad , esta en proceso que viene desarrollando sobre reorganización de planta según el concepto técnico de modificación de 2021. Se han realizado, conversión de cargos, retiros, traslados y se manifiesta que no se han realizado nombramientos en vacantes definitivas, indicando que los registros encontrados en Planta_T.
A75: 67 | B75: Nariño | C75: BARBACOAS | D75: SEDE 2 BOMBÓN | E75: SEDE 2 BOMBÓN | F75: Oficial | H75: 2022-01-01 | I75: Verificar la asignación de la planta de personal docente y directivo-docente destinado a los EE Oficiales, teniendo en cuenta el PEI, las relaciones técnicas vigentes y sus perfiles o áreas de desempeño, incluyendo a los profesionales de apoyo. | K75: FRANCISCO JAVIER CHACON VASQUEZ, ISABEL CRISTINA SANTACRUZ LOPEZ- | L75: ADMINISTRATIVA Y FINANCIERA RECURSOS HUMANOS | M75: 2022-05-04 | N75: Una vez ejecutada la verificación de recurso humano y matricula del establecimiento educativo, se logró verificar que el mismo cuenta con una planta docente completa, en ese orden se finiquitó el proceso de estudio de planta y se activó el proceso de reorganización y distribución de carga académica. | O75: Se inicia con el Plan de Asistencia técnica a la entidad territorial de Nariño para la ejecucion de los componentes del plan de fortalecimiento a la gestión del recurso humano de la ETC y definir el plan de trabajo para la vigencia 2022. | P75: La Entidad , esta en proceso que viene desarrollando sobre reorganización de planta según el concepto técnico de modificación de 2021. Se han realizado, conversión de cargos, retiros, traslados y se manifiesta que no se han realizado nombramientos en vacantes definitivas, indicando que los registros encontrados en Planta_T.
A76: 68 | B76: Nariño | C76: BARBACOAS | D76: SEDE 3 MONGON | E76: SEDE 3 MONGON | F76: Oficial | H76: 2022-01-01 | I76: Verificar la asignación de la planta de personal docente y directivo-docente destinado a los EE Oficiales, teniendo en cuenta el PEI, las relaciones técnicas vigentes y sus perfiles o áreas de desempeño, incluyendo a los profesionales de apoyo. | K76: FRANCISCO JAVIER CHACON VASQUEZ, ISABEL CRISTINA SANTACRUZ LOPEZ- | L76: ADMINISTRATIVA Y FINANCIERA RECURSOS HUMANOS | M76: 2022-05-04 | N76: Una vez ejecutada la verificación de recurso humano y matricula del establecimiento educativo, se logró verificar que el mismo cuenta con una planta docente completa, en ese orden se finiquitó el proceso de estudio de planta y se activó el proceso de reorganización y distribución de carga académica. | O76: Se inicia con el Plan de Asistencia técnica a la entidad territorial de Nariño para la ejecucion de los componentes del plan de fortalecimiento a la gestión del recurso humano de la ETC y definir el plan de trabajo para la vigencia 2022. | P76: La Entidad , esta en proceso que viene desarrollando sobre reorganización de planta según el concepto técnico de modificación de 2021. Se han realizado, conversión de cargos, retiros, traslados y se manifiesta que no se han realizado nombramientos en vacantes definitivas, indicando que los registros encontrados en Planta_T.
A77: 69 | B77: Nariño | C77: BARBACOAS | D77: SEDE 4 ARENAL | E77: SEDE 4 ARENAL | F77: Oficial | H77: 2022-01-01 | I77: Verificar la asignación de la planta de personal docente y directivo-docente destinado a los EE Oficiales, teniendo en cuenta el PEI, las relaciones técnicas vigentes y sus perfiles o áreas de desempeño, incluyendo a los profesionales de apoyo. | K77: FRANCISCO JAVIER CHACON VASQUEZ, ISABEL CRISTINA SANTACRUZ LOPEZ- | L77: ADMINISTRATIVA Y FINANCIERA RECURSOS HUMANOS | M77: 2022-05-04 | N77: Una vez ejecutada la verificación de recurso humano y matricula del establecimiento educativo, se logró verificar que el mismo cuenta con una planta docente completa, en ese orden se finiquitó el proceso de estudio de planta y se activó el proceso de reorganización y distribución de carga académica. | O77: Se inicia con el Plan de Asistencia técnica a la entidad territorial de Nariño para la ejecucion de los componentes del plan de fortalecimiento a la gestión del recurso humano de la ETC y definir el plan de trabajo para la vigencia 2022. | P77: La Entidad , esta en proceso que viene desarrollando sobre reorganización de planta según el concepto técnico de modificación de 2021. Se han realizado, conversión de cargos, retiros, traslados y se manifiesta que no se han realizado nombramientos en vacantes definitivas, indicando que los registros encontrados en Planta_T.
A78: 70 | B78: Nariño | C78: BARBACOAS | D78: SEDE 5 BARRO BLANCO | E78: SEDE 5 BARRO BLANCO | F78: Oficial | H78: 2022-01-01 | I78: Verificar la asignación de la planta de personal docente y directivo-docente destinado a los EE Oficiales, teniendo en cuenta el PEI, las relaciones técnicas vigentes y sus perfiles o áreas de desempeño, incluyendo a los profesionales de apoyo. | K78: FRANCISCO JAVIER CHACON VASQUEZ, ISABEL CRISTINA SANTACRUZ LOPEZ- | L78: ADMINISTRATIVA Y FINANCIERA RECURSOS HUMANOS | M78: 2022-05-04 | N78: Una vez ejecutada la verificación de recurso humano y matricula del establecimiento educativo, se logró verificar que el mismo cuenta con una planta docente completa, en ese orden se finiquitó el proceso de estudio de planta y se activó el proceso de reorganización y distribución de carga académica. | O78: Se inicia con el Plan de Asistencia técnica a la entidad territorial de Nariño para la ejecucion de los componentes del plan de fortalecimiento a la gestión del recurso humano de la ETC y definir el plan de trabajo para la vigencia 2022. | P78: La Entidad , esta en proceso que viene desarrollando sobre reorganización de planta según el concepto técnico de modificación de 2021. Se han realizado, conversión de cargos, retiros, traslados y se manifiesta que no se han realizado nombramientos en vacantes definitivas, indicando que los registros encontrados en Planta_T.
A79: 71 | B79: Nariño | C79: BARBACOAS | D79: SEDE 6 CUMAINDE PASO | E79: SEDE 6 CUMAINDE PASO | F79: Oficial | H79: 2022-01-01 | I79: Verificar la asignación de la planta de personal docente y directivo-docente destinado a los EE Oficiales, teniendo en cuenta el PEI, las relaciones técnicas vigentes y sus perfiles o áreas de desempeño, incluyendo a los profesionales de apoyo. | K79: FRANCISCO JAVIER CHACON VASQUEZ, ISABEL CRISTINA SANTACRUZ LOPEZ- | L79: ADMINISTRATIVA Y FINANCIERA RECURSOS HUMANOS | M79: 2022-05-04 | N79: Una vez ejecutada la verificación de recurso humano y matricula del establecimiento educativo, se logró verificar que el mismo cuenta con una planta docente completa, en ese orden se finiquitó el proceso de estudio de planta y se activó el proceso de reorganización y distribución de carga académica. | O79: Se inicia con el Plan de Asistencia técnica a la entidad territorial de Nariño para la ejecucion de los componentes del plan de fortalecimiento a la gestión del recurso humano de la ETC y definir el plan de trabajo para la vigencia 2022. | P79: La Entidad , esta en proceso que viene desarrollando sobre reorganización de planta según el concepto técnico de modificación de 2021. Se han realizado, conversión de cargos, retiros, traslados y se manifiesta que no se han realizado nombramientos en vacantes definitivas, indicando que los registros encontrados en Planta_T.
A80: 72 | B80: Nariño | C80: BARBACOAS | D80: SEDE 7 PAINANDA | E80: SEDE 7 PAINANDA | F80: Oficial | H80: 2022-01-01 | I80: Verificar la asignación de la planta de personal docente y directivo-docente destinado a los EE Oficiales, teniendo en cuenta el PEI, las relaciones técnicas vigentes y sus perfiles o áreas de desempeño, incluyendo a los profesionales de apoyo. | K80: FRANCISCO JAVIER CHACON VASQUEZ, ISABEL CRISTINA SANTACRUZ LOPEZ- | L80: ADMINISTRATIVA Y FINANCIERA RECURSOS HUMANOS | M80: 2022-05-04 | N80: Una vez ejecutada la verificación de recurso humano y matricula del establecimiento educativo, se logró verificar que el mismo cuenta con una planta docente completa, en ese orden se finiquitó el proceso de estudio de planta y se activó el proceso de reorganización y distribución de carga académica. | O80: Se inicia con el Plan de Asistencia técnica a la entidad territorial de Nariño para la ejecucion de los componentes del plan de fortalecimiento a la gestión del recurso humano de la ETC y definir el plan de trabajo para la vigencia 2022. | P80: La Entidad , esta en proceso que viene desarrollando sobre reorganización de planta según el concepto técnico de modificación de 2021. Se han realizado, conversión de cargos, retiros, traslados y se manifiesta que no se han realizado nombramientos en vacantes definitivas, indicando que los registros encontrados en Planta_T.
A81: 73 | B81: Nariño | C81: BARBACOAS | D81: SEDE 8 CUMAINDE LA BOCANA | E81: SEDE 8 CUMAINDE LA BOCANA | F81: Oficial | H81: 2022-01-01 | I81: Verificar la asignación de la planta de personal docente y directivo-docente destinado a los EE Oficiales, teniendo en cuenta el PEI, las relaciones técnicas vigentes y sus perfiles o áreas de desempeño, incluyendo a los profesionales de apoyo. | K81: FRANCISCO JAVIER CHACON VASQUEZ, ISABEL CRISTINA SANTACRUZ LOPEZ- | L81: ADMINISTRATIVA Y FINANCIERA RECURSOS HUMANOS | M81: 2022-05-04 | N81: Una vez ejecutada la verificación de recurso humano y matricula del establecimiento educativo, se logró verificar que el mismo cuenta con una planta docente completa, en ese orden se finiquitó el proceso de estudio de planta y se activó el proceso de reorganización y distribución de carga académica. | O81: Se inicia con el Plan de Asistencia técnica a la entidad territorial de Nariño para la ejecucion de los componentes del plan de fortalecimiento a la gestión del recurso humano de la ETC y definir el plan de trabajo para la vigencia 2022. | P81: La Entidad , esta en proceso que viene desarrollando sobre reorganización de planta según el concepto técnico de modificación de 2021. Se han realizado, conversión de cargos, retiros, traslados y se manifiesta que no se han realizado nombramientos en vacantes definitivas, indicando que los registros encontrados en Planta_T.
A82: 74 | B82: Nariño | C82: BARBACOAS | D82: SEDE 9 CUMAINDE | E82: SEDE 9 CUMAINDE | F82: Oficial | H82: 2022-01-01 | I82: Verificar la asignación de la planta de personal docente y directivo-docente destinado a los EE Oficiales, teniendo en cuenta el PEI, las relaciones técnicas vigentes y sus perfiles o áreas de desempeño, incluyendo a los profesionales de apoyo. | K82: FRANCISCO JAVIER CHACON VASQUEZ, ISABEL CRISTINA SANTACRUZ LOPEZ- | L82: ADMINISTRATIVA Y FINANCIERA RECURSOS HUMANOS | M82: 2022-05-04 | N82: Una vez ejecutada la verificación de recurso humano y matricula del establecimiento educativo, se logró verificar que el mismo cuenta con una planta docente completa, en ese orden se finiquitó el proceso de estudio de planta y se activó el proceso de reorganización y distribución de carga académica. | O82: Se inicia con el Plan de Asistencia técnica a la entidad territorial de Nariño para la ejecucion de los componentes del plan de fortalecimiento a la gestión del recurso humano de la ETC y definir el plan de trabajo para la vigencia 2022. | P82: La Entidad , esta en proceso que viene desarrollando sobre reorganización de planta según el concepto técnico de modificación de 2021. Se han realizado, conversión de cargos, retiros, traslados y se manifiesta que no se han realizado nombramientos en vacantes definitivas, indicando que los registros encontrados en Planta_T.
A83: 75 | B83: Nariño | C83: BARBACOAS | D83: SEDE 1 INSTITUCIÓN EDUCATIVA SANTA TERESITA DE ALTAQUER | E83: SEDE 1 INSTITUCIÓN EDUCATIVA SANTA TERESITA DE ALTAQUER | F83: Oficial | H83: 2022-01-01 | I83: Verificar la asignación de la planta de personal docente y directivo-docente destinado a los EE Oficiales, teniendo en cuenta el PEI, las relaciones técnicas vigentes y sus perfiles o áreas de desempeño, incluyendo a los profesionales de apoyo. | K83: FRANCISCO JAVIER CHACON VASQUEZ, ISABEL CRISTINA SANTACRUZ LOPEZ- | L83: ADMINISTRATIVA Y FINANCIERA RECURSOS HUMANOS | M83: 2022-05-04 | N83: Una vez ejecutada la verificación de recurso humano y matricula del establecimiento educativo, se logró verificar que el mismo cuenta con una planta docente completa, en ese orden se finiquitó el proceso de estudio de planta y se activó el proceso de reorganización y distribución de carga académica. | O83: Se inicia con el Plan de Asistencia técnica a la entidad territorial de Nariño para la ejecucion de los componentes del plan de fortalecimiento a la gestión del recurso humano de la ETC y definir el plan de trabajo para la vigencia 2022. | P83: La Entidad , esta en proceso que viene desarrollando sobre reorganización de planta según el concepto técnico de modificación de 2021. Se han realizado, conversión de cargos, retiros, traslados y se manifiesta que no se han realizado nombramientos en vacantes definitivas, indicando que los registros encontrados en Planta_T.
A84: 76 | B84: Nariño | C84: BARBACOAS | D84: SEDE 2 ESCUELA RURAL MIXTA INTEGRADA DE ALTAQUER | E84: SEDE 2 ESCUELA RURAL MIXTA INTEGRADA DE ALTAQUER | F84: Oficial | H84: 2022-01-01 | I84: Verificar la asignación de la planta de personal docente y directivo-docente destinado a los EE Oficiales, teniendo en cuenta el PEI, las relaciones técnicas vigentes y sus perfiles o áreas de desempeño, incluyendo a los profesionales de apoyo. | K84: FRANCISCO JAVIER CHACON VASQUEZ, ISABEL CRISTINA SANTACRUZ LOPEZ- | L84: ADMINISTRATIVA Y FINANCIERA RECURSOS HUMANOS | M84: 2022-05-04 | N84: Una vez ejecutada la verificación de recurso humano y matricula del establecimiento educativo, se logró verificar que el mismo cuenta con una planta docente completa, en ese orden se finiquitó el proceso de estudio de planta y se activó el proceso de reorganización y distribución de carga académica. | O84: Se inicia con el Plan de Asistencia técnica a la entidad territorial de Nariño para la ejecucion de los componentes del plan de fortalecimiento a la gestión del recurso humano de la ETC y definir el plan de trabajo para la vigencia 2022. | P84: La Entidad , esta en proceso que viene desarrollando sobre reorganización de planta según el concepto técnico de modificación de 2021. Se han realizado, conversión de cargos, retiros, traslados y se manifiesta que no se han realizado nombramientos en vacantes definitivas, indicando que los registros encontrados en Planta_T.
A85: 77 | B85: Nariño | C85: BARBACOAS | D85: SEDE 3 NEMBI | E85: SEDE 3 NEMBI | F85: Oficial | H85: 2022-01-01 | I85: Verificar la asignación de la planta de personal docente y directivo-docente destinado a los EE Oficiales, teniendo en cuenta el PEI, las relaciones técnicas vigentes y sus perfiles o áreas de desempeño, incluyendo a los profesionales de apoyo. | K85: FRANCISCO JAVIER CHACON VASQUEZ, ISABEL CRISTINA SANTACRUZ LOPEZ- | L85: ADMINISTRATIVA Y FINANCIERA RECURSOS HUMANOS | M85: 2022-05-04 | N85: Una vez ejecutada la verificación de recurso humano y matricula del establecimiento educativo, se logró verificar que el mismo cuenta con una planta docente completa, en ese orden se finiquitó el proceso de estudio de planta y se activó el proceso de reorganización y distribución de carga académica. | O85: Se inicia con el Plan de Asistencia técnica a la entidad territorial de Nariño para la ejecucion de los componentes del plan de fortalecimiento a la gestión del recurso humano de la ETC y definir el plan de trabajo para la vigencia 2022. | P85: La Entidad , esta en proceso que viene desarrollando sobre reorganización de planta según el concepto técnico de modificación de 2021. Se han realizado, conversión de cargos, retiros, traslados y se manifiesta que no se han realizado nombramientos en vacantes definitivas, indicando que los registros encontrados en Planta_T.
A86: 78 | B86: Nariño | C86: BARBACOAS | D86: SEDE 4 SAN FRANCISCO CUCHIRRABO | E86: SEDE 4 SAN FRANCISCO CUCHIRRABO | F86: Oficial | H86: 2022-01-01 | I86: Verificar la asignación de la planta de personal docente y directivo-docente destinado a los EE Oficiales, teniendo en cuenta el PEI, las relaciones técnicas vigentes y sus perfiles o áreas de desempeño, incluyendo a los profesionales de apoyo. | K86: FRANCISCO JAVIER CHACON VASQUEZ, ISABEL CRISTINA SANTACRUZ LOPEZ- | L86: ADMINISTRATIVA Y FINANCIERA RECURSOS HUMANOS | M86: 2022-05-04 | N86: Una vez ejecutada la verificación de recurso humano y matricula del establecimiento educativo, se logró verificar que el mismo cuenta con una planta docente completa, en ese orden se finiquitó el proceso de estudio de planta y se activó el proceso de reorganización y distribución de carga académica. | O86: Se inicia con el Plan de Asistencia técnica a la entidad territorial de Nariño para la ejecucion de los componentes del plan de fortalecimiento a la gestión del recurso humano de la ETC y definir el plan de trabajo para la vigencia 2022. | P86: La Entidad , esta en proceso que viene desarrollando sobre reorganización de planta según el concepto técnico de modificación de 2021. Se han realizado, conversión de cargos, retiros, traslados y se manifiesta que no se han realizado nombramientos en vacantes definitivas, indicando que los registros encontrados en Planta_T.
A87: 79 | B87: Nariño | C87: BARBACOAS | D87: SEDE 5 NUESTRA SEÑORA DE FATIMA DE JUNIN | E87: SEDE 5 NUESTRA SEÑORA DE FATIMA DE JUNIN | F87: Oficial | H87: 2022-01-01 | I87: Verificar la asignación de la planta de personal docente y directivo-docente destinado a los EE Oficiales, teniendo en cuenta el PEI, las relaciones técnicas vigentes y sus perfiles o áreas de desempeño, incluyendo a los profesionales de apoyo. | K87: FRANCISCO JAVIER CHACON VASQUEZ, ISABEL CRISTINA SANTACRUZ LOPEZ- | L87: ADMINISTRATIVA Y FINANCIERA RECURSOS HUMANOS | M87: 2022-05-04 | N87: Una vez ejecutada la verificación de recurso humano y matricula del establecimiento educativo, se logró verificar que el mismo cuenta con una planta docente completa, en ese orden se finiquitó el proceso de estudio de planta y se activó el proceso de reorganización y distribución de carga académica. | O87: Se inicia con el Plan de Asistencia técnica a la entidad territorial de Nariño para la ejecucion de los componentes del plan de fortalecimiento a la gestión del recurso humano de la ETC y definir el plan de trabajo para la vigencia 2022. | P87: La Entidad , esta en proceso que viene desarrollando sobre reorganización de planta según el concepto técnico de modificación de 2021. Se han realizado, conversión de cargos, retiros, traslados y se manifiesta que no se han realizado nombramientos en vacantes definitivas, indicando que los registros encontrados en Planta_T.
A88: 80 | B88: Nariño | C88: BARBACOAS | D88: SEDE 1 INSTITUCIÓN EDUCATIVA LA HUMILDAD | E88: SEDE 1 INSTITUCIÓN EDUCATIVA LA HUMILDAD | F88: Oficial | H88: 2022-01-01 | I88: Verificar la asignación de la planta de personal docente y directivo-docente destinado a los EE Oficiales, teniendo en cuenta el PEI, las relaciones técnicas vigentes y sus perfiles o áreas de desempeño, incluyendo a los profesionales de apoyo. | K88: FRANCISCO JAVIER CHACON VASQUEZ, ISABEL CRISTINA SANTACRUZ LOPEZ- | L88: ADMINISTRATIVA Y FINANCIERA RECURSOS HUMANOS | M88: 2022-05-04 | N88: Una vez ejecutada la verificación de recurso humano y matricula del establecimiento educativo, se logró verificar que el mismo cuenta con una planta docente completa, en ese orden se finiquitó el proceso de estudio de planta y se activó el proceso de reorganización y distribución de carga académica. | O88: Se inicia con el Plan de Asistencia técnica a la entidad territorial de Nariño para la ejecucion de los componentes del plan de fortalecimiento a la gestión del recurso humano de la ETC y definir el plan de trabajo para la vigencia 2022. | P88: La Entidad , esta en proceso que viene desarrollando sobre reorganización de planta según el concepto técnico de modificación de 2021. Se han realizado, conversión de cargos, retiros, traslados y se manifiesta que no se han realizado nombramientos en vacantes definitivas, indicando que los registros encontrados en Planta_T.
A89: 81 | B89: Nariño | C89: BARBACOAS | D89: SEDE 2 COSCORRON | E89: SEDE 2 COSCORRON | F89: Oficial | H89: 2022-01-01 | I89: Verificar la asignación de la planta de personal docente y directivo-docente destinado a los EE Oficiales, teniendo en cuenta el PEI, las relaciones técnicas vigentes y sus perfiles o áreas de desempeño, incluyendo a los profesionales de apoyo. | K89: FRANCISCO JAVIER CHACON VASQUEZ, ISABEL CRISTINA SANTACRUZ LOPEZ- | L89: ADMINISTRATIVA Y FINANCIERA RECURSOS HUMANOS | M89: 2022-05-04 | N89: Una vez ejecutada la verificación de recurso humano y matricula del establecimiento educativo, se logró verificar que el mismo cuenta con una planta docente completa, en ese orden se finiquitó el proceso de estudio de planta y se activó el proceso de reorganización y distribución de carga académica. | O89: Se inicia con el Plan de Asistencia técnica a la entidad territorial de Nariño para la ejecucion de los componentes del plan de fortalecimiento a la gestión del recurso humano de la ETC y definir el plan de trabajo para la vigencia 2022. | P89: La Entidad , esta en proceso que viene desarrollando sobre reorganización de planta según el concepto técnico de modificación de 2021. Se han realizado, conversión de cargos, retiros, traslados y se manifiesta que no se han realizado nombramientos en vacantes definitivas, indicando que los registros encontrados en Planta_T.
A90: 82 | B90: Nariño | C90: BARBACOAS | D90: SEDE 3 PLAYA GRANDE | E90: SEDE 3 PLAYA GRANDE | F90: Oficial | H90: 2022-01-01 | I90: Verificar la asignación de la planta de personal docente y directivo-docente destinado a los EE Oficiales, teniendo en cuenta el PEI, las relaciones técnicas vigentes y sus perfiles o áreas de desempeño, incluyendo a los profesionales de apoyo. | K90: FRANCISCO JAVIER CHACON VASQUEZ, ISABEL CRISTINA SANTACRUZ LOPEZ- | L90: ADMINISTRATIVA Y FINANCIERA RECURSOS HUMANOS | M90: 2022-05-04 | N90: Una vez ejecutada la verificación de recurso humano y matricula del establecimiento educativo, se logró verificar que el mismo cuenta con una planta docente completa, en ese orden se finiquitó el proceso de estudio de planta y se activó el proceso de reorganización y distribución de carga académica. | O90: Se inicia con el Plan de Asistencia técnica a la entidad territorial de Nariño para la ejecucion de los componentes del plan de fortalecimiento a la gestión del recurso humano de la ETC y definir el plan de trabajo para la vigencia 2022. | P90: La Entidad , esta en proceso que viene desarrollando sobre reorganización de planta según el concepto técnico de modificación de 2021. Se han realizado, conversión de cargos, retiros, traslados y se manifiesta que no se han realizado nombramientos en vacantes definitivas, indicando que los registros encontrados en Planta_T.
A91: 83 | B91: Nariño | C91: BARBACOAS | D91: SEDE 4 CHAPIRA | E91: SEDE 4 CHAPIRA | F91: Oficial | H91: 2022-01-01 | I91: Verificar la asignación de la planta de personal docente y directivo-docente destinado a los EE Oficiales, teniendo en cuenta el PEI, las relaciones técnicas vigentes y sus perfiles o áreas de desempeño, incluyendo a los profesionales de apoyo. | K91: FRANCISCO JAVIER CHACON VASQUEZ, ISABEL CRISTINA SANTACRUZ LOPEZ- | L91: ADMINISTRATIVA Y FINANCIERA RECURSOS HUMANOS | M91: 2022-05-04 | N91: Una vez ejecutada la verificación de recurso humano y matricula del establecimiento educativo, se logró verificar que el mismo cuenta con una planta docente completa, en ese orden se finiquitó el proceso de estudio de planta y se activó el proceso de reorganización y distribución de carga académica. | O91: Se inicia con el Plan de Asistencia técnica a la entidad territorial de Nariño para la ejecucion de los componentes del plan de fortalecimiento a la gestión del recurso humano de la ETC y definir el plan de trabajo para la vigencia 2022. | P91: La Entidad , esta en proceso que viene desarrollando sobre reorganización de planta según el concepto técnico de modificación de 2021. Se han realizado, conversión de cargos, retiros, traslados y se manifiesta que no se han realizado nombramientos en vacantes definitivas, indicando que los registros encontrados en Planta_T.
A92: 84 | B92: Nariño | C92: BARBACOAS | D92: SEDE 1 INSTITUCIÓN EDUCATIVA SAN MIGUEL DE ÑAMBÍ | E92: SEDE 1 INSTITUCIÓN EDUCATIVA SAN MIGUEL DE ÑAMBÍ | F92: Oficial | H92: 2022-01-01 | I92: Verificar la asignación de la planta de personal docente y directivo-docente destinado a los EE Oficiales, teniendo en cuenta el PEI, las relaciones técnicas vigentes y sus perfiles o áreas de desempeño, incluyendo a los profesionales de apoyo. | K92: FRANCISCO JAVIER CHACON VASQUEZ, ISABEL CRISTINA SANTACRUZ LOPEZ- | L92: ADMINISTRATIVA Y FINANCIERA RECURSOS HUMANOS | M92: 2022-05-04 | N92: Una vez ejecutada la verificación de recurso humano y matricula del establecimiento educativo, se logró verificar que el mismo cuenta con una planta docente completa, en ese orden se finiquitó el proceso de estudio de planta y se activó el proceso de reorganización y distribución de carga académica. | O92: Se inicia con el Plan de Asistencia técnica a la entidad territorial de Nariño para la ejecucion de los componentes del plan de fortalecimiento a la gestión del recurso humano de la ETC y definir el plan de trabajo para la vigencia 2022. | P92: La Entidad , esta en proceso que viene desarrollando sobre reorganización de planta según el concepto técnico de modificación de 2021. Se han realizado, conversión de cargos, retiros, traslados y se manifiesta que no se han realizado nombramientos en vacantes definitivas, indicando que los registros encontrados en Planta_T.
A93: 85 | B93: Nariño | C93: BARBACOAS | D93: SEDE 2 LA RESBALOSA | E93: SEDE 2 LA RESBALOSA | F93: Oficial | H93: 2022-01-01 | I93: Verificar la asignación de la planta de personal docente y directivo-docente destinado a los EE Oficiales, teniendo en cuenta el PEI, las relaciones técnicas vigentes y sus perfiles o áreas de desempeño, incluyendo a los profesionales de apoyo. | K93: FRANCISCO JAVIER CHACON VASQUEZ, ISABEL CRISTINA SANTACRUZ LOPEZ- | L93: ADMINISTRATIVA Y FINANCIERA RECURSOS HUMANOS | M93: 2022-05-04 | N93: Una vez ejecutada la verificación de recurso humano y matricula del establecimiento educativo, se logró verificar que el mismo cuenta con una planta docente completa, en ese orden se finiquitó el proceso de estudio de planta y se activó el proceso de reorganización y distribución de carga académica. | O93: Se inicia con el Plan de Asistencia técnica a la entidad territorial de Nariño para la ejecucion de los componentes del plan de fortalecimiento a la gestión del recurso humano de la ETC y definir el plan de trabajo para la vigencia 2022. | P93: La Entidad , esta en proceso que viene desarrollando sobre reorganización de planta según el concepto técnico de modificación de 2021. Se han realizado, conversión de cargos, retiros, traslados y se manifiesta que no se han realizado nombramientos en vacantes definitivas, indicando que los registros encontrados en Planta_T.
A94: 86 | B94: Nariño | C94: BARBACOAS | D94: SEDE 3 LA SIRENA | E94: SEDE 3 LA SIRENA | F94: Oficial | H94: 2022-01-01 | I94: Verificar la asignación de la planta de personal docente y directivo-docente destinado a los EE Oficiales, teniendo en cuenta el PEI, las relaciones técnicas vigentes y sus perfiles o áreas de desempeño, incluyendo a los profesionales de apoyo. | K94: FRANCISCO JAVIER CHACON VASQUEZ, ISABEL CRISTINA SANTACRUZ LOPEZ- | L94: ADMINISTRATIVA Y FINANCIERA RECURSOS HUMANOS | M94: 2022-05-04 | N94: Una vez ejecutada la verificación de recurso humano y matricula del establecimiento educativo, se logró verificar que el mismo cuenta con una planta docente completa, en ese orden se finiquitó el proceso de estudio de planta y se activó el proceso de reorganización y distribución de carga académica. | O94: Se inicia con el Plan de Asistencia técnica a la entidad territorial de Nariño para la ejecucion de los componentes del plan de fortalecimiento a la gestión del recurso humano de la ETC y definir el plan de trabajo para la vigencia 2022. | P94: La Entidad , esta en proceso que viene desarrollando sobre reorganización de planta según el concepto técnico de modificación de 2021. Se han realizado, conversión de cargos, retiros, traslados y se manifiesta que no se han realizado nombramientos en vacantes definitivas, indicando que los registros encontrados en Planta_T.
A95: 87 | B95: Nariño | C95: BARBACOAS | D95: SEDE 4 SAN JOSE YALARE | E95: SEDE 4 SAN JOSE YALARE | F95: Oficial | H95: 2022-01-01 | I95: Verificar la asignación de la planta de personal docente y directivo-docente destinado a los EE Oficiales, teniendo en cuenta el PEI, las relaciones técnicas vigentes y sus perfiles o áreas de desempeño, incluyendo a los profesionales de apoyo. | K95: FRANCISCO JAVIER CHACON VASQUEZ, ISABEL CRISTINA SANTACRUZ LOPEZ- | L95: ADMINISTRATIVA Y FINANCIERA RECURSOS HUMANOS | M95: 2022-05-04 | N95: Una vez ejecutada la verificación de recurso humano y matricula del establecimiento educativo, se logró verificar que el mismo cuenta con una planta docente completa, en ese orden se finiquitó el proceso de estudio de planta y se activó el proceso de reorganización y distribución de carga académica. | O95: Se inicia con el Plan de Asistencia técnica a la entidad territorial de Nariño para la ejecucion de los componentes del plan de fortalecimiento a la gestión del recurso humano de la ETC y definir el plan de trabajo para la vigencia 2022. | P95: La Entidad , esta en proceso que viene desarrollando sobre reorganización de planta según el concepto técnico de modificación de 2021. Se han realizado, conversión de cargos, retiros, traslados y se manifiesta que no se han realizado nombramientos en vacantes definitivas, indicando que los registros encontrados en Planta_T.
A96: 88 | B96: Nariño | C96: BARBACOAS | D96: SEDE 5 EL RECODO | E96: SEDE 5 EL RECODO | F96: Oficial | H96: 2022-01-01 | I96: Verificar la asignación de la planta de personal docente y directivo-docente destinado a los EE Oficiales, teniendo en cuenta el PEI, las relaciones técnicas vigentes y sus perfiles o áreas de desempeño, incluyendo a los profesionales de apoyo. | K96: FRANCISCO JAVIER CHACON VASQUEZ, ISABEL CRISTINA SANTACRUZ LOPEZ- | L96: ADMINISTRATIVA Y FINANCIERA RECURSOS HUMANOS | M96: 2022-05-04 | N96: Una vez ejecutada la verificación de recurso humano y matricula del establecimiento educativo, se logró verificar que el mismo cuenta con una planta docente completa, en ese orden se finiquitó el proceso de estudio de planta y se activó el proceso de reorganización y distribución de carga académica. | O96: Se inicia con el Plan de Asistencia técnica a la entidad territorial de Nariño para la ejecucion de los componentes del plan de fortalecimiento a la gestión del recurso humano de la ETC y definir el plan de trabajo para la vigencia 2022. | P96: La Entidad , esta en proceso que viene desarrollando sobre reorganización de planta según el concepto técnico de modificación de 2021. Se han realizado, conversión de cargos, retiros, traslados y se manifiesta que no se han realizado nombramientos en vacantes definitivas, indicando que los registros encontrados en Planta_T.
A97: 89 | B97: Nariño | C97: BARBACOAS | D97: SEDE 6 LA PLAYA | E97: SEDE 6 LA PLAYA | F97: Oficial | H97: 2022-01-01 | I97: Verificar la asignación de la planta de personal docente y directivo-docente destinado a los EE Oficiales, teniendo en cuenta el PEI, las relaciones técnicas vigentes y sus perfiles o áreas de desempeño, incluyendo a los profesionales de apoyo. | K97: FRANCISCO JAVIER CHACON VASQUEZ, ISABEL CRISTINA SANTACRUZ LOPEZ- | L97: ADMINISTRATIVA Y FINANCIERA RECURSOS HUMANOS | M97: 2022-05-04 | N97: Una vez ejecutada la verificación de recurso humano y matricula del establecimiento educativo, se logró verificar que el mismo cuenta con una planta docente completa, en ese orden se finiquitó el proceso de estudio de planta y se activó el proceso de reorganización y distribución de carga académica. | O97: Se inicia con el Plan de Asistencia técnica a la entidad territorial de Nariño para la ejecucion de los componentes del plan de fortalecimiento a la gestión del recurso humano de la ETC y definir el plan de trabajo para la vigencia 2022. | P97: La Entidad , esta en proceso que viene desarrollando sobre reorganización de planta según el concepto técnico de modificación de 2021. Se han realizado, conversión de cargos, retiros, traslados y se manifiesta que no se han realizado nombramientos en vacantes definitivas, indicando que los registros encontrados en Planta_T.
A98: 90 | B98: Nariño | C98: BARBACOAS | D98: INSTITUCION EDUCATIVA EL DIVISO | E98: INSTITUCION EDUCATIVA EL DIVISO | F98: Oficial | H98: 2022-01-01 | I98: Verificar la asignación de la planta de personal docente y directivo-docente destinado a los EE Oficiales, teniendo en cuenta el PEI, las relaciones técnicas vigentes y sus perfiles o áreas de desempeño, incluyendo a los profesionales de apoyo. | K98: FRANCISCO JAVIER CHACON VASQUEZ, ISABEL CRISTINA SANTACRUZ LOPEZ- | L98: ADMINISTRATIVA Y FINANCIERA RECURSOS HUMANOS | M98: 2022-05-04 | N98: Una vez ejecutada la verificación de recurso humano y matricula del establecimiento educativo, se logró verificar que el mismo cuenta con una planta docente completa, en ese orden se finiquitó el proceso de estudio de planta y se activó el proceso de reorganización y distribución de carga académica. | O98: Se inicia con el Plan de Asistencia técnica a la entidad territorial de Nariño para la ejecucion de los componentes del plan de fortalecimiento a la gestión del recurso humano de la ETC y definir el plan de trabajo para la vigencia 2022. | P98: La Entidad , esta en proceso que viene desarrollando sobre reorganización de planta según el concepto técnico de modificación de 2021. Se han realizado, conversión de cargos, retiros, traslados y se manifiesta que no se han realizado nombramientos en vacantes definitivas, indicando que los registros encontrados en Planta_T.
A99: 91 | B99: Nariño | C99: BARBACOAS | D99: CENTRO EDUCATIVO BERLIN | E99: CENTRO EDUCATIVO BERLIN | F99: Oficial | H99: 2022-01-01 | I99: Verificar la asignación de la planta de personal docente y directivo-docente destinado a los EE Oficiales, teniendo en cuenta el PEI, las relaciones técnicas vigentes y sus perfiles o áreas de desempeño, incluyendo a los profesionales de apoyo. | K99: FRANCISCO JAVIER CHACON VASQUEZ, ISABEL CRISTINA SANTACRUZ LOPEZ- | L99: ADMINISTRATIVA Y FINANCIERA RECURSOS HUMANOS | M99: 2022-05-04 | N99: Una vez ejecutada la verificación de recurso humano y matricula del establecimiento educativo, se logró verificar que el mismo cuenta con una planta docente completa, en ese orden se finiquitó el proceso de estudio de planta y se activó el proceso de reorganización y distribución de carga académica. | O99: Se inicia con el Plan de Asistencia técnica a la entidad territorial de Nariño para la ejecucion de los componentes del plan de fortalecimiento a la gestión del recurso humano de la ETC y definir el plan de trabajo para la vigencia 2022. | P99: La Entidad , esta en proceso que viene desarrollando sobre reorganización de planta según el concepto técnico de modificación de 2021. Se han realizado, conversión de cargos, retiros, traslados y se manifiesta que no se han realizado nombramientos en vacantes definitivas, indicando que los registros encontrados en Planta_T.
A100: 92 | B100: Nariño | C100: BARBACOAS | D100: CENTRO EDUCATIVO LA MARIA | E100: CENTRO EDUCATIVO LA MARIA | F100: Oficial | H100: 2022-01-01 | I100: Verificar la asignación de la planta de personal docente y directivo-docente destinado a los EE Oficiales, teniendo en cuenta el PEI, las relaciones técnicas vigentes y sus perfiles o áreas de desempeño, incluyendo a los profesionales de apoyo. | K100: FRANCISCO JAVIER CHACON VASQUEZ, ISABEL CRISTINA SANTACRUZ LOPEZ- | L100: ADMINISTRATIVA Y FINANCIERA RECURSOS HUMANOS | M100: 2022-05-04 | N100: Una vez ejecutada la verificación de recurso humano y matricula del establecimiento educativo, se logró verificar que el mismo cuenta con una planta docente completa, en ese orden se finiquitó el proceso de estudio de planta y se activó el proceso de reorganización y distribución de carga académica. | O100: Se inicia con el Plan de Asistencia técnica a la entidad territorial de Nariño para la ejecucion de los componentes del plan de fortalecimiento a la gestión del recurso humano de la ETC y definir el plan de trabajo para la vigencia 2022. | P100: La Entidad , esta en proceso que viene desarrollando sobre reorganización de planta según el concepto técnico de modificación de 2021. Se han realizado, conversión de cargos, retiros, traslados y se manifiesta que no se han realizado nombramientos en vacantes definitivas, indicando que los registros encontrados en Planta_T.
A101: 93 | B101: Nariño | C101: BARBACOAS | D101: CENTRO EDUCATIVO EL PAILON | E101: CENTRO EDUCATIVO EL PAILON | F101: Oficial | H101: 2022-01-01 | I101: Verificar la asignación de la planta de personal docente y directivo-docente destinado a los EE Oficiales, teniendo en cuenta el PEI, las relaciones técnicas vigentes y sus perfiles o áreas de desempeño, incluyendo a los profesionales de apoyo. | K101: FRANCISCO JAVIER CHACON VASQUEZ, ISABEL CRISTINA SANTACRUZ LOPEZ- | L101: ADMINISTRATIVA Y FINANCIERA RECURSOS HUMANOS | M101: 2022-05-04 | N101: Una vez ejecutada la verificación de recurso humano y matricula del establecimiento educativo, se logró verificar que el mismo cuenta con una planta docente completa, en ese orden se finiquitó el proceso de estudio de planta y se activó el proceso de reorganización y distribución de carga académica. | O101: Se inicia con el Plan de Asistencia técnica a la entidad territorial de Nariño para la ejecucion de los componentes del plan de fortalecimiento a la gestión del recurso humano de la ETC y definir el plan de trabajo para la vigencia 2022. | P101: La Entidad , esta en proceso que viene desarrollando sobre reorganización de planta según el concepto técnico de modificación de 2021. Se han realizado, conversión de cargos, retiros, traslados y se manifiesta que no se han realizado nombramientos en vacantes definitivas, indicando que los registros encontrados en Planta_T.
A102: 94 | B102: Nariño | C102: BARBACOAS | D102: CENTRO EDUCATIVO K92 | E102: CENTRO EDUCATIVO K92 | F102: Oficial | H102: 2022-01-01 | I102: Verificar la asignación de la planta de personal docente y directivo-docente destinado a los EE Oficiales, teniendo en cuenta el PEI, las relaciones técnicas vigentes y sus perfiles o áreas de desempeño, incluyendo a los profesionales de apoyo. | K102: FRANCISCO JAVIER CHACON VASQUEZ, ISABEL CRISTINA SANTACRUZ LOPEZ- | L102: ADMINISTRATIVA Y FINANCIERA RECURSOS HUMANOS | M102: 2022-05-04 | N102: Una vez ejecutada la verificación de recurso humano y matricula del establecimiento educativo, se logró verificar que el mismo cuenta con una planta docente completa, en ese orden se finiquitó el proceso de estudio de planta y se activó el proceso de reorganización y distribución de carga académica. | O102: Se inicia con el Plan de Asistencia técnica a la entidad territorial de Nariño para la ejecucion de los componentes del plan de fortalecimiento a la gestión del recurso humano de la ETC y definir el plan de trabajo para la vigencia 2022. | P102: La Entidad , esta en proceso que viene desarrollando sobre reorganización de planta según el concepto técnico de modificación de 2021. Se han realizado, conversión de cargos, retiros, traslados y se manifiesta que no se han realizado nombramientos en vacantes definitivas, indicando que los registros encontrados en Planta_T.
A103: 95 | B103: Nariño | C103: BARBACOAS | D103: C.E. GUIGUAY NO. 1 - SEDE PRINCIPAL | E103: C.E. GUIGUAY NO. 1 - SEDE PRINCIPAL | F103: Oficial | H103: 2022-01-01 | I103: Verificar la asignación de la planta de personal docente y directivo-docente destinado a los EE Oficiales, teniendo en cuenta el PEI, las relaciones técnicas vigentes y sus perfiles o áreas de desempeño, incluyendo a los profesionales de apoyo. | K103: FRANCISCO JAVIER CHACON VASQUEZ, ISABEL CRISTINA SANTACRUZ LOPEZ- | L103: ADMINISTRATIVA Y FINANCIERA RECURSOS HUMANOS | M103: 2022-05-04 | N103: Una vez ejecutada la verificación de recurso humano y matricula del establecimiento educativo, se logró verificar que el mismo cuenta con una planta docente completa, en ese orden se finiquitó el proceso de estudio de planta y se activó el proceso de reorganización y distribución de carga académica. | O103: Se inicia con el Plan de Asistencia técnica a la entidad territorial de Nariño para la ejecucion de los componentes del plan de fortalecimiento a la gestión del recurso humano de la ETC y definir el plan de trabajo para la vigencia 2022. | P103: La Entidad , esta en proceso que viene desarrollando sobre reorganización de planta según el concepto técnico de modificación de 2021. Se han realizado, conversión de cargos, retiros, traslados y se manifiesta que no se han realizado nombramientos en vacantes definitivas, indicando que los registros encontrados en Planta_T.
A104: 96 | B104: Nariño | C104: BARBACOAS | D104: C.E. GUIGUAY NO. 2 - SEDE PRINCIPAL | E104: C.E. GUIGUAY NO. 2 - SEDE PRINCIPAL | F104: Oficial | H104: 2022-01-01 | I104: Verificar la asignación de la planta de personal docente y directivo-docente destinado a los EE Oficiales, teniendo en cuenta el PEI, las relaciones técnicas vigentes y sus perfiles o áreas de desempeño, incluyendo a los profesionales de apoyo. | K104: FRANCISCO JAVIER CHACON VASQUEZ, ISABEL CRISTINA SANTACRUZ LOPEZ- | L104: ADMINISTRATIVA Y FINANCIERA RECURSOS HUMANOS | M104: 2022-05-04 | N104: Una vez ejecutada la verificación de recurso humano y matricula del establecimiento educativo, se logró verificar que el mismo cuenta con una planta docente completa, en ese orden se finiquitó el proceso de estudio de planta y se activó el proceso de reorganización y distribución de carga académica. | O104: Se inicia con el Plan de Asistencia técnica a la entidad territorial de Nariño para la ejecucion de los componentes del plan de fortalecimiento a la gestión del recurso humano de la ETC y definir el plan de trabajo para la vigencia 2022. | P104: La Entidad , esta en proceso que viene desarrollando sobre reorganización de planta según el concepto técnico de modificación de 2021. Se han realizado, conversión de cargos, retiros, traslados y se manifiesta que no se han realizado nombramientos en vacantes definitivas, indicando que los registros encontrados en Planta_T.
A105: 97 | B105: Nariño | C105: BARBACOAS | D105: SEDE 1 INSTITUCIÓN EDUCATIVA BUENAVISTA | E105: SEDE 1 INSTITUCIÓN EDUCATIVA BUENAVISTA | F105: Oficial | H105: 2022-01-01 | I105: Verificar la asignación de la planta de personal docente y directivo-docente destinado a los EE Oficiales, teniendo en cuenta el PEI, las relaciones técnicas vigentes y sus perfiles o áreas de desempeño, incluyendo a los profesionales de apoyo. | K105: FRANCISCO JAVIER CHACON VASQUEZ, ISABEL CRISTINA SANTACRUZ LOPEZ- | L105: ADMINISTRATIVA Y FINANCIERA RECURSOS HUMANOS | M105: 2022-05-04 | N105: Una vez ejecutada la verificación de recurso humano y matricula del establecimiento educativo, se logró verificar que el mismo cuenta con una planta docente completa, en ese orden se finiquitó el proceso de estudio de planta y se activó el proceso de reorganización y distribución de carga académica. | O105: Se inicia con el Plan de Asistencia técnica a la entidad territorial de Nariño para la ejecucion de los componentes del plan de fortalecimiento a la gestión del recurso humano de la ETC y definir el plan de trabajo para la vigencia 2022. | P105: La Entidad , esta en proceso que viene desarrollando sobre reorganización de planta según el concepto técnico de modificación de 2021. Se han realizado, conversión de cargos, retiros, traslados y se manifiesta que no se han realizado nombramientos en vacantes definitivas, indicando que los registros encontrados en Planta_T.
A106: 98 | B106: Nariño | C106: BARBACOAS | D106: CENTRO EDUCATIVO JABONCILLO | E106: CENTRO EDUCATIVO JABONCILLO | F106: Oficial | H106: 2022-01-01 | I106: Verificar la asignación de la planta de personal docente y directivo-docente destinado a los EE Oficiales, teniendo en cuenta el PEI, las relaciones técnicas vigentes y sus perfiles o áreas de desempeño, incluyendo a los profesionales de apoyo. | K106: FRANCISCO JAVIER CHACON VASQUEZ, ISABEL CRISTINA SANTACRUZ LOPEZ- | L106: ADMINISTRATIVA Y FINANCIERA RECURSOS HUMANOS | M106: 2022-05-04 | N106: Una vez ejecutada la verificación de recurso humano y matricula del establecimiento educativo, se logró verificar que el mismo cuenta con una planta docente completa, en ese orden se finiquitó el proceso de estudio de planta y se activó el proceso de reorganización y distribución de carga académica. | O106: Se inicia con el Plan de Asistencia técnica a la entidad territorial de Nariño para la ejecucion de los componentes del plan de fortalecimiento a la gestión del recurso humano de la ETC y definir el plan de trabajo para la vigencia 2022. | P106: La Entidad , esta en proceso que viene desarrollando sobre reorganización de planta según el concepto técnico de modificación de 2021. Se han realizado, conversión de cargos, retiros, traslados y se manifiesta que no se han realizado nombramientos en vacantes definitivas, indicando que los registros encontrados en Planta_T.
A107: 99 | B107: Nariño | C107: BARBACOAS | D107: SEDE 3 SAN ANTONIO TINAJILLAS | E107: SEDE 3 SAN ANTONIO TINAJILLAS | F107: Oficial | H107: 2022-01-01 | I107: Verificar la asignación de la planta de personal docente y directivo-docente destinado a los EE Oficiales, teniendo en cuenta el PEI, las relaciones técnicas vigentes y sus perfiles o áreas de desempeño, incluyendo a los profesionales de apoyo. | K107: FRANCISCO JAVIER CHACON VASQUEZ, ISABEL CRISTINA SANTACRUZ LOPEZ- | L107: ADMINISTRATIVA Y FINANCIERA RECURSOS HUMANOS | M107: 2022-05-04 | N107: Una vez ejecutada la verificación de recurso humano y matricula del establecimiento educativo, se logró verificar que el mismo cuenta con una planta docente completa, en ese orden se finiquitó el proceso de estudio de planta y se activó el proceso de reorganización y distribución de carga académica. | O107: Se inicia con el Plan de Asistencia técnica a la entidad territorial de Nariño para la ejecucion de los componentes del plan de fortalecimiento a la gestión del recurso humano de la ETC y definir el plan de trabajo para la vigencia 2022. | P107: La Entidad , esta en proceso que viene desarrollando sobre reorganización de planta según el concepto técnico de modificación de 2021. Se han realizado, conversión de cargos, retiros, traslados y se manifiesta que no se han realizado nombramientos en vacantes definitivas, indicando que los registros encontrados en Planta_T.
A108: 100 | B108: Nariño | C108: BARBACOAS | D108: SEDE 4 LAS CRUCES | E108: SEDE 4 LAS CRUCES | F108: Oficial | H108: 2022-01-01 | I108: Verificar la asignación de la planta de personal docente y directivo-docente destinado a los EE Oficiales, teniendo en cuenta el PEI, las relaciones técnicas vigentes y sus perfiles o áreas de desempeño, incluyendo a los profesionales de apoyo. | K108: FRANCISCO JAVIER CHACON VASQUEZ, ISABEL CRISTINA SANTACRUZ LOPEZ- | L108: ADMINISTRATIVA Y FINANCIERA RECURSOS HUMANOS | M108: 2022-05-04 | N108: Una vez ejecutada la verificación de recurso humano y matricula del establecimiento educativo, se logró verificar que el mismo cuenta con una planta docente completa, en ese orden se finiquitó el proceso de estudio de planta y se activó el proceso de reorganización y distribución de carga académica. | O108: Se inicia con el Plan de Asistencia técnica a la entidad territorial de Nariño para la ejecucion de los componentes del plan de fortalecimiento a la gestión del recurso humano de la ETC y definir el plan de trabajo para la vigencia 2022. | P108: La Entidad , esta en proceso que viene desarrollando sobre reorganización de planta según el concepto técnico de modificación de 2021. Se han realizado, conversión de cargos, retiros, traslados y se manifiesta que no se han realizado nombramientos en vacantes definitivas, indicando que los registros encontrados en Planta_T.
A109: 101 | B109: Nariño | C109: BARBACOAS | D109: SEDE 5 CARCUEL | E109: SEDE 5 CARCUEL | F109: Oficial | H109: 2022-01-01 | I109: Verificar la asignación de la planta de personal docente y directivo-docente destinado a los EE Oficiales, teniendo en cuenta el PEI, las relaciones técnicas vigentes y sus perfiles o áreas de desempeño, incluyendo a los profesionales de apoyo. | K109: FRANCISCO JAVIER CHACON VASQUEZ, ISABEL CRISTINA SANTACRUZ LOPEZ- | L109: ADMINISTRATIVA Y FINANCIERA RECURSOS HUMANOS | M109: 2022-05-04 | N109: Una vez ejecutada la verificación de recurso humano y matricula del establecimiento educativo, se logró verificar que el mismo cuenta con una planta docente completa, en ese orden se finiquitó el proceso de estudio de planta y se activó el proceso de reorganización y distribución de carga académica. | O109: Se inicia con el Plan de Asistencia técnica a la entidad territorial de Nariño para la ejecucion de los componentes del plan de fortalecimiento a la gestión del recurso humano de la ETC y definir el plan de trabajo para la vigencia 2022. | P109: La Entidad , esta en proceso que viene desarrollando sobre reorganización de planta según el concepto técnico de modificación de 2021. Se han realizado, conversión de cargos, retiros, traslados y se manifiesta que no se han realizado nombramientos en vacantes definitivas, indicando que los registros encontrados en Planta_T.
A110: 102 | B110: Nariño | C110: BARBACOAS | D110: SEDE 6 QUENDAN | E110: SEDE 6 QUENDAN | F110: Oficial | H110: 2022-01-01 | I110: Verificar la asignación de la planta de personal docente y directivo-docente destinado a los EE Oficiales, teniendo en cuenta el PEI, las relaciones técnicas vigentes y sus perfiles o áreas de desempeño, incluyendo a los profesionales de apoyo. | K110: FRANCISCO JAVIER CHACON VASQUEZ, ISABEL CRISTINA SANTACRUZ LOPEZ- | L110: ADMINISTRATIVA Y FINANCIERA RECURSOS HUMANOS | M110: 2022-05-04 | N110: Una vez ejecutada la verificación de recurso humano y matricula del establecimiento educativo, se logró verificar que el mismo cuenta con una planta docente completa, en ese orden se finiquitó el proceso de estudio de planta y se activó el proceso de reorganización y distribución de carga académica. | O110: Se inicia con el Plan de Asistencia técnica a la entidad territorial de Nariño para la ejecucion de los componentes del plan de fortalecimiento a la gestión del recurso humano de la ETC y definir el plan de trabajo para la vigencia 2022. | P110: La Entidad , esta en proceso que viene desarrollando sobre reorganización de planta según el concepto técnico de modificación de 2021. Se han realizado, conversión de cargos, retiros, traslados y se manifiesta que no se han realizado nombramientos en vacantes definitivas, indicando que los registros encontrados en Planta_T.
A111: 103 | B111: Nariño | C111: BARBACOAS | D111: SEDE 8 SAN JUAN BAUTISTA | E111: SEDE 8 SAN JUAN BAUTISTA | F111: Oficial | H111: 2022-01-01 | I111: Verificar la asignación de la planta de personal docente y directivo-docente destinado a los EE Oficiales, teniendo en cuenta el PEI, las relaciones técnicas vigentes y sus perfiles o áreas de desempeño, incluyendo a los profesionales de apoyo. | K111: FRANCISCO JAVIER CHACON VASQUEZ, ISABEL CRISTINA SANTACRUZ LOPEZ- | L111: ADMINISTRATIVA Y FINANCIERA RECURSOS HUMANOS | M111: 2022-05-04 | N111: Una vez ejecutada la verificación de recurso humano y matricula del establecimiento educativo, se logró verificar que el mismo cuenta con una planta docente completa, en ese orden se finiquitó el proceso de estudio de planta y se activó el proceso de reorganización y distribución de carga académica. | O111: Se inicia con el Plan de Asistencia técnica a la entidad territorial de Nariño para la ejecucion de los componentes del plan de fortalecimiento a la gestión del recurso humano de la ETC y definir el plan de trabajo para la vigencia 2022. | P111: La Entidad , esta en proceso que viene desarrollando sobre reorganización de planta según el concepto técnico de modificación de 2021. Se han realizado, conversión de cargos, retiros, traslados y se manifiesta que no se han realizado nombramientos en vacantes definitivas, indicando que los registros encontrados en Planta_T.
A112: 104 | B112: Nariño | C112: BARBACOAS | D112: SEDE 10 EL PEJE | E112: SEDE 10 EL PEJE | F112: Oficial | H112: 2022-01-01 | I112: Verificar la asignación de la planta de personal docente y directivo-docente destinado a los EE Oficiales, teniendo en cuenta el PEI, las relaciones técnicas vigentes y sus perfiles o áreas de desempeño, incluyendo a los profesionales de apoyo. | K112: FRANCISCO JAVIER CHACON VASQUEZ, ISABEL CRISTINA SANTACRUZ LOPEZ- | L112: ADMINISTRATIVA Y FINANCIERA RECURSOS HUMANOS | M112: 2022-05-04 | N112: Una vez ejecutada la verificación de recurso humano y matricula del establecimiento educativo, se logró verificar que el mismo cuenta con una planta docente completa, en ese orden se finiquitó el proceso de estudio de planta y se activó el proceso de reorganización y distribución de carga académica. | O112: Se inicia con el Plan de Asistencia técnica a la entidad territorial de Nariño para la ejecucion de los componentes del plan de fortalecimiento a la gestión del recurso humano de la ETC y definir el plan de trabajo para la vigencia 2022. | P112: La Entidad , esta en proceso que viene desarrollando sobre reorganización de planta según el concepto técnico de modificación de 2021. Se han realizado, conversión de cargos, retiros, traslados y se manifiesta que no se han realizado nombramientos en vacantes definitivas, indicando que los registros encontrados en Planta_T.
A113: 105 | B113: Nariño | C113: BARBACOAS | D113: SEDE 11 YACULA | E113: SEDE 11 YACULA | F113: Oficial | H113: 2022-01-01 | I113: Verificar la asignación de la planta de personal docente y directivo-docente destinado a los EE Oficiales, teniendo en cuenta el PEI, las relaciones técnicas vigentes y sus perfiles o áreas de desempeño, incluyendo a los profesionales de apoyo. | K113: FRANCISCO JAVIER CHACON VASQUEZ, ISABEL CRISTINA SANTACRUZ LOPEZ- | L113: ADMINISTRATIVA Y FINANCIERA RECURSOS HUMANOS | M113: 2022-05-04 | N113: Una vez ejecutada la verificación de recurso humano y matricula del establecimiento educativo, se logró verificar que el mismo cuenta con una planta docente completa, en ese orden se finiquitó el proceso de estudio de planta y se activó el proceso de reorganización y distribución de carga académica. | O113: Se inicia con el Plan de Asistencia técnica a la entidad territorial de Nariño para la ejecucion de los componentes del plan de fortalecimiento a la gestión del recurso humano de la ETC y definir el plan de trabajo para la vigencia 2022. | P113: La Entidad , esta en proceso que viene desarrollando sobre reorganización de planta según el concepto técnico de modificación de 2021. Se han realizado, conversión de cargos, retiros, traslados y se manifiesta que no se han realizado nombramientos en vacantes definitivas, indicando que los registros encontrados en Planta_T.
A114: 106 | B114: Nariño | C114: BARBACOAS | D114: SEDE 12 CHANUL | E114: SEDE 12 CHANUL | F114: Oficial | H114: 2022-01-01 | I114: Verificar la asignación de la planta de personal docente y directivo-docente destinado a los EE Oficiales, teniendo en cuenta el PEI, las relaciones técnicas vigentes y sus perfiles o áreas de desempeño, incluyendo a los profesionales de apoyo. | K114: FRANCISCO JAVIER CHACON VASQUEZ, ISABEL CRISTINA SANTACRUZ LOPEZ- | L114: ADMINISTRATIVA Y FINANCIERA RECURSOS HUMANOS | M114: 2022-05-04 | N114: Una vez ejecutada la verificación de recurso humano y matricula del establecimiento educativo, se logró verificar que el mismo cuenta con una planta docente completa, en ese orden se finiquitó el proceso de estudio de planta y se activó el proceso de reorganización y distribución de carga académica. | O114: Se inicia con el Plan de Asistencia técnica a la entidad territorial de Nariño para la ejecucion de los componentes del plan de fortalecimiento a la gestión del recurso humano de la ETC y definir el plan de trabajo para la vigencia 2022. | P114: La Entidad , esta en proceso que viene desarrollando sobre reorganización de planta según el concepto técnico de modificación de 2021. Se han realizado, conversión de cargos, retiros, traslados y se manifiesta que no se han realizado nombramientos en vacantes definitivas, indicando que los registros encontrados en Planta_T.
A115: 107 | B115: Nariño | C115: BARBACOAS | D115: SEDE 1 INSTITUCIÓN EDUCATIVA INDÍGENA TÉCNICA AGROAMBIENTAL BILINGÜE AWÁ | E115: SEDE 1 INSTITUCIÓN EDUCATIVA INDÍGENA TÉCNICA AGROAMBIENTAL BILINGÜE AWÁ | F115: Oficial | H115: 2022-01-01 | I115: Verificar la asignación de la planta de personal docente y directivo-docente destinado a los EE Oficiales, teniendo en cuenta el PEI, las relaciones técnicas vigentes y sus perfiles o áreas de desempeño, incluyendo a los profesionales de apoyo. | K115: FRANCISCO JAVIER CHACON VASQUEZ, ISABEL CRISTINA SANTACRUZ LOPEZ- | L115: ADMINISTRATIVA Y FINANCIERA RECURSOS HUMANOS | M115: 2022-05-04 | N115: Una vez ejecutada la verificación de recurso humano y matricula del establecimiento educativo, se logró verificar que el mismo cuenta con una planta docente completa, en ese orden se finiquitó el proceso de estudio de planta y se activó el proceso de reorganización y distribución de carga académica. | O115: Se inicia con el Plan de Asistencia técnica a la entidad territorial de Nariño para la ejecucion de los componentes del plan de fortalecimiento a la gestión del recurso humano de la ETC y definir el plan de trabajo para la vigencia 2022. | P115: La Entidad , esta en proceso que viene desarrollando sobre reorganización de planta según el concepto técnico de modificación de 2021. Se han realizado, conversión de cargos, retiros, traslados y se manifiesta que no se han realizado nombramientos en vacantes definitivas, indicando que los registros encontrados en Planta_T.
A116: 108 | B116: Nariño | C116: BARBACOAS | D116: SEDE 2 PEÑA BLANCA SAUNDE | E116: SEDE 2 PEÑA BLANCA SAUNDE | F116: Oficial | H116: 2022-01-01 | I116: Verificar la asignación de la planta de personal docente y directivo-docente destinado a los EE Oficiales, teniendo en cuenta el PEI, las relaciones técnicas vigentes y sus perfiles o áreas de desempeño, incluyendo a los profesionales de apoyo. | K116: FRANCISCO JAVIER CHACON VASQUEZ, ISABEL CRISTINA SANTACRUZ LOPEZ- | L116: ADMINISTRATIVA Y FINANCIERA RECURSOS HUMANOS | M116: 2022-05-04 | N116: Una vez ejecutada la verificación de recurso humano y matricula del establecimiento educativo, se logró verificar que el mismo cuenta con una planta docente completa, en ese orden se finiquitó el proceso de estudio de planta y se activó el proceso de reorganización y distribución de carga académica. | O116: Se inicia con el Plan de Asistencia técnica a la entidad territorial de Nariño para la ejecucion de los componentes del plan de fortalecimiento a la gestión del recurso humano de la ETC y definir el plan de trabajo para la vigencia 2022. | P116: La Entidad , esta en proceso que viene desarrollando sobre reorganización de planta según el concepto técnico de modificación de 2021. Se han realizado, conversión de cargos, retiros, traslados y se manifiesta que no se han realizado nombramientos en vacantes definitivas, indicando que los registros encontrados en Planta_T.
A117: 109 | B117: Nariño | C117: BARBACOAS | D117: SEDE 3 ANZAMAPI | E117: SEDE 3 ANZAMAPI | F117: Oficial | H117: 2022-01-01 | I117: Verificar la asignación de la planta de personal docente y directivo-docente destinado a los EE Oficiales, teniendo en cuenta el PEI, las relaciones técnicas vigentes y sus perfiles o áreas de desempeño, incluyendo a los profesionales de apoyo. | K117: FRANCISCO JAVIER CHACON VASQUEZ, ISABEL CRISTINA SANTACRUZ LOPEZ- | L117: ADMINISTRATIVA Y FINANCIERA RECURSOS HUMANOS | M117: 2022-05-04 | N117: Una vez ejecutada la verificación de recurso humano y matricula del establecimiento educativo, se logró verificar que el mismo cuenta con una planta docente completa, en ese orden se finiquitó el proceso de estudio de planta y se activó el proceso de reorganización y distribución de carga académica. | O117: Se inicia con el Plan de Asistencia técnica a la entidad territorial de Nariño para la ejecucion de los componentes del plan de fortalecimiento a la gestión del recurso humano de la ETC y definir el plan de trabajo para la vigencia 2022. | P117: La Entidad , esta en proceso que viene desarrollando sobre reorganización de planta según el concepto técnico de modificación de 2021. Se han realizado, conversión de cargos, retiros, traslados y se manifiesta que no se han realizado nombramientos en vacantes definitivas, indicando que los registros encontrados en Planta_T.
A118: 110 | B118: Nariño | C118: BARBACOAS | D118: SEDE 4 PAMBIL | E118: SEDE 4 PAMBIL | F118: Oficial | H118: 2022-01-01 | I118: Verificar la asignación de la planta de personal docente y directivo-docente destinado a los EE Oficiales, teniendo en cuenta el PEI, las relaciones técnicas vigentes y sus perfiles o áreas de desempeño, incluyendo a los profesionales de apoyo. | K118: FRANCISCO JAVIER CHACON VASQUEZ, ISABEL CRISTINA SANTACRUZ LOPEZ- | L118: ADMINISTRATIVA Y FINANCIERA RECURSOS HUMANOS | M118: 2022-05-04 | N118: Una vez ejecutada la verificación de recurso humano y matricula del establecimiento educativo, se logró verificar que el mismo cuenta con una planta docente completa, en ese orden se finiquitó el proceso de estudio de planta y se activó el proceso de reorganización y distribución de carga académica. | O118: Se inicia con el Plan de Asistencia técnica a la entidad territorial de Nariño para la ejecucion de los componentes del plan de fortalecimiento a la gestión del recurso humano de la ETC y definir el plan de trabajo para la vigencia 2022. | P118: La Entidad , esta en proceso que viene desarrollando sobre reorganización de planta según el concepto técnico de modificación de 2021. Se han realizado, conversión de cargos, retiros, traslados y se manifiesta que no se han realizado nombramientos en vacantes definitivas, indicando que los registros encontrados en Planta_T.
A119: 111 | B119: Nariño | C119: BARBACOAS | D119: SEDE 6 CAMARÓN | E119: SEDE 6 CAMARÓN | F119: Oficial | H119: 2022-01-01 | I119: Verificar la asignación de la planta de personal docente y directivo-docente destinado a los EE Oficiales, teniendo en cuenta el PEI, las relaciones técnicas vigentes y sus perfiles o áreas de desempeño, incluyendo a los profesionales de apoyo. | K119: FRANCISCO JAVIER CHACON VASQUEZ, ISABEL CRISTINA SANTACRUZ LOPEZ- | L119: ADMINISTRATIVA Y FINANCIERA RECURSOS HUMANOS | M119: 2022-05-04 | N119: Una vez ejecutada la verificación de recurso humano y matricula del establecimiento educativo, se logró verificar que el mismo cuenta con una planta docente completa, en ese orden se finiquitó el proceso de estudio de planta y se activó el proceso de reorganización y distribución de carga académica. | O119: Se inicia con el Plan de Asistencia técnica a la entidad territorial de Nariño para la ejecucion de los componentes del plan de fortalecimiento a la gestión del recurso humano de la ETC y definir el plan de trabajo para la vigencia 2022. | P119: La Entidad , esta en proceso que viene desarrollando sobre reorganización de planta según el concepto técnico de modificación de 2021. Se han realizado, conversión de cargos, retiros, traslados y se manifiesta que no se han realizado nombramientos en vacantes definitivas, indicando que los registros encontrados en Planta_T.
A120: 112 | B120: Nariño | C120: BARBACOAS | D120: SEDE 7 GUELMAMBI CARAÑO | E120: SEDE 7 GUELMAMBI CARAÑO | F120: Oficial | H120: 2022-01-01 | I120: Verificar la asignación de la planta de personal docente y directivo-docente destinado a los EE Oficiales, teniendo en cuenta el PEI, las relaciones técnicas vigentes y sus perfiles o áreas de desempeño, incluyendo a los profesionales de apoyo. | K120: FRANCISCO JAVIER CHACON VASQUEZ, ISABEL CRISTINA SANTACRUZ LOPEZ- | L120: ADMINISTRATIVA Y FINANCIERA RECURSOS HUMANOS | M120: 2022-05-04 | N120: Una vez ejecutada la verificación de recurso humano y matricula del establecimiento educativo, se logró verificar que el mismo cuenta con una planta docente completa, en ese orden se finiquitó el proceso de estudio de planta y se activó el proceso de reorganización y distribución de carga académica. | O120: Se inicia con el Plan de Asistencia técnica a la entidad territorial de Nariño para la ejecucion de los componentes del plan de fortalecimiento a la gestión del recurso humano de la ETC y definir el plan de trabajo para la vigencia 2022. | P120: La Entidad , esta en proceso que viene desarrollando sobre reorganización de planta según el concepto técnico de modificación de 2021. Se han realizado, conversión de cargos, retiros, traslados y se manifiesta que no se han realizado nombramientos en vacantes definitivas, indicando que los registros encontrados en Planta_T.
A121: 113 | B121: Nariño | C121: BARBACOAS | D121: SEDE 8 LA FALDADA | E121: SEDE 8 LA FALDADA | F121: Oficial | H121: 2022-01-01 | I121: Verificar la asignación de la planta de personal docente y directivo-docente destinado a los EE Oficiales, teniendo en cuenta el PEI, las relaciones técnicas vigentes y sus perfiles o áreas de desempeño, incluyendo a los profesionales de apoyo. | K121: FRANCISCO JAVIER CHACON VASQUEZ, ISABEL CRISTINA SANTACRUZ LOPEZ- | L121: ADMINISTRATIVA Y FINANCIERA RECURSOS HUMANOS | M121: 2022-05-04 | N121: Una vez ejecutada la verificación de recurso humano y matricula del establecimiento educativo, se logró verificar que el mismo cuenta con una planta docente completa, en ese orden se finiquitó el proceso de estudio de planta y se activó el proceso de reorganización y distribución de carga académica. | O121: Se inicia con el Plan de Asistencia técnica a la entidad territorial de Nariño para la ejecucion de los componentes del plan de fortalecimiento a la gestión del recurso humano de la ETC y definir el plan de trabajo para la vigencia 2022. | P121: La Entidad , esta en proceso que viene desarrollando sobre reorganización de planta según el concepto técnico de modificación de 2021. Se han realizado, conversión de cargos, retiros, traslados y se manifiesta que no se han realizado nombramientos en vacantes definitivas, indicando que los registros encontrados en Planta_T.
A122: 114 | B122: Nariño | C122: BARBACOAS | D122: SEDE 9 SAUNDE | E122: SEDE 9 SAUNDE | F122: Oficial | H122: 2022-01-01 | I122: Verificar la asignación de la planta de personal docente y directivo-docente destinado a los EE Oficiales, teniendo en cuenta el PEI, las relaciones técnicas vigentes y sus perfiles o áreas de desempeño, incluyendo a los profesionales de apoyo. | K122: FRANCISCO JAVIER CHACON VASQUEZ, ISABEL CRISTINA SANTACRUZ LOPEZ- | L122: ADMINISTRATIVA Y FINANCIERA RECURSOS HUMANOS | M122: 2022-05-04 | N122: Una vez ejecutada la verificación de recurso humano y matricula del establecimiento educativo, se logró verificar que el mismo cuenta con una planta docente completa, en ese orden se finiquitó el proceso de estudio de planta y se activó el proceso de reorganización y distribución de carga académica. | O122: Se inicia con el Plan de Asistencia técnica a la entidad territorial de Nariño para la ejecucion de los componentes del plan de fortalecimiento a la gestión del recurso humano de la ETC y definir el plan de trabajo para la vigencia 2022. | P122: La Entidad , esta en proceso que viene desarrollando sobre reorganización de planta según el concepto técnico de modificación de 2021. Se han realizado, conversión de cargos, retiros, traslados y se manifiesta que no se han realizado nombramientos en vacantes definitivas, indicando que los registros encontrados en Planta_T.
A123: 115 | B123: Nariño | C123: BARBACOAS | D123: SEDE 10 EL TIGRILLO | E123: SEDE 10 EL TIGRILLO | F123: Oficial | H123: 2022-01-01 | I123: Verificar la asignación de la planta de personal docente y directivo-docente destinado a los EE Oficiales, teniendo en cuenta el PEI, las relaciones técnicas vigentes y sus perfiles o áreas de desempeño, incluyendo a los profesionales de apoyo. | K123: FRANCISCO JAVIER CHACON VASQUEZ, ISABEL CRISTINA SANTACRUZ LOPEZ- | L123: ADMINISTRATIVA Y FINANCIERA RECURSOS HUMANOS | M123: 2022-05-04 | N123: Una vez ejecutada la verificación de recurso humano y matricula del establecimiento educativo, se logró verificar que el mismo cuenta con una planta docente completa, en ese orden se finiquitó el proceso de estudio de planta y se activó el proceso de reorganización y distribución de carga académica. | O123: Se inicia con el Plan de Asistencia técnica a la entidad territorial de Nariño para la ejecucion de los componentes del plan de fortalecimiento a la gestión del recurso humano de la ETC y definir el plan de trabajo para la vigencia 2022. | P123: La Entidad , esta en proceso que viene desarrollando sobre reorganización de planta según el concepto técnico de modificación de 2021. Se han realizado, conversión de cargos, retiros, traslados y se manifiesta que no se han realizado nombramientos en vacantes definitivas, indicando que los registros encontrados en Planta_T.
A124: 116 | B124: Nariño | C124: BARBACOAS | D124: SEDE 11 GUIGUAY | E124: SEDE 11 GUIGUAY | F124: Oficial | H124: 2022-01-01 | I124: Verificar la asignación de la planta de personal docente y directivo-docente destinado a los EE Oficiales, teniendo en cuenta el PEI, las relaciones técnicas vigentes y sus perfiles o áreas de desempeño, incluyendo a los profesionales de apoyo. | K124: FRANCISCO JAVIER CHACON VASQUEZ, ISABEL CRISTINA SANTACRUZ LOPEZ- | L124: ADMINISTRATIVA Y FINANCIERA RECURSOS HUMANOS | M124: 2022-05-04 | N124: Una vez ejecutada la verificación de recurso humano y matricula del establecimiento educativo, se logró verificar que el mismo cuenta con una planta docente completa, en ese orden se finiquitó el proceso de estudio de planta y se activó el proceso de reorganización y distribución de carga académica. | O124: Se inicia con el Plan de Asistencia técnica a la entidad territorial de Nariño para la ejecucion de los componentes del plan de fortalecimiento a la gestión del recurso humano de la ETC y definir el plan de trabajo para la vigencia 2022. | P124: La Entidad , esta en proceso que viene desarrollando sobre reorganización de planta según el concepto técnico de modificación de 2021. Se han realizado, conversión de cargos, retiros, traslados y se manifiesta que no se han realizado nombramientos en vacantes definitivas, indicando que los registros encontrados en Planta_T.
A125: 117 | B125: Nariño | C125: BARBACOAS | D125: SEDE 12 HONDA RIO GUIZA | E125: SEDE 12 HONDA RIO GUIZA | F125: Oficial | H125: 2022-01-01 | I125: Verificar la asignación de la planta de personal docente y directivo-docente destinado a los EE Oficiales, teniendo en cuenta el PEI, las relaciones técnicas vigentes y sus perfiles o áreas de desempeño, incluyendo a los profesionales de apoyo. | K125: FRANCISCO JAVIER CHACON VASQUEZ, ISABEL CRISTINA SANTACRUZ LOPEZ- | L125: ADMINISTRATIVA Y FINANCIERA RECURSOS HUMANOS | M125: 2022-05-04 | N125: Una vez ejecutada la verificación de recurso humano y matricula del establecimiento educativo, se logró verificar que el mismo cuenta con una planta docente completa, en ese orden se finiquitó el proceso de estudio de planta y se activó el proceso de reorganización y distribución de carga académica. | O125: Se inicia con el Plan de Asistencia técnica a la entidad territorial de Nariño para la ejecucion de los componentes del plan de fortalecimiento a la gestión del recurso humano de la ETC y definir el plan de trabajo para la vigencia 2022. | P125: La Entidad , esta en proceso que viene desarrollando sobre reorganización de planta según el concepto técnico de modificación de 2021. Se han realizado, conversión de cargos, retiros, traslados y se manifiesta que no se han realizado nombramientos en vacantes definitivas, indicando que los registros encontrados en Planta_T.
A126: 118 | B126: Nariño | C126: BARBACOAS | D126: SEDE 13 CHIMBAGAL | E126: SEDE 13 CHIMBAGAL | F126: Oficial | H126: 2022-01-01 | I126: Verificar la asignación de la planta de personal docente y directivo-docente destinado a los EE Oficiales, teniendo en cuenta el PEI, las relaciones técnicas vigentes y sus perfiles o áreas de desempeño, incluyendo a los profesionales de apoyo. | K126: FRANCISCO JAVIER CHACON VASQUEZ, ISABEL CRISTINA SANTACRUZ LOPEZ- | L126: ADMINISTRATIVA Y FINANCIERA RECURSOS HUMANOS | M126: 2022-05-04 | N126: Una vez ejecutada la verificación de recurso humano y matricula del establecimiento educativo, se logró verificar que el mismo cuenta con una planta docente completa, en ese orden se finiquitó el proceso de estudio de planta y se activó el proceso de reorganización y distribución de carga académica. | O126: Se inicia con el Plan de Asistencia técnica a la entidad territorial de Nariño para la ejecucion de los componentes del plan de fortalecimiento a la gestión del recurso humano de la ETC y definir el plan de trabajo para la vigencia 2022. | P126: La Entidad , esta en proceso que viene desarrollando sobre reorganización de planta según el concepto técnico de modificación de 2021. Se han realizado, conversión de cargos, retiros, traslados y se manifiesta que no se han realizado nombramientos en vacantes definitivas, indicando que los registros encontrados en Planta_T.
A127: 119 | B127: Nariño | C127: BARBACOAS | D127: SEDE 15 GUADUAL SABALO | E127: SEDE 15 GUADUAL SABALO | F127: Oficial | H127: 2022-01-01 | I127: Verificar la asignación de la planta de personal docente y directivo-docente destinado a los EE Oficiales, teniendo en cuenta el PEI, las relaciones técnicas vigentes y sus perfiles o áreas de desempeño, incluyendo a los profesionales de apoyo. | K127: FRANCISCO JAVIER CHACON VASQUEZ, ISABEL CRISTINA SANTACRUZ LOPEZ- | L127: ADMINISTRATIVA Y FINANCIERA RECURSOS HUMANOS | M127: 2022-05-04 | N127: Una vez ejecutada la verificación de recurso humano y matricula del establecimiento educativo, se logró verificar que el mismo cuenta con una planta docente completa, en ese orden se finiquitó el proceso de estudio de planta y se activó el proceso de reorganización y distribución de carga académica. | O127: Se inicia con el Plan de Asistencia técnica a la entidad territorial de Nariño para la ejecucion de los componentes del plan de fortalecimiento a la gestión del recurso humano de la ETC y definir el plan de trabajo para la vigencia 2022. | P127: La Entidad , esta en proceso que viene desarrollando sobre reorganización de planta según el concepto técnico de modificación de 2021. Se han realizado, conversión de cargos, retiros, traslados y se manifiesta que no se han realizado nombramientos en vacantes definitivas, indicando que los registros encontrados en Planta_T.
A128: 120 | B128: Nariño | C128: BARBACOAS | D128: SEDE 16 SABALETA SAUNDE | E128: SEDE 16 SABALETA SAUNDE | F128: Oficial | H128: 2022-01-01 | I128: Verificar la asignación de la planta de personal docente y directivo-docente destinado a los EE Oficiales, teniendo en cuenta el PEI, las relaciones técnicas vigentes y sus perfiles o áreas de desempeño, incluyendo a los profesionales de apoyo. | K128: FRANCISCO JAVIER CHACON VASQUEZ, ISABEL CRISTINA SANTACRUZ LOPEZ- | L128: ADMINISTRATIVA Y FINANCIERA RECURSOS HUMANOS | M128: 2022-05-04 | N128: Una vez ejecutada la verificación de recurso humano y matricula del establecimiento educativo, se logró verificar que el mismo cuenta con una planta docente completa, en ese orden se finiquitó el proceso de estudio de planta y se activó el proceso de reorganización y distribución de carga académica. | O128: Se inicia con el Plan de Asistencia técnica a la entidad territorial de Nariño para la ejecucion de los componentes del plan de fortalecimiento a la gestión del recurso humano de la ETC y definir el plan de trabajo para la vigencia 2022. | P128: La Entidad , esta en proceso que viene desarrollando sobre reorganización de planta según el concepto técnico de modificación de 2021. Se han realizado, conversión de cargos, retiros, traslados y se manifiesta que no se han realizado nombramientos en vacantes definitivas, indicando que los registros encontrados en Planta_T.
A129: 121 | B129: Nariño | C129: BARBACOAS | D129: SEDE 17 GUELMAMBI | E129: SEDE 17 GUELMAMBI | F129: Oficial | H129: 2022-01-01 | I129: Verificar la asignación de la planta de personal docente y directivo-docente destinado a los EE Oficiales, teniendo en cuenta el PEI, las relaciones técnicas vigentes y sus perfiles o áreas de desempeño, incluyendo a los profesionales de apoyo. | K129: FRANCISCO JAVIER CHACON VASQUEZ, ISABEL CRISTINA SANTACRUZ LOPEZ- | L129: ADMINISTRATIVA Y FINANCIERA RECURSOS HUMANOS | M129: 2022-05-04 | N129: Una vez ejecutada la verificación de recurso humano y matricula del establecimiento educativo, se logró verificar que el mismo cuenta con una planta docente completa, en ese orden se finiquitó el proceso de estudio de planta y se activó el proceso de reorganización y distribución de carga académica. | O129: Se inicia con el Plan de Asistencia técnica a la entidad territorial de Nariño para la ejecucion de los componentes del plan de fortalecimiento a la gestión del recurso humano de la ETC y definir el plan de trabajo para la vigencia 2022. | P129: La Entidad , esta en proceso que viene desarrollando sobre reorganización de planta según el concepto técnico de modificación de 2021. Se han realizado, conversión de cargos, retiros, traslados y se manifiesta que no se han realizado nombramientos en vacantes definitivas, indicando que los registros encontrados en Planta_T.
A130: 122 | B130: Nariño | C130: BELÉN | D130: SEDE 1 INSTITUCIÓN EDUCATIVA NUESTRA SEÑORA DE BELÉN | E130: SEDE 1 INSTITUCIÓN EDUCATIVA NUESTRA SEÑORA DE BELÉN | F130: Oficial | H130: 2022-01-01 | I130: Verificar la asignación de la planta de personal docente y directivo-docente destinado a los EE Oficiales, teniendo en cuenta el PEI, las relaciones técnicas vigentes y sus perfiles o áreas de desempeño, incluyendo a los profesionales de apoyo. | K130: FRANCISCO JAVIER CHACON VASQUEZ, ISABEL CRISTINA SANTACRUZ LOPEZ- | L130: ADMINISTRATIVA Y FINANCIERA RECURSOS HUMANOS | M130: 2022-05-04 | N130: Una vez ejecutada la verificación de recurso humano y matricula del establecimiento educativo, se logró verificar que el mismo cuenta con una planta docente completa, en ese orden se finiquitó el proceso de estudio de planta y se activó el proceso de reorganización y distribución de carga académica. | O130: Se inicia con el Plan de Asistencia técnica a la entidad territorial de Nariño para la ejecucion de los componentes del plan de fortalecimiento a la gestión del recurso humano de la ETC y definir el plan de trabajo para la vigencia 2022. | P130: La Entidad , esta en proceso que viene desarrollando sobre reorganización de planta según el concepto técnico de modificación de 2021. Se han realizado, conversión de cargos, retiros, traslados y se manifiesta que no se han realizado nombramientos en vacantes definitivas, indicando que los registros encontrados en Planta_T.
A131: 123 | B131: Nariño | C131: BELÉN | D131: SEDE 2 GABRIELA MISTRAL | E131: SEDE 2 GABRIELA MISTRAL | F131: Oficial | H131: 2022-01-01 | I131: Verificar la asignación de la planta de personal docente y directivo-docente destinado a los EE Oficiales, teniendo en cuenta el PEI, las relaciones técnicas vigentes y sus perfiles o áreas de desempeño, incluyendo a los profesionales de apoyo. | K131: FRANCISCO JAVIER CHACON VASQUEZ, ISABEL CRISTINA SANTACRUZ LOPEZ- | L131: ADMINISTRATIVA Y FINANCIERA RECURSOS HUMANOS | M131: 2022-05-04 | N131: Una vez ejecutada la verificación de recurso humano y matricula del establecimiento educativo, se logró verificar que el mismo cuenta con una planta docente completa, en ese orden se finiquitó el proceso de estudio de planta y se activó el proceso de reorganización y distribución de carga académica. | O131: Se inicia con el Plan de Asistencia técnica a la entidad territorial de Nariño para la ejecucion de los componentes del plan de fortalecimiento a la gestión del recurso humano de la ETC y definir el plan de trabajo para la vigencia 2022. | P131: La Entidad , esta en proceso que viene desarrollando sobre reorganización de planta según el concepto técnico de modificación de 2021. Se han realizado, conversión de cargos, retiros, traslados y se manifiesta que no se han realizado nombramientos en vacantes definitivas, indicando que los registros encontrados en Planta_T.
A132: 124 | B132: Nariño | C132: BELÉN | D132: "SEDE 3 SANTO DOMINGO SAVIO" | E132: "SEDE 3 SANTO DOMINGO SAVIO" | F132: Oficial | H132: 2022-01-01 | I132: Verificar la asignación de la planta de personal docente y directivo-docente destinado a los EE Oficiales, teniendo en cuenta el PEI, las relaciones técnicas vigentes y sus perfiles o áreas de desempeño, incluyendo a los profesionales de apoyo. | K132: FRANCISCO JAVIER CHACON VASQUEZ, ISABEL CRISTINA SANTACRUZ LOPEZ- | L132: ADMINISTRATIVA Y FINANCIERA RECURSOS HUMANOS | M132: 2022-05-04 | N132: Una vez ejecutada la verificación de recurso humano y matricula del establecimiento educativo, se logró verificar que el mismo cuenta con una planta docente completa, en ese orden se finiquitó el proceso de estudio de planta y se activó el proceso de reorganización y distribución de carga académica. | O132: Se inicia con el Plan de Asistencia técnica a la entidad territorial de Nariño para la ejecucion de los componentes del plan de fortalecimiento a la gestión del recurso humano de la ETC y definir el plan de trabajo para la vigencia 2022. | P132: La Entidad , esta en proceso que viene desarrollando sobre reorganización de planta según el concepto técnico de modificación de 2021. Se han realizado, conversión de cargos, retiros, traslados y se manifiesta que no se han realizado nombramientos en vacantes definitivas, indicando que los registros encontrados en Planta_T.
A133: 125 | B133: Nariño | C133: BELÉN | D133: "SEDE 4 CAMPO DE MARÍA" | E133: "SEDE 4 CAMPO DE MARÍA" | F133: Oficial | H133: 2022-01-01 | I133: Verificar la asignación de la planta de personal docente y directivo-docente destinado a los EE Oficiales, teniendo en cuenta el PEI, las relaciones técnicas vigentes y sus perfiles o áreas de desempeño, incluyendo a los profesionales de apoyo. | K133: FRANCISCO JAVIER CHACON VASQUEZ, ISABEL CRISTINA SANTACRUZ LOPEZ- | L133: ADMINISTRATIVA Y FINANCIERA RECURSOS HUMANOS | M133: 2022-05-04 | N133: Una vez ejecutada la verificación de recurso humano y matricula del establecimiento educativo, se logró verificar que el mismo cuenta con una planta docente completa, en ese orden se finiquitó el proceso de estudio de planta y se activó el proceso de reorganización y distribución de carga académica. | O133: Se inicia con el Plan de Asistencia técnica a la entidad territorial de Nariño para la ejecucion de los componentes del plan de fortalecimiento a la gestión del recurso humano de la ETC y definir el plan de trabajo para la vigencia 2022. | P133: La Entidad , esta en proceso que viene desarrollando sobre reorganización de planta según el concepto técnico de modificación de 2021. Se han realizado, conversión de cargos, retiros, traslados y se manifiesta que no se han realizado nombramientos en vacantes definitivas, indicando que los registros encontrados en Planta_T.
A134: 126 | B134: Nariño | C134: BELÉN | D134: SEDE 5 SEBASTIANILLO | E134: SEDE 5 SEBASTIANILLO | F134: Oficial | H134: 2022-01-01 | I134: Verificar la asignación de la planta de personal docente y directivo-docente destinado a los EE Oficiales, teniendo en cuenta el PEI, las relaciones técnicas vigentes y sus perfiles o áreas de desempeño, incluyendo a los profesionales de apoyo. | K134: FRANCISCO JAVIER CHACON VASQUEZ, ISABEL CRISTINA SANTACRUZ LOPEZ- | L134: ADMINISTRATIVA Y FINANCIERA RECURSOS HUMANOS | M134: 2022-05-04 | N134: Una vez ejecutada la verificación de recurso humano y matricula del establecimiento educativo, se logró verificar que el mismo cuenta con una planta docente completa, en ese orden se finiquitó el proceso de estudio de planta y se activó el proceso de reorganización y distribución de carga académica. | O134: Se inicia con el Plan de Asistencia técnica a la entidad territorial de Nariño para la ejecucion de los componentes del plan de fortalecimiento a la gestión del recurso humano de la ETC y definir el plan de trabajo para la vigencia 2022. | P134: La Entidad , esta en proceso que viene desarrollando sobre reorganización de planta según el concepto técnico de modificación de 2021. Se han realizado, conversión de cargos, retiros, traslados y se manifiesta que no se han realizado nombramientos en vacantes definitivas, indicando que los registros encontrados en Planta_T.
A135: 127 | B135: Nariño | C135: BELÉN | D135: SEDE 6 PLAZUELAS | E135: SEDE 6 PLAZUELAS | F135: Oficial | H135: 2022-01-01 | I135: Verificar la asignación de la planta de personal docente y directivo-docente destinado a los EE Oficiales, teniendo en cuenta el PEI, las relaciones técnicas vigentes y sus perfiles o áreas de desempeño, incluyendo a los profesionales de apoyo. | K135: FRANCISCO JAVIER CHACON VASQUEZ, ISABEL CRISTINA SANTACRUZ LOPEZ- | L135: ADMINISTRATIVA Y FINANCIERA RECURSOS HUMANOS | M135: 2022-05-04 | N135: Una vez ejecutada la verificación de recurso humano y matricula del establecimiento educativo, se logró verificar que el mismo cuenta con una planta docente completa, en ese orden se finiquitó el proceso de estudio de planta y se activó el proceso de reorganización y distribución de carga académica. | O135: Se inicia con el Plan de Asistencia técnica a la entidad territorial de Nariño para la ejecucion de los componentes del plan de fortalecimiento a la gestión del recurso humano de la ETC y definir el plan de trabajo para la vigencia 2022. | P135: La Entidad , esta en proceso que viene desarrollando sobre reorganización de planta según el concepto técnico de modificación de 2021. Se han realizado, conversión de cargos, retiros, traslados y se manifiesta que no se han realizado nombramientos en vacantes definitivas, indicando que los registros encontrados en Planta_T.
